Trans No.,Service Area Categorisation,Service Division Categorisation,Responsible Unit,Unit Code,Expenses Type,Expenses Sub Type,Expense Code,Narrative,Amount,InvoiceDate,Cap/Rev,Supplier Name
1,Public Health,PH - Sexual Health,PH � STI Testing and Treatment          ,WPHS02,Supplies & Services           ,Public Health Subjectives,DQ04,GUM                                     ,1886.39,10/11/2014,Rev,WESTERN SUSSEX HOSPITAL'S NHS 
2,Central Services,SupS Legal,Sutton Legal                            ,E10293,Supplies & Services           ,Services                      ,DF14,Doctors and Other Fees                  ,576,15/12/2014,Rev,SECECETRA EXPERT SERVICES     
3,Central Services,SupS Health & Safety,Learning and Development,B06146,Employees                     ,Indirect Employee Expenses    ,AB57,EXTERNAL TRAINING COSTS                 ,995,16/12/2014,Rev,THE PRESCRIPTION TRAINING COMP
4,Central Services,SupS Legal,Sutton Legal                            ,E10293,Supplies & Services           ,Services                      ,DF14,Doctors and Other Fees                  ,734.43,12/01/2015,Rev,SECECETRA EXPERT SERVICES     
5,Childrens & Education Services,Family - Other Services,CS SWD Personal support                 ,W1CF49,Third Party Payments          ,Private Contractors           ,EH01,Miscellaneous Contrct Services          ,595,13/01/2015,Rev,CARESTAFF SOLUTIONS           
6,Childrens & Education Services,Family - Other Services,CS SWD Personal support                 ,W1CF49,Third Party Payments          ,Private Contractors           ,EH01,Miscellaneous Contrct Services          ,1102,13/01/2015,Rev,CARESTAFF SOLUTIONS           
7,Childrens & Education Services,Chidren's Homes,CS Brightwell,W1CG00,Supplies & Services           ,Services                      ,DF09,Miscellaneous Fees                      ,750,22/01/2015,Rev,PERSEID SCHOOL                
8,Childrens & Education Services,Asset Management,PFI Unitary Charges,K03023,Third Party Payments          ,Private Contractors           ,EH10,Contract Payments                       ,-3809.92,26/01/2015,Rev,NEWSCHOOLS (MERTON) LIMITED   
9,,,Highways bridges & structures           ,CE025FA,New Construction Conversion and Renovation,,B4,Contractor - Site works                 ,3623,27/02/2015,Cap,FM CONWAY LTD                 
10,Childrens & Education Services,Asset Management,PFI Unitary Charges,K03023,Supplies & Services           ,Services                      ,DF11,Counsel's fees                          ,5815,04/03/2015,Rev,REDACTED
11,Central Services,SupS Health & Safety,Learning and Development,B06146,Employees                     ,Indirect Employee Expenses    ,AB57,EXTERNAL TRAINING COSTS                 ,1200,18/03/2015,Rev,THE PRESCRIPTION TRAINING COMP
12,Cultural Env Reg&Plan Services,Mgt & Sup (Cult),Tree Safety (Schools),P18320,Premises Related Expenditure  ,Ground Maintenance Costs      ,BL50,NATURE CONSERVATION                     ,3325,23/03/2015,Rev,FLYNN TREE CARE               
13,Public Health,PH - Substance Misuse,PH � Substance Misuse                   ,WPHD01,Third Party Payments          ,Private Contractors           ,EH20,Drugs Misuse                            ,19000,26/03/2015,Rev,ALCOHOL CONCERN               
14,Childrens & Education Services,Support for SEN Pupils,Non-Delegated Statements,K90024,Third Party Payments          ,Other Establishments          ,EG50,Ind Day Schs Payments                   ,6827.3,07/04/2015,Rev,BLOSSOM LOWER SCHOOL LTD      
15,Childrens & Education Services,Leaving Care Services,CL Setting Up Home Allowance,W1DF41,Third Party Payments          ,Private Contractors           ,EH01,Miscellaneous Agency Services           ,742.6,22/04/2015,Rev,THE ARTEMIS TEAM LIMITED      
16,Central Services,SupS Legal,Sutton Legal                            ,E10293,Supplies & Services           ,Services                      ,DF11,Counsel's Fees                          ,9275,24/04/2015,Rev,REDACTED
17,Childrens & Education Services,Support for SEN Pupils,ART SEN Residential (DSG),K90050,Third Party Payments          ,Other Establishments          ,EG51,Ind Resid Schs Payments                 ,8475,14/05/2015,Rev,MARY HARE GRAMMAR SCHOOL      
18,Childrens & Education Services,Statutory & Regulatory Duties,Senior Mngt & Support Services,K01005,Supplies & Services           ,Services                      ,DF11,Counsel's Fees                          ,875,19/05/2015,Rev,REDACTED
19,Adult Social Care,LD u65 Residentl Care Placemnt,LD Residential Care External,W2KB55,Third Party Payments          ,Private Contractors           ,EH01,Miscellaneous Agency Services           ,1236.52,29/05/2015,Rev,THORNBECK COLLEGE             
20,Adult Social Care,LD u65 Residentl Care Placemnt,LD Residential Care External,W2KB55,Third Party Payments          ,Private Contractors           ,EH01,Miscellaneous Agency Services           ,1236.52,29/05/2015,Rev,THORNBECK COLLEGE             
21,Adult Social Care,LD u65 Residentl Care Placemnt,LD Residential Care External,W2KB55,Third Party Payments          ,Private Contractors           ,EH01,Miscellaneous Agency Services           ,1236.52,29/05/2015,Rev,THORNBECK COLLEGE             
22,Adult Social Care,LD u65 Residentl Care Placemnt,LD Residential Care External,W2KB55,Third Party Payments          ,Private Contractors           ,EH01,Miscellaneous Agency Services           ,1236.52,29/05/2015,Rev,THORNBECK COLLEGE             
23,Adult Social Care,LD u65 Residentl Care Placemnt,LD Residential Care External,W2KB55,Third Party Payments          ,Private Contractors           ,EH01,Miscellaneous Agency Services           ,1236.52,29/05/2015,Rev,THORNBECK COLLEGE             
24,Adult Social Care,LD u65 Residentl Care Placemnt,LD Residential Care External,W2KB55,Third Party Payments          ,Private Contractors           ,EH01,Miscellaneous Agency Services           ,1236.52,29/05/2015,Rev,THORNBECK COLLEGE             
25,Adult Social Care,LD u65 Residentl Care Placemnt,LD Residential Care External,W2KB55,Third Party Payments          ,Private Contractors           ,EH01,Miscellaneous Agency Services           ,1236.52,29/05/2015,Rev,THORNBECK COLLEGE             
26,Adult Social Care,LD u65 Residentl Care Placemnt,LD Residential Care External,W2KB55,Third Party Payments          ,Private Contractors           ,EH01,Miscellaneous Agency Services           ,1236.52,29/05/2015,Rev,THORNBECK COLLEGE             
27,Public Health,PH - Sexual Health,PH � STI Testing and Treatment          ,WPHS02,Supplies & Services           ,Public Health Subjectives,DQ04,GUM                                     ,94479.37,29/05/2015,Rev,ST GEORGES HEALTHCARE TRUST   
28,Childrens & Education Services,Family - Other Services,CS SWD Personal support                 ,W1CF49,Third Party Payments          ,Private Contractors           ,EH01,Miscellaneous Contrct Services          ,1122,02/06/2015,Rev,CARESTAFF SOLUTIONS           
29,Childrens & Education Services,Nursery schools,EY-Support Separating Parents,K05417,Supplies & Services           ,Services                      ,DF30,Activities Programme                    ,800,22/06/2015,Rev,PRE SCHOOL LEARNING ALLIANCE  
30,Childrens & Education Services,Chidren's Homes,ART Residential Placements,W1DE57,Third Party Payments          ,Private Contractors           ,EH01,Miscellaneous Agency Services           ,505.14,23/06/2015,Rev,REDACTED
31,Childrens & Education Services,Chidren's Homes,ART Residential Placements,W1DE57,Third Party Payments          ,Private Contractors           ,EH01,Miscellaneous Agency Services           ,3535.98,23/06/2015,Rev,REDACTED
32,Cultural Env Reg&Plan Services,Street Clean - Not highways,Street Cleansing (Inc. Gully),G00492,Premises Related Expenditure  ,Water Services                ,BE01,Use of Water (Metered)                  ,1021,24/06/2015,Rev,SUPPLY UK HIRE SHOPS          
33,Central Services,SupS Legal,Sutton Legal                            ,E10293,Supplies & Services           ,Services                      ,DF95,Services from Provider                  ,5267,25/06/2015,Rev,THE CO-OPERATIVE LEGAL SERVICE
34,Childrens & Education Services,Leaving Care Services,CL Setting Up Home Allowance,W1DF41,Third Party Payments          ,Private Contractors           ,EH01,Miscellaneous Agency Services           ,758.9,29/06/2015,Rev,THE ARTEMIS TEAM LIMITED      
35,Public Health,PH - Sexual Health,PH � STI Testing and Treatment          ,WPHS02,Supplies & Services           ,Public Health Subjectives,DQ04,GUM                                     ,86088.91,29/06/2015,Rev,ST GEORGES HEALTHCARE TRUST   
36,Public Health,PH - Sexual Health,PH - Contraception                      ,WPHS01,Supplies & Services           ,Public Health Subjectives     ,DQ01,Family Planning                         ,1420,01/07/2015,Rev,TAMWORTH HOUSE MEDICAL CENTRE 
37,Childrens & Education Services,CS - Commiss'ing & Social Work,SG & CP T1 DISCRETIONARY PYMT,W1FB41,Third Party Payments          ,Private Contractors           ,EH01,Miscellaneous Contrct Services          ,629.53,06/07/2015,Rev,CARE O LINE                   
38,Central Services,Council tax collection,Local Taxation Services,E02100,Supplies & Services           ,Comms and Computing           ,DG02,Software Licences                       ,900,10/07/2015,Rev,ONESTEP SOLUTIONS PLC         
39,Childrens & Education Services,Fostering Services,ART Independent Agency Foster,W1DE46,Supplies & Services           ,Services                      ,DF53,Task Based Fostering                    ,-756.63,12/07/2015,Rev,THE NATIONAL FOSTERING AGENCY 
40,Childrens & Education Services,Fostering Services,ART Independent Agency Foster,W1DE46,Supplies & Services           ,Services                      ,DF53,Task Based Fostering                    ,-756.63,12/07/2015,Rev,THE NATIONAL FOSTERING AGENCY 
41,Childrens & Education Services,Fostering Services,ART Independent Agency Foster,W1DE46,Supplies & Services           ,Services                      ,DF53,Task Based Fostering                    ,-756.63,12/07/2015,Rev,THE NATIONAL FOSTERING AGENCY 
42,Childrens & Education Services,Fostering Services,ART Independent Agency Foster,W1DE46,Supplies & Services           ,Services                      ,DF53,Task Based Fostering                    ,-756.63,12/07/2015,Rev,THE NATIONAL FOSTERING AGENCY 
43,Childrens & Education Services,Fostering Services,ART Independent Agency Foster,W1DE46,Supplies & Services           ,Services                      ,DF53,Task Based Fostering                    ,806.61,12/07/2015,Rev,THE NATIONAL FOSTERING AGENCY 
44,Childrens & Education Services,Fostering Services,ART Independent Agency Foster,W1DE46,Supplies & Services           ,Services                      ,DF53,Task Based Fostering                    ,806.61,12/07/2015,Rev,THE NATIONAL FOSTERING AGENCY 
45,Childrens & Education Services,Fostering Services,ART Independent Agency Foster,W1DE46,Supplies & Services           ,Services                      ,DF53,Task Based Fostering                    ,806.61,12/07/2015,Rev,THE NATIONAL FOSTERING AGENCY 
46,Childrens & Education Services,Fostering Services,ART Independent Agency Foster,W1DE46,Supplies & Services           ,Services                      ,DF53,Task Based Fostering                    ,806.61,12/07/2015,Rev,THE NATIONAL FOSTERING AGENCY 
47,Adult Social Care,LD u65 Home Care,LD Home Care External,W2KB49,Third Party Payments          ,Private Contractors           ,EH01,Miscellaneous Agency Services           ,624.8,13/07/2015,Rev,ROYAL MENCAP SOCIETY          
48,Adult Social Care,LD u65 Home Care,LD Home Care External,W2KB49,Third Party Payments          ,Private Contractors           ,EH01,Miscellaneous Agency Services           ,624.8,13/07/2015,Rev,ROYAL MENCAP SOCIETY          
49,Adult Social Care,LD u65 Home Care,LD Home Care External,W2KB49,Third Party Payments          ,Private Contractors           ,EH01,Miscellaneous Agency Services           ,624.8,13/07/2015,Rev,ROYAL MENCAP SOCIETY          
50,Adult Social Care,LD u65 Home Care,LD Home Care External,W2KB49,Third Party Payments          ,Private Contractors           ,EH01,Miscellaneous Agency Services           ,624.8,13/07/2015,Rev,ROYAL MENCAP SOCIETY          
51,,,Disaster recovery                       ,CT003EA,Other Capital Expenditure,,E3,Miscellaneous Capital Expendit          ,7600,13/07/2015,Cap,THINTECH LIMITED              
52,Childrens & Education Services,Support for SEN Pupils,ART SEN Residential (DSG),K90050,Third Party Payments          ,Other Establishments          ,EG51,Ind Resid Schs Payments                 ,601,15/07/2015,Rev,ST DOMINIC'S SCHOOL           
53,Childrens & Education Services,Support for SEN Pupils,ART SEN Residential (DSG),K90050,Third Party Payments          ,Other Establishments          ,EG51,Ind Resid Schs Payments                 ,601,15/07/2015,Rev,ST DOMINIC'S SCHOOL           
54,Childrens & Education Services,Support for SEN Pupils,ART SEN Residential (DSG),K90050,Third Party Payments          ,Other Establishments          ,EG51,Ind Resid Schs Payments                 ,13298,15/07/2015,Rev,ST DOMINIC'S SCHOOL           
55,Childrens & Education Services,Support for SEN Pupils,ART SEN Residential (DSG),K90050,Third Party Payments          ,Other Establishments          ,EG51,Ind Resid Schs Payments                 ,13298,15/07/2015,Rev,ST DOMINIC'S SCHOOL           
56,Childrens & Education Services,Leaving Care Services,CL Setting Up Home Allowance,W1DF41,Third Party Payments          ,Private Contractors           ,EH01,Miscellaneous Agency Services           ,500,21/07/2015,Rev,SYRUS CONSULTANCY CIC         
57,Adult Social Care,SS Cent Advisy Pol dev inc BV,SP COMMISSIONING,W3VA05,Supplies & Services           ,Expenses                      ,DH50,Special Projects                        ,24872,21/07/2015,Rev,HOUSING FOR WOMEN             
58,Central Services,SupS Health & Safety,Learning and Development,B06146,Employees                     ,Indirect Employee Expenses    ,AB57,EXTERNAL TRAINING COSTS                 ,830,24/07/2015,Rev,MAYBO                         
59,Central Services,SupS Health & Safety,Learning and Development,B06146,Employees                     ,Indirect Employee Expenses    ,AB57,EXTERNAL TRAINING COSTS                 ,830,24/07/2015,Rev,MAYBO                         
60,Adult Social Care,SS Management & Administration,DS Directorate SSM Costs,W3XA00,Supplies & Services           ,Expenses                      ,DH50,Special Projects                        ,1757.35,25/07/2015,Rev,ALDER                         
61,Adult Social Care,SS Management & Administration,DS Directorate SSM Costs,W3XA00,Supplies & Services           ,Expenses                      ,DH50,Special Projects                        ,18000,25/07/2015,Rev,ALDER                         
62,Central Services,,Sales and Marketing                     ,A02034,Employees                     ,Direct Employee Expenses      ,AA96,SALARY SACRIFICE (TEACHERS)             ,583.33,29/07/2015,Rev,F.W.EVANS CYCLES (UK) LTD.    
63,Public Health,PH - Sexual Health,PH � STI Testing and Treatment          ,WPHS02,Supplies & Services           ,Public Health Subjectives,DQ04,GUM                                     ,100140.98,29/07/2015,Rev,ST GEORGES HEALTHCARE TRUST   
64,Housing Services,Bed / breakfast accommodation,TEMPORARY ACCOMMODATION,N47160,Third Party Payments          ,Private Contractors           ,EH01,Miscellaneous Agency Services           ,576,31/07/2015,Rev,SW LONDON LETTINGS LTD        
65,Central Services,GENERATED ACCOUNT,Establishments' Cash Collect'n,E06226,Third Party Payments          ,Private Contractors           ,EH02,Miscellaneous Hired Services            ,585.9,31/07/2015,Rev,BANKING AUTOMATION LTD        
66,Housing Services,Bed / breakfast accommodation,TEMPORARY ACCOMMODATION,N47160,Third Party Payments          ,Private Contractors           ,EH01,Miscellaneous Agency Services           ,1016.5,31/07/2015,Rev,SW LONDON LETTINGS LTD        
67,Housing Services,Bed / breakfast accommodation,TEMPORARY ACCOMMODATION,N47160,Third Party Payments          ,Private Contractors           ,EH01,Miscellaneous Agency Services           ,1040,31/07/2015,Rev,SW LONDON LETTINGS LTD        
68,Housing Services,Bed / breakfast accommodation,TEMPORARY ACCOMMODATION,N47160,Third Party Payments          ,Private Contractors           ,EH01,Miscellaneous Agency Services           ,1116,31/07/2015,Rev,SW LONDON LETTINGS LTD        
69,Housing Services,Bed / breakfast accommodation,TEMPORARY ACCOMMODATION,N47160,Third Party Payments          ,Private Contractors           ,EH01,Miscellaneous Agency Services           ,1116,31/07/2015,Rev,SW LONDON LETTINGS LTD        
70,Housing Services,Bed / breakfast accommodation,TEMPORARY ACCOMMODATION,N47160,Third Party Payments          ,Private Contractors           ,EH01,Miscellaneous Agency Services           ,1271,31/07/2015,Rev,SW LONDON LETTINGS LTD        
71,Housing Services,Bed / breakfast accommodation,TEMPORARY ACCOMMODATION,N47160,Third Party Payments          ,Private Contractors           ,EH01,Miscellaneous Agency Services           ,1271,31/07/2015,Rev,SW LONDON LETTINGS LTD        
72,Housing Services,Bed / breakfast accommodation,TEMPORARY ACCOMMODATION,N47160,Third Party Payments          ,Private Contractors           ,EH01,Miscellaneous Agency Services           ,1551.5,31/07/2015,Rev,SW LONDON LETTINGS LTD        
73,Housing Services,Bed / breakfast accommodation,TEMPORARY ACCOMMODATION,N47160,Third Party Payments          ,Private Contractors           ,EH01,Miscellaneous Agency Services           ,2325,31/07/2015,Rev,SW LONDON LETTINGS LTD        
74,Highways & Transport Services,Safe routes inc schl x patrol,DFT Inclusive Mobility,G00323,Supplies & Services           ,Services                      ,DF05,Surveys (General)                       ,31749,31/07/2015,Rev,HAVERSTOCK ASSOCIATES LLP     
75,Housing Services,Bed / breakfast accommodation,TEMPORARY ACCOMMODATION,N47160,Third Party Payments          ,Private Contractors           ,EH01,Miscellaneous Agency Services           ,2456,01/08/2015,Rev,RENT CONNECT LLP              
76,Highways & Transport Services,Safe routes inc schl x patrol,School & Road Safety TFL                ,H01083,Supplies & Services           ,Equip Furniture/Materials     ,DA09,Equip-Purchases                         ,800,05/08/2015,Rev,AHMADIYYA MUSLIM ASSOC.UK     
77,Central Services,SupS Legal,Sutton Legal                            ,E10293,Supplies & Services           ,Services                      ,DF14,Doctors and Other Fees                  ,810,05/08/2015,Rev,DCH NEUROLOGY LTD             
78,Childrens & Education Services,CS - Commiss'ing & Social Work,CL IndepAssess Expert Witness,W1DJ63,Supplies & Services           ,Services                      ,DF14,Doctors and Other Fees                  ,910,06/08/2015,Rev,SME INVOICE FINANCE LTD       
79,Childrens & Education Services,Asset Management,PFI Unitary Charges,K03023,Third Party Payments          ,Private Contractors           ,EH10,Contract Payments                       ,-8032.01,07/08/2015,Rev,NEWSCHOOLS (MERTON) LIMITED   
80,Childrens & Education Services,Fostering Services,ART Independent Agency Foster,W1DE46,Supplies & Services           ,Services                      ,DF53,Task Based Fostering                    ,780,09/08/2015,Rev,THE NATIONAL FOSTERING AGENCY 
81,Childrens & Education Services,Fostering Services,ART Independent Agency Foster,W1DE46,Supplies & Services           ,Services                      ,DF53,Task Based Fostering                    ,780,09/08/2015,Rev,THE NATIONAL FOSTERING AGENCY 
82,Childrens & Education Services,Fostering Services,ART Independent Agency Foster,W1DE46,Supplies & Services           ,Services                      ,DF53,Task Based Fostering                    ,780,09/08/2015,Rev,THE NATIONAL FOSTERING AGENCY 
83,Childrens & Education Services,Fostering Services,ART Independent Agency Foster,W1DE46,Supplies & Services           ,Services                      ,DF53,Task Based Fostering                    ,780,09/08/2015,Rev,THE NATIONAL FOSTERING AGENCY 
84,Childrens & Education Services,CS - Commiss'ing & Social Work,CL IndepAssess Expert Witness,W1DJ63,Supplies & Services           ,Services                      ,DF14,Doctors and Other Fees                  ,2309,13/08/2015,Rev,REDACTED
85,Central Services,SupS Legal,Sutton Legal                            ,E10293,Supplies & Services           ,Services                      ,DF14,Doctors and Other Fees                  ,1890,14/08/2015,Rev,TRIANGLE SERVICES LTD         
86,Childrens & Education Services,CS - Commiss'ing & Social Work,CL IndepAssess Expert Witness,W1DJ63,Supplies & Services           ,Services                      ,DF14,Doctors and Other Fees                  ,2012,16/08/2015,Rev,REDACTED
87,Cultural Env Reg&Plan Services,Parks & Open Spaces,"Pks,Rec Grds (Unloc)",P05005,Premises Related Expenditure  ,Ground Maintenance Costs      ,BL50,TREE WORK & CONSERVATION                ,7050,17/08/2015,Rev,ADVANCED TREE SERVICES LTD    
88,Central Services,SupS Health & Safety,Learning and Development,B06146,Employees                     ,Indirect Employee Expenses    ,AB57,EXTERNAL TRAINING COSTS                 ,600,21/08/2015,Rev,CHRISTINE GRAHAM CONSULTANCY  
89,Childrens & Education Services,Leaving Care Services,CL Setting Up Home Allowance,W1DF41,Third Party Payments          ,Private Contractors           ,EH01,Miscellaneous Agency Services           ,1174.8,21/08/2015,Rev,THE ARTEMIS TEAM LIMITED      
90,Childrens & Education Services,Sch Meals & Milk-Not Delegated,Free School Meals,K90002,Supplies & Services           ,Grants and Subscriptions      ,DJ80,Free School Meals                       ,121781.38,21/08/2015,Rev,ISS COLLECTIONS LTD           
91,Central Services,SupS Legal,Achieving for Children (AFC),E10295,Supplies & Services           ,Services                      ,DF11,Counsel's Fees                          ,520,25/08/2015,Rev,REDACTED
92,Childrens & Education Services,Other - Other Ch & Fam,CS Short Breaks Day Care                ,W1CA34,Third Party Payments          ,Private Contractors           ,EH01,Miscellaneous Contrct Services          ,526.5,25/08/2015,Rev,LITTLE CATERPILLARS PLAYGROUP 
93,Central Services,SupS Legal,Sutton Legal                            ,E10293,Supplies & Services           ,Services                      ,DF11,Counsel's Fees                          ,1410,25/08/2015,Rev,REDACTED
94,Childrens & Education Services,Family - Other Services,CS SWD Personal support                 ,W1CF49,Third Party Payments          ,Private Contractors           ,EH01,Miscellaneous Contrct Services          ,1512,25/08/2015,Rev,CARESTAFF SOLUTIONS           
95,Childrens & Education Services,Chidren's Homes,ART Residential Placements,W1DE57,Third Party Payments          ,Private Contractors           ,EH01,Miscellaneous Agency Services           ,1607.45,25/08/2015,Rev,REDACTED
96,Childrens & Education Services,Chidren's Homes,ART Residential Placements,W1DE57,Third Party Payments          ,Private Contractors           ,EH01,Miscellaneous Agency Services           ,1607.45,25/08/2015,Rev,REDACTED
97,Childrens & Education Services,Chidren's Homes,ART Residential Placements,W1DE57,Third Party Payments          ,Private Contractors           ,EH01,Miscellaneous Agency Services           ,1607.45,25/08/2015,Rev,REDACTED
98,Childrens & Education Services,Chidren's Homes,ART Residential Placements,W1DE57,Third Party Payments          ,Private Contractors           ,EH01,Miscellaneous Agency Services           ,1607.45,25/08/2015,Rev,REDACTED
99,Childrens & Education Services,Chidren's Homes,ART Residential Placements,W1DE57,Third Party Payments          ,Private Contractors           ,EH01,Miscellaneous Agency Services           ,1607.45,25/08/2015,Rev,REDACTED
100,Childrens & Education Services,Chidren's Homes,ART Residential Placements,W1DE57,Third Party Payments          ,Private Contractors           ,EH01,Miscellaneous Agency Services           ,1607.45,25/08/2015,Rev,REDACTED
101,Childrens & Education Services,Chidren's Homes,ART Residential Placements,W1DE57,Third Party Payments          ,Private Contractors           ,EH01,Miscellaneous Agency Services           ,1607.45,25/08/2015,Rev,REDACTED
102,Childrens & Education Services,Chidren's Homes,ART Residential Placements,W1DE57,Third Party Payments          ,Private Contractors           ,EH01,Miscellaneous Agency Services           ,1607.45,25/08/2015,Rev,REDACTED
103,Childrens & Education Services,Chidren's Homes,ART Residential Placements,W1DE57,Third Party Payments          ,Private Contractors           ,EH01,Miscellaneous Agency Services           ,1607.45,25/08/2015,Rev,REDACTED
104,Childrens & Education Services,Chidren's Homes,ART Residential Placements,W1DE57,Third Party Payments          ,Private Contractors           ,EH01,Miscellaneous Agency Services           ,1607.45,25/08/2015,Rev,REDACTED
105,Childrens & Education Services,Chidren's Homes,ART Residential Placements,W1DE57,Third Party Payments          ,Private Contractors           ,EH01,Miscellaneous Agency Services           ,1607.45,25/08/2015,Rev,REDACTED
106,Childrens & Education Services,Chidren's Homes,ART Residential Placements,W1DE57,Third Party Payments          ,Private Contractors           ,EH01,Miscellaneous Agency Services           ,1607.45,25/08/2015,Rev,REDACTED
107,Central Services,SupS Legal,Sutton Legal                            ,E10293,Supplies & Services           ,Services                      ,DF95,Services from Provider                  ,2760,26/08/2015,Rev,THE CO-OPERATIVE LEGAL SERVICE
108,Childrens & Education Services,Support for SEN Pupils,ART SEN Residential (DSG),K90050,Third Party Payments          ,Other Establishments          ,EG51,Ind Resid Schs Payments                 ,8497,28/08/2015,Rev,MARY HARE GRAMMAR SCHOOL      
109,Childrens & Education Services,Family - Other Services,CS SWD Personal support                 ,W1CF49,Third Party Payments          ,Private Contractors           ,EH01,Miscellaneous Contrct Services          ,-1167.2,30/08/2015,Rev,FOCUSED HEALTHCARE LIMITED    
110,Childrens & Education Services,Family - Other Services,CS SWD Personal support                 ,W1CF49,Third Party Payments          ,Private Contractors           ,EH01,Miscellaneous Contrct Services          ,-583.6,30/08/2015,Rev,FOCUSED HEALTHCARE LIMITED    
111,Childrens & Education Services,Family - Other Services,CS SWD Personal support                 ,W1CF49,Third Party Payments          ,Private Contractors           ,EH01,Miscellaneous Contrct Services          ,1167.2,30/08/2015,Rev,FOCUSED HEALTHCARE LIMITED    
112,Childrens & Education Services,Family - Other Services,CS SWD Personal support                 ,W1CF49,Third Party Payments          ,Private Contractors           ,EH01,Miscellaneous Contrct Services          ,1167.2,30/08/2015,Rev,FOCUSED HEALTHCARE LIMITED    
113,Childrens & Education Services,Family - Other Services,CS SWD Personal support                 ,W1CF49,Third Party Payments          ,Private Contractors           ,EH01,Miscellaneous Contrct Services          ,1167.2,30/08/2015,Rev,FOCUSED HEALTHCARE LIMITED    
114,Childrens & Education Services,Family - Other Services,CS SWD Personal support                 ,W1CF49,Third Party Payments          ,Private Contractors           ,EH01,Miscellaneous Contrct Services          ,1167.2,30/08/2015,Rev,FOCUSED HEALTHCARE LIMITED    
115,Childrens & Education Services,Family - Other Services,CS SWD Personal support                 ,W1CF49,Third Party Payments          ,Private Contractors           ,EH01,Miscellaneous Contrct Services          ,1167.2,30/08/2015,Rev,FOCUSED HEALTHCARE LIMITED    
116,Childrens & Education Services,Family - Other Services,CS SWD Personal support                 ,W1CF49,Third Party Payments          ,Private Contractors           ,EH01,Miscellaneous Contrct Services          ,1167.2,30/08/2015,Rev,FOCUSED HEALTHCARE LIMITED    
117,Childrens & Education Services,Family - Other Services,CS SWD Personal support                 ,W1CF49,Third Party Payments          ,Private Contractors           ,EH01,Miscellaneous Contrct Services          ,1167.2,30/08/2015,Rev,FOCUSED HEALTHCARE LIMITED    
118,Central Services,SupS Chief Execs,Local Involvement Network,A01039,Third Party Payments          ,Private Contractors           ,EH10,Contract Payments                       ,876,31/08/2015,Rev,VOICEABILITY                  
119,Housing Services,Bed / breakfast accommodation,TEMPORARY ACCOMMODATION,N47160,Third Party Payments          ,Private Contractors           ,EH01,Miscellaneous Agency Services           ,4457,31/08/2015,Rev,FINEFAIR LTD                  
120,Childrens & Education Services,Asset Management,PFI Unitary Charges,K03023,Third Party Payments          ,Private Contractors           ,EH10,Contract Payments                       ,-1711.9,01/09/2015,Rev,NEWSCHOOLS (MERTON) LIMITED   
121,Childrens & Education Services,Statutory & Regulatory Duties,Senior Mngt & Support Services,K01005,Supplies & Services           ,Services                      ,DF11,Counsel's Fees                          ,787.5,01/09/2015,Rev,REDACTED
122,Housing Services,Bed / breakfast accommodation,TEMPORARY ACCOMMODATION,N47160,Third Party Payments          ,Private Contractors           ,EH01,Miscellaneous Agency Services           ,1705,01/09/2015,Rev,CROMWOOD HOUSING              
123,Housing Services,Bed / breakfast accommodation,TEMPORARY ACCOMMODATION,N47160,Third Party Payments          ,Private Contractors           ,EH01,Miscellaneous Agency Services           ,2917,01/09/2015,Rev,RENT CONNECT LLP              
124,Central Services,SupS Legal,Shared Legal Service,E10288,Supplies & Services           ,Equip Furniture/Materials     ,DA09,Equip-Purchases                         ,770.78,03/09/2015,Rev,UNIQUE OFFICE SOLUTIONS LTD   
125,Childrens & Education Services,Behavioural Support,Sensory Team,K90026,Supplies & Services           ,Services                      ,DF73,Advocacy & Mentoring Service            ,1434.53,04/09/2015,Rev,MERTON VISION                 
126,Adult Social Care,SS Management & Administration,Transformation Project,W3XB00,Supplies & Services           ,Services                      ,DF03,Consultants                             ,6037.5,04/09/2015,Rev,NEPRO                         
127,Childrens & Education Services,Strategic Management,CSF Buildings,E02256,Premises Related Expenditure  ,RepairsAlterations&MtceOfBldgs,BA01,DDM - General Building                  ,600,07/09/2015,Rev,HYDRO-CLEANSING LTD           
128,Central Services,SupS Legal,Achieving for Children (AFC),E10295,Supplies & Services           ,Services                      ,DF11,Counsel's Fees                          ,2013.75,10/09/2015,Rev,REDACTED
129,Public Health,PH - Sexual Health,PH � STI Testing and Treatment          ,WPHS02,Supplies & Services           ,Public Health Subjectives,DQ04,GUM                                     ,8449,10/09/2015,Rev,GUY'S & ST THOMAS' NHS FND'TN 
130,Cultural Env Reg&Plan Services,Economic Dev (Not separated),Capt Ambition-Suburban Opprt Z,H01231,Supplies & Services           ,Equip Furniture/Materials     ,DA09,Equip-Purchases                         ,10315.2,10/09/2015,Rev,GAVIN KENNING ENGINEERING LTD 
131,Central Services,SupS Env and Regen,LBR - Pollution                         ,G01004,Supplies & Services           ,Equip Furniture/Materials     ,DA09,Equip-Purchases                         ,520,11/09/2015,Rev,ENVIRO TECHNOLOGY SERVICES PLC
132,Cultural Env Reg&Plan Services,Economic Dev (Not separated),Capt Ambition-Suburban Opprt Z,H01231,Supplies & Services           ,Grants and Subscriptions      ,DJ04,Subscriptions                           ,4000,11/09/2015,Rev,SPACEHIVE                     
133,Adult Social Care,SS IT & Coms,FS Carefirst annual sys costs,W3YA01,Supplies & Services           ,Grants and Subscriptions      ,DJ01,Grants                                  ,7329.95,11/09/2015,Rev,RETHINK (FORRESTERS)          
134,Cultural Env Reg&Plan Services,Comm Safety (Crime Reduction),Crime and Strategy Team,A01100,Third Party Payments          ,Private Contractors           ,EH02,Miscellaneous Hired Services            ,2000,15/09/2015,Rev,VICTIM SUPPORT                
135,Cultural Env Reg&Plan Services,Comm Safety (Crime Reduction),Crime and Strategy Team,A01100,Third Party Payments          ,Private Contractors           ,EH02,Miscellaneous Hired Services            ,55000,15/09/2015,Rev,VICTIM SUPPORT                
136,CS -Oth Operating Inc & Expend,T/A Vehicle Maintenance etc,Vehicle Workshops,J01378,Transport Related Expenditure ,Direct Transport Costs        ,CA72,Vehicle Parts                           ,723.97,16/09/2015,Rev,DENNIS EAGLE LIMITED          
137,Childrens & Education Services,Asset Management,S106 Bid,K08077,Supplies & Services           ,Services                      ,DF09,Miscellaneous Fees                      ,2731.2,17/09/2015,Rev,DAVID LOCK ASSOCIATES LTD     
138,Childrens & Education Services,Support for SEN Pupils,Non-Delegated Statements,K90024,Supplies & Services           ,Services                      ,DF09,Miscellaneous Fees                      ,6111,17/09/2015,Rev,PERSEID SCHOOL                
139,Adult Social Care,LD u65 Residentl Care Placemnt,LD Residential Care External,W2KB55,Third Party Payments          ,Private Contractors           ,EH01,Miscellaneous Agency Services           ,536.87,18/09/2015,Rev,WHITMORE VALE HOUSING ASS LTD 
140,Adult Social Care,LD u65 Residentl Care Placemnt,LD Residential Care External,W2KB55,Third Party Payments          ,Private Contractors           ,EH01,Miscellaneous Agency Services           ,536.87,18/09/2015,Rev,WHITMORE VALE HOUSING ASS LTD 
141,Adult Social Care,LD u65 Residentl Care Placemnt,LD Residential Care External,W2KB55,Third Party Payments          ,Private Contractors           ,EH01,Miscellaneous Agency Services           ,536.87,18/09/2015,Rev,WHITMORE VALE HOUSING ASS LTD 
142,Adult Social Care,LD u65 Residentl Care Placemnt,LD Residential Care External,W2KB55,Third Party Payments          ,Private Contractors           ,EH01,Miscellaneous Agency Services           ,536.87,18/09/2015,Rev,WHITMORE VALE HOUSING ASS LTD 
143,Adult Social Care,LD u65 Residentl Care Placemnt,LD Residential Care External,W2KB55,Third Party Payments          ,Private Contractors           ,EH01,Miscellaneous Agency Services           ,536.87,18/09/2015,Rev,WHITMORE VALE HOUSING ASS LTD 
144,Adult Social Care,LD u65 Residentl Care Placemnt,LD Residential Care External,W2KB55,Third Party Payments          ,Private Contractors           ,EH01,Miscellaneous Agency Services           ,536.87,18/09/2015,Rev,WHITMORE VALE HOUSING ASS LTD 
145,Adult Social Care,LD u65 Residentl Care Placemnt,LD Residential Care External,W2KB55,Third Party Payments          ,Private Contractors           ,EH01,Miscellaneous Agency Services           ,536.87,18/09/2015,Rev,WHITMORE VALE HOUSING ASS LTD 
146,Adult Social Care,LD u65 Residentl Care Placemnt,LD Residential Care External,W2KB55,Third Party Payments          ,Private Contractors           ,EH01,Miscellaneous Agency Services           ,536.87,18/09/2015,Rev,WHITMORE VALE HOUSING ASS LTD 
147,Adult Social Care,LD u65 Residentl Care Placemnt,LD Residential Care External,W2KB55,Third Party Payments          ,Private Contractors           ,EH01,Miscellaneous Agency Services           ,536.87,18/09/2015,Rev,WHITMORE VALE HOUSING ASS LTD 
148,Adult Social Care,LD u65 Residentl Care Placemnt,LD Residential Care External,W2KB55,Third Party Payments          ,Private Contractors           ,EH01,Miscellaneous Agency Services           ,536.87,18/09/2015,Rev,WHITMORE VALE HOUSING ASS LTD 
149,Adult Social Care,LD u65 Residentl Care Placemnt,LD Residential Care External,W2KB55,Third Party Payments          ,Private Contractors           ,EH01,Miscellaneous Agency Services           ,536.87,18/09/2015,Rev,WHITMORE VALE HOUSING ASS LTD 
150,Adult Social Care,LD u65 Residentl Care Placemnt,LD Residential Care External,W2KB55,Third Party Payments          ,Private Contractors           ,EH01,Miscellaneous Agency Services           ,536.87,18/09/2015,Rev,WHITMORE VALE HOUSING ASS LTD 
151,Adult Social Care,LD u65 Residentl Care Placemnt,LD Residential Care External,W2KB55,Third Party Payments          ,Private Contractors           ,EH01,Miscellaneous Agency Services           ,536.87,18/09/2015,Rev,WHITMORE VALE HOUSING ASS LTD 
152,Childrens & Education Services,Support for SEN Pupils,Non-Delegated Statements,K90024,Supplies & Services           ,Services                      ,DF09,Miscellaneous Fees                      ,1360,19/09/2015,Rev,PERSEID SCHOOL                
153,Adult Social Care,OP 65&Over NursingCarePlacemts,OP R/Park - Nursing Care,W2LR53,Third Party Payments          ,Private Contractors           ,EH01,Miscellaneous Agency Services           ,-750,21/09/2015,Rev,BARONS LODGE NURSING HOME     
154,Childrens & Education Services,,ART Residential Secure accommo,W1DE58,Third Party Payments          ,Private Contractors           ,EH17,Supported Lodgings                      ,728.48,21/09/2015,Rev,NETPEX LTD                    
155,Adult Social Care,OP 65&Over NursingCarePlacemts,OP R/Park - Nursing Care,W2LR53,Third Party Payments          ,Private Contractors           ,EH01,Miscellaneous Agency Services           ,750,21/09/2015,Rev,BARONS LODGE NURSING HOME     
156,Childrens & Education Services,,ART Residential Secure accommo,W1DE58,Third Party Payments          ,Private Contractors           ,EH17,Supported Lodgings                      ,850,21/09/2015,Rev,NETPEX LTD                    
157,Childrens & Education Services,,ART Residential Secure accommo,W1DE58,Third Party Payments          ,Private Contractors           ,EH17,Supported Lodgings                      ,850,21/09/2015,Rev,NETPEX LTD                    
158,Childrens & Education Services,,ART Residential Secure accommo,W1DE58,Third Party Payments          ,Private Contractors           ,EH17,Supported Lodgings                      ,850,21/09/2015,Rev,NETPEX LTD                    
159,Childrens & Education Services,,ART Residential Secure accommo,W1DE58,Third Party Payments          ,Private Contractors           ,EH17,Supported Lodgings                      ,850,21/09/2015,Rev,NETPEX LTD                    
160,Childrens & Education Services,,ART Residential Secure accommo,W1DE58,Third Party Payments          ,Private Contractors           ,EH01,Miscellaneous Agency Services           ,850,21/09/2015,Rev,NETPEX LTD                    
161,Childrens & Education Services,,ART Residential Secure accommo,W1DE58,Third Party Payments          ,Private Contractors           ,EH01,Miscellaneous Agency Services           ,850,21/09/2015,Rev,NETPEX LTD                    
162,Childrens & Education Services,,ART Residential Secure accommo,W1DE58,Third Party Payments          ,Private Contractors           ,EH01,Miscellaneous Agency Services           ,850,21/09/2015,Rev,NETPEX LTD                    
163,Childrens & Education Services,,ART Residential Secure accommo,W1DE58,Third Party Payments          ,Private Contractors           ,EH01,Miscellaneous Agency Services           ,850,21/09/2015,Rev,NETPEX LTD                    
164,Adult Social Care,OP 65&Over NursingCarePlacemts,OP R/Park - Nursing Care,W2LR53,Third Party Payments          ,Private Contractors           ,EH01,Miscellaneous Agency Services           ,875,21/09/2015,Rev,BARONS LODGE NURSING HOME     
165,Adult Social Care,OP 65&Over NursingCarePlacemts,OP R/Park - Nursing Care,W2LR53,Third Party Payments          ,Private Contractors           ,EH01,Miscellaneous Agency Services           ,875,21/09/2015,Rev,BARONS LODGE NURSING HOME     
166,Adult Social Care,OP 65&Over NursingCarePlacemts,OP R/Park - Nursing Care,W2LR53,Third Party Payments          ,Private Contractors           ,EH01,Miscellaneous Agency Services           ,875,21/09/2015,Rev,BARONS LODGE NURSING HOME     
167,Adult Social Care,OP 65&Over NursingCarePlacemts,OP R/Park - Nursing Care,W2LR53,Third Party Payments          ,Private Contractors           ,EH01,Miscellaneous Agency Services           ,875,21/09/2015,Rev,BARONS LODGE NURSING HOME     
168,Adult Social Care,OP 65&Over NursingCarePlacemts,OP R/Park - Nursing Care,W2LR53,Third Party Payments          ,Private Contractors           ,EH01,Miscellaneous Agency Services           ,875,21/09/2015,Rev,BARONS LODGE NURSING HOME     
169,Adult Social Care,OP 65&Over NursingCarePlacemts,OP R/Park - Nursing Care,W2LR53,Third Party Payments          ,Private Contractors           ,EH01,Miscellaneous Agency Services           ,875,21/09/2015,Rev,BARONS LODGE NURSING HOME     
170,Adult Social Care,OP 65&Over NursingCarePlacemts,OP R/Park - Nursing Care,W2LR53,Third Party Payments          ,Private Contractors           ,EH01,Miscellaneous Agency Services           ,875,21/09/2015,Rev,BARONS LODGE NURSING HOME     
171,Adult Social Care,OP 65&Over NursingCarePlacemts,OP R/Park - Nursing Care,W2LR53,Third Party Payments          ,Private Contractors           ,EH01,Miscellaneous Agency Services           ,875,21/09/2015,Rev,BARONS LODGE NURSING HOME     
172,Childrens & Education Services,Services for Under 8s,CS Family Support at Bond Road,W1CD00,Supplies & Services           ,Services                      ,DF14,Doctors and Other Fees                  ,720.7,22/09/2015,Rev,UBIQUS UK LTD                 
173,Childrens & Education Services,Other - Other Ch & Fam,CS Short Breaks Day Care                ,W1CA34,Third Party Payments          ,Private Contractors           ,EH01,Miscellaneous Contrct Services          ,960,23/09/2015,Rev,CHEAM COMMON JUNIOR SCHOOL    
174,Childrens & Education Services,Support for SEN Pupils,ART SEN Residential (DSG),K90050,Third Party Payments          ,Other Establishments          ,EG51,Ind Resid Schs Payments                 ,58542,23/09/2015,Rev,THE MULBERRY BUSH ORGANISATION
175,Central Services,SupS Legal,Sutton Legal                            ,E10293,Supplies & Services           ,Services                      ,DF11,Counsel's Fees                          ,950,24/09/2015,Rev,REDACTED
176,Highways & Transport Services,Street Lighting.,Street Lighting .,G00260,Third Party Payments          ,Private Contractors           ,EH01,Miscellaneous Agency Services           ,1124,24/09/2015,Rev,UK POWER NETWORKS (OPERATIONS)
177,Cultural Env Reg&Plan Services,Library DoS not split,Peoples Network Project (NOF),L83078,Supplies & Services           ,Comms and Computing           ,DG15,Network Maintenance                     ,5000,24/09/2015,Rev,LORENSBERGS LIMITED           
178,Childrens & Education Services,Support for SEN Pupils,ART SEN Residential (DSG),K90050,Third Party Payments          ,Other Establishments          ,EG51,Ind Resid Schs Payments                 ,20053,24/09/2015,Rev,ST JOSEPHS SCHOOL             
179,Public Health,PH - Sexual Health,PH � STI Testing and Treatment          ,WPHS02,Supplies & Services           ,Public Health Subjectives,DQ04,GUM                                     ,87434.03,24/09/2015,Rev,ST GEORGES HEALTHCARE TRUST   
180,Adult Social Care,SS Management & Administration,DS Directorate SSM Costs,W3XA00,Supplies & Services           ,Expenses                      ,DH50,Special Projects                        ,11252,25/09/2015,Rev,NHS MERTON CCG                
181,Adult Social Care,SS Management & Administration,DS Directorate SSM Costs,W3XA00,Supplies & Services           ,Services                      ,DF03,Consultants                             ,20160,25/09/2015,Rev,NHS MERTON CCG                
182,Childrens & Education Services,CS - Commiss'ing & Social Work,SG & CP T2 Section 17                   ,W1FC38,Transfer Payments             ,Schoolchildren/Students       ,FF02,Childr Act 1989 S17                     ,610,28/09/2015,Rev,JIGSAW4U                      
183,CS -Oth Operating Inc & Expend,T/A Vehicle Maintenance etc,Transport-Contract Hire,J01374,Transport Related Expenditure ,Contract Hire and Op Leasing  ,CC53,Plant Hire for MRCS                     ,610,29/09/2015,Rev,PFB HIRE LTD                  
184,Cultural Env Reg&Plan Services,Housing Standards,Housing/Env,G00730,Supplies & Services           ,Equip Furniture/Materials     ,DA02,Op. Leasing Equipment                   ,1557.83,29/09/2015,Rev,MARTIN CRANFIELD ASSOCIATES LT
185,Cultural Env Reg&Plan Services,Civic Amenity Sites,Garth Road Site,G00580,Third Party Payments          ,Private Contractors           ,EH18,SLWP C3 Food Waste Gate Fees            ,8698.26,29/09/2015,Rev,KINGSTON CORPORATION          
186,Cultural Env Reg&Plan Services,Civic Amenity Sites,Garth Road Site,G00580,Third Party Payments          ,Private Contractors           ,EH61,Green Waste Disposal                    ,15301.11,29/09/2015,Rev,KINGSTON CORPORATION          
187,Adult Social Care,OP 65&Over NursingCarePlacemts,OP R/Park - Nursing Care,W2LR53,Third Party Payments          ,Private Contractors           ,EH01,Miscellaneous Agency Services           ,-750,30/09/2015,Rev,BARONS LODGE NURSING HOME     
188,Adult Social Care,OP 65&Over NursingCarePlacemts,OP R/Park - Nursing Care,W2LR53,Third Party Payments          ,Private Contractors           ,EH01,Miscellaneous Agency Services           ,750,30/09/2015,Rev,BARONS LODGE NURSING HOME     
189,Childrens & Education Services,Fostering Services,ART Independent Agency Foster,W1DE46,Supplies & Services           ,Services                      ,DF53,Task Based Fostering                    ,779.03,30/09/2015,Rev,SYNERGY FOSTERING LTD         
190,Adult Social Care,OP 65&Over NursingCarePlacemts,OP R/Park - Nursing Care,W2LR53,Third Party Payments          ,Private Contractors           ,EH01,Miscellaneous Agency Services           ,875,30/09/2015,Rev,BARONS LODGE NURSING HOME     
191,Adult Social Care,OP 65&Over NursingCarePlacemts,OP R/Park - Nursing Care,W2LR53,Third Party Payments          ,Private Contractors           ,EH01,Miscellaneous Agency Services           ,875,30/09/2015,Rev,BARONS LODGE NURSING HOME     
192,Adult Social Care,OP 65&Over NursingCarePlacemts,OP R/Park - Nursing Care,W2LR53,Third Party Payments          ,Private Contractors           ,EH01,Miscellaneous Agency Services           ,875,30/09/2015,Rev,BARONS LODGE NURSING HOME     
193,Adult Social Care,OP 65&Over NursingCarePlacemts,OP R/Park - Nursing Care,W2LR53,Third Party Payments          ,Private Contractors           ,EH01,Miscellaneous Agency Services           ,875,30/09/2015,Rev,BARONS LODGE NURSING HOME     
194,Childrens & Education Services,Fostering Services,ART Independent Agency Foster,W1DE46,Supplies & Services           ,Services                      ,DF53,Task Based Fostering                    ,945.88,30/09/2015,Rev,SYNERGY FOSTERING LTD         
195,Central Services,SupS Chief Execs,Local Involvement Network,A01039,Third Party Payments          ,Private Contractors           ,EH10,Contract Payments                       ,1004,30/09/2015,Rev,VOICEABILITY                  
196,Housing Services,Bed / breakfast accommodation,TEMPORARY ACCOMMODATION,N47160,Third Party Payments          ,Private Contractors           ,EH01,Miscellaneous Agency Services           ,1613,30/09/2015,Rev,FINEFAIR LTD                  
197,Central Services,SupS Strategic Finance,Business Planning,E06221,Employees                     ,Direct Employee Expenses      ,AA17,Agency Staff & Casual Paymts            ,1750,30/09/2015,Rev,HAYS RECRUITING EXPERTS       
198,Central Services,SupS IT,Systems & Projects,E14366,Supplies & Services           ,Comms and Computing           ,DG65,Application Licences                    ,2000,30/09/2015,Rev,OLM SYSTEMS                   
199,Central Services,SupS Comm and Member Services,COMMERICIAL SERVICES,A04085,Employees                     ,Direct Employee Expenses      ,AA17,Agency Staff & Casual Paymts            ,2712,30/09/2015,Rev,HAYS RECRUITING EXPERTS       
200,Adult Social Care,SS IT & Coms,FS Carefirst annual sys costs,W3YA01,Supplies & Services           ,Comms and Computing           ,DG07,Computer Software                       ,4824.18,30/09/2015,Rev,CM2000 CARE MONITORING LTD    
201,Highways & Transport Services,Safe routes inc schl x patrol,DFT Inclusive Mobility,G00323,Supplies & Services           ,Services                      ,DF05,Surveys (General)                       ,10345,30/09/2015,Rev,HAVERSTOCK ASSOCIATES LLP     
202,Central Services,SupS IT,BI IT Projects,E14360,Supplies & Services           ,Comms and Computing           ,DG02,Software Licences                       ,18600,30/09/2015,Rev,KOREC                         
203,Childrens & Education Services,Chidren's Homes,ART Residential Placements,W1DE57,Third Party Payments          ,Private Contractors           ,EH01,Miscellaneous Agency Services           ,-1538.57,01/10/2015,Rev,REDACTED
204,Childrens & Education Services,Chidren's Homes,ART Residential Placements,W1DE57,Third Party Payments          ,Private Contractors           ,EH01,Miscellaneous Agency Services           ,-1538.57,01/10/2015,Rev,REDACTED
205,Childrens & Education Services,Chidren's Homes,ART Residential Placements,W1DE57,Third Party Payments          ,Private Contractors           ,EH01,Miscellaneous Agency Services           ,-1538.57,01/10/2015,Rev,REDACTED
206,Childrens & Education Services,Chidren's Homes,ART Residential Placements,W1DE57,Third Party Payments          ,Private Contractors           ,EH01,Miscellaneous Agency Services           ,-1538.57,01/10/2015,Rev,REDACTED
207,Housing Services,Bed / breakfast accommodation,TEMPORARY ACCOMMODATION,N47160,Third Party Payments          ,Private Contractors           ,EH01,Miscellaneous Agency Services           ,520,01/10/2015,Rev,FASTMOVE PROPERTIES           
208,Housing Services,Bed / breakfast accommodation,TEMPORARY ACCOMMODATION,N47160,Third Party Payments          ,Private Contractors           ,EH01,Miscellaneous Agency Services           ,600,01/10/2015,Rev,ASSETGROVE LETTINGS LTD       
209,Central Services,Council tax collection,Local Taxation Services,E02100,Third Party Payments          ,Private Contractors           ,EH01,Miscellaneous Agency Services           ,624.48,01/10/2015,Rev,COMMERCIAL COLLECTION SERVICES
210,Housing Services,Bed / breakfast accommodation,TEMPORARY ACCOMMODATION,N47160,Third Party Payments          ,Private Contractors           ,EH01,Miscellaneous Agency Services           ,1209,01/10/2015,Rev,FASTMOVE PROPERTIES           
211,Childrens & Education Services,Leaving Care Services,CL Setting Up Home Allowance,W1DF41,Third Party Payments          ,Private Contractors           ,EH01,Miscellaneous Agency Services           ,1215.8,01/10/2015,Rev,THE ARTEMIS TEAM LIMITED      
212,Adult Social Care,LD u65 Residentl Care Placemnt,LD Residential Care External,W2KB55,Third Party Payments          ,Private Contractors           ,EH01,Miscellaneous Agency Services           ,1236.52,01/10/2015,Rev,THORNBECK COLLEGE             
213,Adult Social Care,LD u65 Residentl Care Placemnt,LD Residential Care External,W2KB55,Third Party Payments          ,Private Contractors           ,EH01,Miscellaneous Agency Services           ,1236.52,01/10/2015,Rev,THORNBECK COLLEGE             
214,Adult Social Care,LD u65 Residentl Care Placemnt,LD Residential Care External,W2KB55,Third Party Payments          ,Private Contractors           ,EH01,Miscellaneous Agency Services           ,1236.52,01/10/2015,Rev,THORNBECK COLLEGE             
215,Adult Social Care,LD u65 Residentl Care Placemnt,LD Residential Care External,W2KB55,Third Party Payments          ,Private Contractors           ,EH01,Miscellaneous Agency Services           ,1236.52,01/10/2015,Rev,THORNBECK COLLEGE             
216,Housing Services,Bed / breakfast accommodation,TEMPORARY ACCOMMODATION,N47160,Third Party Payments          ,Private Contractors           ,EH01,Miscellaneous Agency Services           ,1650,01/10/2015,Rev,CROMWOOD HOUSING              
217,Housing Services,Bed / breakfast accommodation,TEMPORARY ACCOMMODATION,N47160,Third Party Payments          ,Private Contractors           ,EH01,Miscellaneous Agency Services           ,1658.5,01/10/2015,Rev,FASTMOVE PROPERTIES           
218,Housing Services,Bed / breakfast accommodation,TEMPORARY ACCOMMODATION,N47160,Third Party Payments          ,Private Contractors           ,EH01,Miscellaneous Agency Services           ,1950,01/10/2015,Rev,ASSETGROVE LETTINGS LTD       
219,Housing Services,Bed / breakfast accommodation,TEMPORARY ACCOMMODATION,N47160,Third Party Payments          ,Private Contractors           ,EH01,Miscellaneous Agency Services           ,2170,01/10/2015,Rev,FASTMOVE PROPERTIES           
220,Childrens & Education Services,Chidren's Homes,ART Residential Placements,W1DE57,Third Party Payments          ,Private Contractors           ,EH01,Miscellaneous Agency Services           ,3590,01/10/2015,Rev,REDACTED
221,Childrens & Education Services,Chidren's Homes,ART Residential Placements,W1DE57,Third Party Payments          ,Private Contractors           ,EH01,Miscellaneous Agency Services           ,3590,01/10/2015,Rev,REDACTED
222,Childrens & Education Services,Chidren's Homes,ART Residential Placements,W1DE57,Third Party Payments          ,Private Contractors           ,EH01,Miscellaneous Agency Services           ,3590,01/10/2015,Rev,REDACTED
223,Childrens & Education Services,Chidren's Homes,ART Residential Placements,W1DE57,Third Party Payments          ,Private Contractors           ,EH01,Miscellaneous Agency Services           ,3590,01/10/2015,Rev,REDACTED
224,Childrens & Education Services,Chidren's Homes,ART Residential Placements,W1DE57,Third Party Payments          ,Private Contractors           ,EH01,Miscellaneous Agency Services           ,3590,01/10/2015,Rev,REDACTED
225,Childrens & Education Services,Chidren's Homes,ART Residential Placements,W1DE57,Third Party Payments          ,Private Contractors           ,EH01,Miscellaneous Agency Services           ,3590,01/10/2015,Rev,REDACTED
226,Childrens & Education Services,Chidren's Homes,ART Residential Placements,W1DE57,Third Party Payments          ,Private Contractors           ,EH01,Miscellaneous Agency Services           ,3590,01/10/2015,Rev,REDACTED
227,Childrens & Education Services,Chidren's Homes,ART Residential Placements,W1DE57,Third Party Payments          ,Private Contractors           ,EH01,Miscellaneous Agency Services           ,3590,01/10/2015,Rev,REDACTED
228,Childrens & Education Services,Chidren's Homes,ART Residential Placements,W1DE57,Third Party Payments          ,Private Contractors           ,EH01,Miscellaneous Agency Services           ,3590,01/10/2015,Rev,REDACTED
229,Childrens & Education Services,Chidren's Homes,ART Residential Placements,W1DE57,Third Party Payments          ,Private Contractors           ,EH01,Miscellaneous Agency Services           ,3590,01/10/2015,Rev,REDACTED
230,Childrens & Education Services,Chidren's Homes,ART Residential Placements,W1DE57,Third Party Payments          ,Private Contractors           ,EH01,Miscellaneous Agency Services           ,3590,01/10/2015,Rev,REDACTED
231,Childrens & Education Services,Chidren's Homes,ART Residential Placements,W1DE57,Third Party Payments          ,Private Contractors           ,EH01,Miscellaneous Agency Services           ,3590,01/10/2015,Rev,REDACTED
232,Childrens & Education Services,Chidren's Homes,ART Residential Placements,W1DE57,Third Party Payments          ,Private Contractors           ,EH01,Miscellaneous Agency Services           ,3590,01/10/2015,Rev,REDACTED
233,Childrens & Education Services,Chidren's Homes,ART Residential Placements,W1DE57,Third Party Payments          ,Private Contractors           ,EH01,Miscellaneous Agency Services           ,3590,01/10/2015,Rev,REDACTED
234,Childrens & Education Services,Chidren's Homes,ART Residential Placements,W1DE57,Third Party Payments          ,Private Contractors           ,EH01,Miscellaneous Agency Services           ,3590,01/10/2015,Rev,REDACTED
235,Childrens & Education Services,Chidren's Homes,ART Residential Placements,W1DE57,Third Party Payments          ,Private Contractors           ,EH01,Miscellaneous Agency Services           ,3590,01/10/2015,Rev,REDACTED
236,Childrens & Education Services,Chidren's Homes,ART Residential Placements,W1DE57,Third Party Payments          ,Private Contractors           ,EH01,Miscellaneous Agency Services           ,3590,01/10/2015,Rev,REDACTED
237,Childrens & Education Services,Chidren's Homes,ART Residential Placements,W1DE57,Third Party Payments          ,Private Contractors           ,EH01,Miscellaneous Agency Services           ,3590,01/10/2015,Rev,REDACTED
238,Childrens & Education Services,Chidren's Homes,ART Residential Placements,W1DE57,Third Party Payments          ,Private Contractors           ,EH01,Miscellaneous Agency Services           ,3590,01/10/2015,Rev,REDACTED
239,Childrens & Education Services,Chidren's Homes,ART Residential Placements,W1DE57,Third Party Payments          ,Private Contractors           ,EH01,Miscellaneous Agency Services           ,3590,01/10/2015,Rev,REDACTED
240,Childrens & Education Services,Chidren's Homes,ART Residential Placements,W1DE57,Third Party Payments          ,Private Contractors           ,EH01,Miscellaneous Agency Services           ,3590,01/10/2015,Rev,REDACTED
241,Childrens & Education Services,Chidren's Homes,ART Residential Placements,W1DE57,Third Party Payments          ,Private Contractors           ,EH01,Miscellaneous Agency Services           ,3590,01/10/2015,Rev,REDACTED
242,Childrens & Education Services,Chidren's Homes,ART Residential Placements,W1DE57,Third Party Payments          ,Private Contractors           ,EH01,Miscellaneous Agency Services           ,3590,01/10/2015,Rev,REDACTED
243,Childrens & Education Services,Chidren's Homes,ART Residential Placements,W1DE57,Third Party Payments          ,Private Contractors           ,EH01,Miscellaneous Agency Services           ,3590,01/10/2015,Rev,REDACTED
244,Childrens & Education Services,Chidren's Homes,ART Residential Placements,W1DE57,Third Party Payments          ,Private Contractors           ,EH01,Miscellaneous Agency Services           ,3590,01/10/2015,Rev,REDACTED
245,Childrens & Education Services,Chidren's Homes,ART Residential Placements,W1DE57,Third Party Payments          ,Private Contractors           ,EH01,Miscellaneous Agency Services           ,3590,01/10/2015,Rev,REDACTED
246,Childrens & Education Services,Chidren's Homes,ART Residential Placements,W1DE57,Third Party Payments          ,Private Contractors           ,EH01,Miscellaneous Agency Services           ,3590,01/10/2015,Rev,REDACTED
247,Childrens & Education Services,Chidren's Homes,ART Residential Placements,W1DE57,Third Party Payments          ,Private Contractors           ,EH01,Miscellaneous Agency Services           ,3590,01/10/2015,Rev,REDACTED
248,Housing Services,Bed / breakfast accommodation,TEMPORARY ACCOMMODATION,N47160,Third Party Payments          ,Private Contractors           ,EH01,Miscellaneous Agency Services           ,3810,01/10/2015,Rev,RENT CONNECT LLP              
249,Central Services,SupS Chief Execs,Local Involvement Network,A01039,Third Party Payments          ,Private Contractors           ,EH10,Contract Payments                       ,10423.75,01/10/2015,Rev,MERTON VOLUNTARY SERV COUNCIL 
250,Childrens & Education Services,Support for SEN Pupils,Non-Delegated Statements,K90024,Third Party Payments          ,Other Establishments          ,EG50,Ind Day Schs Payments                   ,15157.88,01/10/2015,Rev,FACE YOUTH                    
251,Highways & Transport Services,Safe routes inc schl x patrol,School & Road Safety TFL                ,H01083,Supplies & Services           ,Equip Furniture/Materials     ,DA04,Materials                               ,544,02/10/2015,Rev,LOCK IT SAFE LTD              
252,,,Schs Cap Maint & Accessibility          ,CS080SD,New Construction Conversion and Renovation,,B4,Contractor - Site works                 ,1170,02/10/2015,Cap,WOODLAND COMMERCIAL LTD       
253,Childrens & Education Services,Support for SEN Pupils,Non-Delegated Statements,K90024,Third Party Payments          ,Other Local Authorities       ,EB50,OLA-Payments - Day Schools              ,4136.46,02/10/2015,Rev,ACHIEVING FOR CHILDREN LTD    
254,Adult Social Care,OP 65&Over Resi Care Placement,OP West - Residential Care Ext,W2LG55,Third Party Payments          ,Private Contractors           ,EH01,Miscellaneous Agency Services           ,507,04/10/2015,Rev,WOODLANDS                     
255,Adult Social Care,OP 65&Over Resi Care Placement,OP West - Residential Care Ext,W2LG55,Third Party Payments          ,Private Contractors           ,EH01,Miscellaneous Agency Services           ,507,04/10/2015,Rev,WOODLANDS                     
256,Adult Social Care,OP 65&Over Resi Care Placement,OP West - Residential Care Ext,W2LG55,Third Party Payments          ,Private Contractors           ,EH01,Miscellaneous Agency Services           ,507,04/10/2015,Rev,WOODLANDS                     
257,Adult Social Care,OP 65&Over Resi Care Placement,OP West - Residential Care Ext,W2LG55,Third Party Payments          ,Private Contractors           ,EH01,Miscellaneous Agency Services           ,507,04/10/2015,Rev,WOODLANDS                     
258,Adult Social Care,OP 65&Over Resi Care Placement,OP West - Residential Care Ext,W2LG55,Third Party Payments          ,Private Contractors           ,EH01,Miscellaneous Agency Services           ,507,04/10/2015,Rev,WOODLANDS                     
259,Adult Social Care,OP 65&Over Resi Care Placement,OP West - Residential Care Ext,W2LG55,Third Party Payments          ,Private Contractors           ,EH01,Miscellaneous Agency Services           ,507,04/10/2015,Rev,WOODLANDS                     
260,Adult Social Care,OP 65&Over Resi Care Placement,OP West - Residential Care Ext,W2LG55,Third Party Payments          ,Private Contractors           ,EH01,Miscellaneous Agency Services           ,507,04/10/2015,Rev,WOODLANDS                     
261,Adult Social Care,OP 65&Over Resi Care Placement,OP West - Residential Care Ext,W2LG55,Third Party Payments          ,Private Contractors           ,EH01,Miscellaneous Agency Services           ,507,04/10/2015,Rev,WOODLANDS                     
262,Adult Social Care,OP 65&Over Resi Care Placement,OP East - Residential Care Ext,W2LH55,Third Party Payments          ,Private Contractors           ,EH01,Miscellaneous Agency Services           ,507,04/10/2015,Rev,WOODLANDS                     
263,Adult Social Care,OP 65&Over Resi Care Placement,OP East - Residential Care Ext,W2LH55,Third Party Payments          ,Private Contractors           ,EH01,Miscellaneous Agency Services           ,507,04/10/2015,Rev,WOODLANDS                     
264,Adult Social Care,OP 65&Over Resi Care Placement,OP East - Residential Care Ext,W2LH55,Third Party Payments          ,Private Contractors           ,EH01,Miscellaneous Agency Services           ,507,04/10/2015,Rev,WOODLANDS                     
265,Adult Social Care,OP 65&Over Resi Care Placement,OP East - Residential Care Ext,W2LH55,Third Party Payments          ,Private Contractors           ,EH01,Miscellaneous Agency Services           ,507,04/10/2015,Rev,WOODLANDS                     
266,Adult Social Care,OP 65&Over Resi Care Placement,OP R/Park-Residential Care Ext,W2LR55,Third Party Payments          ,Private Contractors           ,EH01,Miscellaneous Agency Services           ,507,04/10/2015,Rev,WOODLANDS                     
267,Adult Social Care,OP 65&Over Resi Care Placement,OP R/Park-Residential Care Ext,W2LR55,Third Party Payments          ,Private Contractors           ,EH01,Miscellaneous Agency Services           ,507,04/10/2015,Rev,WOODLANDS                     
268,Adult Social Care,OP 65&Over Resi Care Placement,OP R/Park-Residential Care Ext,W2LR55,Third Party Payments          ,Private Contractors           ,EH01,Miscellaneous Agency Services           ,507,04/10/2015,Rev,WOODLANDS                     
269,Adult Social Care,OP 65&Over Resi Care Placement,OP R/Park-Residential Care Ext,W2LR55,Third Party Payments          ,Private Contractors           ,EH01,Miscellaneous Agency Services           ,507,04/10/2015,Rev,WOODLANDS                     
270,Adult Social Care,OP 65&Over Resi Care Placement,OP East - Residential Care Ext,W2LH55,Third Party Payments          ,Private Contractors           ,EH01,Miscellaneous Agency Services           ,524.22,04/10/2015,Rev,WOODLANDS                     
271,Adult Social Care,OP 65&Over Resi Care Placement,OP West - Residential Care Ext,W2LG55,Third Party Payments          ,Private Contractors           ,EH01,Miscellaneous Agency Services           ,587,04/10/2015,Rev,WOODLANDS                     
272,Adult Social Care,OP 65&Over Resi Care Placement,OP West - Residential Care Ext,W2LG55,Third Party Payments          ,Private Contractors           ,EH01,Miscellaneous Agency Services           ,587,04/10/2015,Rev,WOODLANDS                     
273,Adult Social Care,OP 65&Over Resi Care Placement,OP West - Residential Care Ext,W2LG55,Third Party Payments          ,Private Contractors           ,EH01,Miscellaneous Agency Services           ,587,04/10/2015,Rev,WOODLANDS                     
274,Adult Social Care,OP 65&Over Resi Care Placement,OP West - Residential Care Ext,W2LG55,Third Party Payments          ,Private Contractors           ,EH01,Miscellaneous Agency Services           ,587,04/10/2015,Rev,WOODLANDS                     
275,Adult Social Care,OP 65&Over Resi Care Placement,OP West - Residential Care Ext,W2LG55,Third Party Payments          ,Private Contractors           ,EH01,Miscellaneous Agency Services           ,587,04/10/2015,Rev,WOODLANDS                     
276,Adult Social Care,OP 65&Over Resi Care Placement,OP West - Residential Care Ext,W2LG55,Third Party Payments          ,Private Contractors           ,EH01,Miscellaneous Agency Services           ,587,04/10/2015,Rev,WOODLANDS                     
277,Adult Social Care,OP 65&Over Resi Care Placement,OP West - Residential Care Ext,W2LG55,Third Party Payments          ,Private Contractors           ,EH01,Miscellaneous Agency Services           ,587,04/10/2015,Rev,WOODLANDS                     
278,Adult Social Care,OP 65&Over Resi Care Placement,OP West - Residential Care Ext,W2LG55,Third Party Payments          ,Private Contractors           ,EH01,Miscellaneous Agency Services           ,587,04/10/2015,Rev,WOODLANDS                     
279,Adult Social Care,OP 65&Over Resi Care Placement,OP West - Residential Care Ext,W2LG55,Third Party Payments          ,Private Contractors           ,EH01,Miscellaneous Agency Services           ,587,04/10/2015,Rev,WOODLANDS                     
280,Adult Social Care,OP 65&Over Resi Care Placement,OP West - Residential Care Ext,W2LG55,Third Party Payments          ,Private Contractors           ,EH01,Miscellaneous Agency Services           ,587,04/10/2015,Rev,WOODLANDS                     
281,Adult Social Care,OP 65&Over Resi Care Placement,OP West - Residential Care Ext,W2LG55,Third Party Payments          ,Private Contractors           ,EH01,Miscellaneous Agency Services           ,587,04/10/2015,Rev,WOODLANDS                     
282,Adult Social Care,OP 65&Over Resi Care Placement,OP West - Residential Care Ext,W2LG55,Third Party Payments          ,Private Contractors           ,EH01,Miscellaneous Agency Services           ,587,04/10/2015,Rev,WOODLANDS                     
283,Adult Social Care,OP 65&Over Resi Care Placement,OP West - Residential Care Ext,W2LG55,Third Party Payments          ,Private Contractors           ,EH01,Miscellaneous Agency Services           ,587,04/10/2015,Rev,WOODLANDS                     
284,Adult Social Care,OP 65&Over Resi Care Placement,OP West - Residential Care Ext,W2LG55,Third Party Payments          ,Private Contractors           ,EH01,Miscellaneous Agency Services           ,587,04/10/2015,Rev,WOODLANDS                     
285,Adult Social Care,OP 65&Over Resi Care Placement,OP West - Residential Care Ext,W2LG55,Third Party Payments          ,Private Contractors           ,EH01,Miscellaneous Agency Services           ,587,04/10/2015,Rev,WOODLANDS                     
286,Adult Social Care,OP 65&Over Resi Care Placement,OP West - Residential Care Ext,W2LG55,Third Party Payments          ,Private Contractors           ,EH01,Miscellaneous Agency Services           ,587,04/10/2015,Rev,WOODLANDS                     
287,Adult Social Care,OP 65&Over Resi Care Placement,OP West - Residential Care Ext,W2LG55,Third Party Payments          ,Private Contractors           ,EH01,Miscellaneous Agency Services           ,587,04/10/2015,Rev,WOODLANDS                     
288,Adult Social Care,OP 65&Over Resi Care Placement,OP West - Residential Care Ext,W2LG55,Third Party Payments          ,Private Contractors           ,EH01,Miscellaneous Agency Services           ,587,04/10/2015,Rev,WOODLANDS                     
289,Adult Social Care,OP 65&Over Resi Care Placement,OP West - Residential Care Ext,W2LG55,Third Party Payments          ,Private Contractors           ,EH01,Miscellaneous Agency Services           ,587,04/10/2015,Rev,WOODLANDS                     
290,Adult Social Care,OP 65&Over Resi Care Placement,OP West - Residential Care Ext,W2LG55,Third Party Payments          ,Private Contractors           ,EH01,Miscellaneous Agency Services           ,587,04/10/2015,Rev,WOODLANDS                     
291,Adult Social Care,OP 65&Over Resi Care Placement,OP West - Residential Care Ext,W2LG55,Third Party Payments          ,Private Contractors           ,EH01,Miscellaneous Agency Services           ,587,04/10/2015,Rev,WOODLANDS                     
292,Adult Social Care,OP 65&Over Resi Care Placement,OP West - Residential Care Ext,W2LG55,Third Party Payments          ,Private Contractors           ,EH01,Miscellaneous Agency Services           ,587,04/10/2015,Rev,WOODLANDS                     
293,Adult Social Care,OP 65&Over Resi Care Placement,OP West - Residential Care Ext,W2LG55,Third Party Payments          ,Private Contractors           ,EH01,Miscellaneous Agency Services           ,587,04/10/2015,Rev,WOODLANDS                     
294,Adult Social Care,OP 65&Over Resi Care Placement,OP West - Residential Care Ext,W2LG55,Third Party Payments          ,Private Contractors           ,EH01,Miscellaneous Agency Services           ,587,04/10/2015,Rev,WOODLANDS                     
295,Adult Social Care,OP 65&Over Resi Care Placement,OP West - Residential Care Ext,W2LG55,Third Party Payments          ,Private Contractors           ,EH01,Miscellaneous Agency Services           ,587,04/10/2015,Rev,WOODLANDS                     
296,Adult Social Care,OP 65&Over Resi Care Placement,OP West - Residential Care Ext,W2LG55,Third Party Payments          ,Private Contractors           ,EH01,Miscellaneous Agency Services           ,587,04/10/2015,Rev,WOODLANDS                     
297,Adult Social Care,OP 65&Over Resi Care Placement,OP West - Residential Care Ext,W2LG55,Third Party Payments          ,Private Contractors           ,EH01,Miscellaneous Agency Services           ,587,04/10/2015,Rev,WOODLANDS                     
298,Adult Social Care,OP 65&Over Resi Care Placement,OP West - Residential Care Ext,W2LG55,Third Party Payments          ,Private Contractors           ,EH01,Miscellaneous Agency Services           ,587,04/10/2015,Rev,WOODLANDS                     
299,Adult Social Care,OP 65&Over Resi Care Placement,OP East - Residential Care Ext,W2LH55,Third Party Payments          ,Private Contractors           ,EH01,Miscellaneous Agency Services           ,587,04/10/2015,Rev,WOODLANDS                     
300,Adult Social Care,OP 65&Over Resi Care Placement,OP East - Residential Care Ext,W2LH55,Third Party Payments          ,Private Contractors           ,EH01,Miscellaneous Agency Services           ,587,04/10/2015,Rev,WOODLANDS                     
301,Adult Social Care,OP 65&Over Resi Care Placement,OP East - Residential Care Ext,W2LH55,Third Party Payments          ,Private Contractors           ,EH01,Miscellaneous Agency Services           ,587,04/10/2015,Rev,WOODLANDS                     
302,Adult Social Care,OP 65&Over Resi Care Placement,OP East - Residential Care Ext,W2LH55,Third Party Payments          ,Private Contractors           ,EH01,Miscellaneous Agency Services           ,587,04/10/2015,Rev,WOODLANDS                     
303,Adult Social Care,OP 65&Over Resi Care Placement,OP East - Residential Care Ext,W2LH55,Third Party Payments          ,Private Contractors           ,EH01,Miscellaneous Agency Services           ,587,04/10/2015,Rev,WOODLANDS                     
304,Adult Social Care,OP 65&Over Resi Care Placement,OP East - Residential Care Ext,W2LH55,Third Party Payments          ,Private Contractors           ,EH01,Miscellaneous Agency Services           ,587,04/10/2015,Rev,WOODLANDS                     
305,Adult Social Care,OP 65&Over Resi Care Placement,OP East - Residential Care Ext,W2LH55,Third Party Payments          ,Private Contractors           ,EH01,Miscellaneous Agency Services           ,587,04/10/2015,Rev,WOODLANDS                     
306,Adult Social Care,OP 65&Over Resi Care Placement,OP East - Residential Care Ext,W2LH55,Third Party Payments          ,Private Contractors           ,EH01,Miscellaneous Agency Services           ,587,04/10/2015,Rev,WOODLANDS                     
307,Adult Social Care,OP 65&Over Resi Care Placement,OP East - Residential Care Ext,W2LH55,Third Party Payments          ,Private Contractors           ,EH01,Miscellaneous Agency Services           ,587,04/10/2015,Rev,WOODLANDS                     
308,Adult Social Care,OP 65&Over Resi Care Placement,OP East - Residential Care Ext,W2LH55,Third Party Payments          ,Private Contractors           ,EH01,Miscellaneous Agency Services           ,587,04/10/2015,Rev,WOODLANDS                     
309,Adult Social Care,OP 65&Over Resi Care Placement,OP East - Residential Care Ext,W2LH55,Third Party Payments          ,Private Contractors           ,EH01,Miscellaneous Agency Services           ,587,04/10/2015,Rev,WOODLANDS                     
310,Adult Social Care,OP 65&Over Resi Care Placement,OP East - Residential Care Ext,W2LH55,Third Party Payments          ,Private Contractors           ,EH01,Miscellaneous Agency Services           ,587,04/10/2015,Rev,WOODLANDS                     
311,Adult Social Care,OP 65&Over Resi Care Placement,OP East - Residential Care Ext,W2LH55,Third Party Payments          ,Private Contractors           ,EH01,Miscellaneous Agency Services           ,587,04/10/2015,Rev,WOODLANDS                     
312,Adult Social Care,OP 65&Over Resi Care Placement,OP East - Residential Care Ext,W2LH55,Third Party Payments          ,Private Contractors           ,EH01,Miscellaneous Agency Services           ,587,04/10/2015,Rev,WOODLANDS                     
313,Adult Social Care,OP 65&Over Resi Care Placement,OP East - Residential Care Ext,W2LH55,Third Party Payments          ,Private Contractors           ,EH01,Miscellaneous Agency Services           ,587,04/10/2015,Rev,WOODLANDS                     
314,Adult Social Care,OP 65&Over Resi Care Placement,OP East - Residential Care Ext,W2LH55,Third Party Payments          ,Private Contractors           ,EH01,Miscellaneous Agency Services           ,587,04/10/2015,Rev,WOODLANDS                     
315,Adult Social Care,OP 65&Over Resi Care Placement,OP East - Residential Care Ext,W2LH55,Third Party Payments          ,Private Contractors           ,EH01,Miscellaneous Agency Services           ,587,04/10/2015,Rev,WOODLANDS                     
316,Adult Social Care,OP 65&Over Resi Care Placement,OP East - Residential Care Ext,W2LH55,Third Party Payments          ,Private Contractors           ,EH01,Miscellaneous Agency Services           ,587,04/10/2015,Rev,WOODLANDS                     
317,Adult Social Care,OP 65&Over Resi Care Placement,OP East - Residential Care Ext,W2LH55,Third Party Payments          ,Private Contractors           ,EH01,Miscellaneous Agency Services           ,587,04/10/2015,Rev,WOODLANDS                     
318,Adult Social Care,OP 65&Over Resi Care Placement,OP East - Residential Care Ext,W2LH55,Third Party Payments          ,Private Contractors           ,EH01,Miscellaneous Agency Services           ,587,04/10/2015,Rev,WOODLANDS                     
319,Adult Social Care,OP 65&Over Resi Care Placement,OP East - Residential Care Ext,W2LH55,Third Party Payments          ,Private Contractors           ,EH01,Miscellaneous Agency Services           ,587,04/10/2015,Rev,WOODLANDS                     
320,Adult Social Care,OP 65&Over Resi Care Placement,OP East - Residential Care Ext,W2LH55,Third Party Payments          ,Private Contractors           ,EH01,Miscellaneous Agency Services           ,587,04/10/2015,Rev,WOODLANDS                     
321,Adult Social Care,OP 65&Over Resi Care Placement,OP East - Residential Care Ext,W2LH55,Third Party Payments          ,Private Contractors           ,EH01,Miscellaneous Agency Services           ,587,04/10/2015,Rev,WOODLANDS                     
322,Adult Social Care,OP 65&Over Resi Care Placement,OP East - Residential Care Ext,W2LH55,Third Party Payments          ,Private Contractors           ,EH01,Miscellaneous Agency Services           ,587,04/10/2015,Rev,WOODLANDS                     
323,Adult Social Care,OP 65&Over Resi Care Placement,OP East - Residential Care Ext,W2LH55,Third Party Payments          ,Private Contractors           ,EH01,Miscellaneous Agency Services           ,587,04/10/2015,Rev,WOODLANDS                     
324,Adult Social Care,OP 65&Over Resi Care Placement,OP East - Residential Care Ext,W2LH55,Third Party Payments          ,Private Contractors           ,EH01,Miscellaneous Agency Services           ,587,04/10/2015,Rev,WOODLANDS                     
325,Adult Social Care,OP 65&Over Resi Care Placement,OP East - Residential Care Ext,W2LH55,Third Party Payments          ,Private Contractors           ,EH01,Miscellaneous Agency Services           ,587,04/10/2015,Rev,WOODLANDS                     
326,Adult Social Care,OP 65&Over Resi Care Placement,OP East - Residential Care Ext,W2LH55,Third Party Payments          ,Private Contractors           ,EH01,Miscellaneous Agency Services           ,587,04/10/2015,Rev,WOODLANDS                     
327,Adult Social Care,OP 65&Over Resi Care Placement,OP East - Residential Care Ext,W2LH55,Third Party Payments          ,Private Contractors           ,EH01,Miscellaneous Agency Services           ,587,04/10/2015,Rev,WOODLANDS                     
328,Adult Social Care,OP 65&Over Resi Care Placement,OP East - Residential Care Ext,W2LH55,Third Party Payments          ,Private Contractors           ,EH01,Miscellaneous Agency Services           ,587,04/10/2015,Rev,WOODLANDS                     
329,Adult Social Care,OP 65&Over Resi Care Placement,OP East - Residential Care Ext,W2LH55,Third Party Payments          ,Private Contractors           ,EH01,Miscellaneous Agency Services           ,587,04/10/2015,Rev,WOODLANDS                     
330,Adult Social Care,OP 65&Over Resi Care Placement,OP East - Residential Care Ext,W2LH55,Third Party Payments          ,Private Contractors           ,EH01,Miscellaneous Agency Services           ,587,04/10/2015,Rev,WOODLANDS                     
331,Adult Social Care,OP 65&Over Resi Care Placement,OP East - Residential Care Ext,W2LH55,Third Party Payments          ,Private Contractors           ,EH01,Miscellaneous Agency Services           ,587,04/10/2015,Rev,WOODLANDS                     
332,Adult Social Care,OP 65&Over Resi Care Placement,OP East - Residential Care Ext,W2LH55,Third Party Payments          ,Private Contractors           ,EH01,Miscellaneous Agency Services           ,587,04/10/2015,Rev,WOODLANDS                     
333,Adult Social Care,OP 65&Over Resi Care Placement,OP East - Residential Care Ext,W2LH55,Third Party Payments          ,Private Contractors           ,EH01,Miscellaneous Agency Services           ,587,04/10/2015,Rev,WOODLANDS                     
334,Adult Social Care,OP 65&Over Resi Care Placement,OP East - Residential Care Ext,W2LH55,Third Party Payments          ,Private Contractors           ,EH01,Miscellaneous Agency Services           ,587,04/10/2015,Rev,WOODLANDS                     
335,Adult Social Care,OP 65&Over Resi Care Placement,OP East - Residential Care Ext,W2LH55,Third Party Payments          ,Private Contractors           ,EH01,Miscellaneous Agency Services           ,587,04/10/2015,Rev,WOODLANDS                     
336,Adult Social Care,OP 65&Over Resi Care Placement,OP R/Park-Residential Care Ext,W2LR55,Third Party Payments          ,Private Contractors           ,EH01,Miscellaneous Agency Services           ,587,04/10/2015,Rev,WOODLANDS                     
337,Adult Social Care,OP 65&Over Resi Care Placement,OP R/Park-Residential Care Ext,W2LR55,Third Party Payments          ,Private Contractors           ,EH01,Miscellaneous Agency Services           ,587,04/10/2015,Rev,WOODLANDS                     
338,Adult Social Care,OP 65&Over Resi Care Placement,OP R/Park-Residential Care Ext,W2LR55,Third Party Payments          ,Private Contractors           ,EH01,Miscellaneous Agency Services           ,587,04/10/2015,Rev,WOODLANDS                     
339,Adult Social Care,OP 65&Over Resi Care Placement,OP R/Park-Residential Care Ext,W2LR55,Third Party Payments          ,Private Contractors           ,EH01,Miscellaneous Agency Services           ,587,04/10/2015,Rev,WOODLANDS                     
340,Adult Social Care,OP 65&Over Resi Care Placement,OP R/Park-Residential Care Ext,W2LR55,Third Party Payments          ,Private Contractors           ,EH01,Miscellaneous Agency Services           ,587,04/10/2015,Rev,WOODLANDS                     
341,Adult Social Care,OP 65&Over Resi Care Placement,OP R/Park-Residential Care Ext,W2LR55,Third Party Payments          ,Private Contractors           ,EH01,Miscellaneous Agency Services           ,587,04/10/2015,Rev,WOODLANDS                     
342,Adult Social Care,OP 65&Over Resi Care Placement,OP R/Park-Residential Care Ext,W2LR55,Third Party Payments          ,Private Contractors           ,EH01,Miscellaneous Agency Services           ,587,04/10/2015,Rev,WOODLANDS                     
343,Adult Social Care,OP 65&Over Resi Care Placement,OP R/Park-Residential Care Ext,W2LR55,Third Party Payments          ,Private Contractors           ,EH01,Miscellaneous Agency Services           ,587,04/10/2015,Rev,WOODLANDS                     
344,Adult Social Care,OP 65&Over Resi Care Placement,OP R/Park-Residential Care Ext,W2LR55,Third Party Payments          ,Private Contractors           ,EH01,Miscellaneous Agency Services           ,587,04/10/2015,Rev,WOODLANDS                     
345,Adult Social Care,OP 65&Over Resi Care Placement,OP R/Park-Residential Care Ext,W2LR55,Third Party Payments          ,Private Contractors           ,EH01,Miscellaneous Agency Services           ,587,04/10/2015,Rev,WOODLANDS                     
346,Adult Social Care,OP 65&Over Resi Care Placement,OP R/Park-Residential Care Ext,W2LR55,Third Party Payments          ,Private Contractors           ,EH01,Miscellaneous Agency Services           ,587,04/10/2015,Rev,WOODLANDS                     
347,Adult Social Care,OP 65&Over Resi Care Placement,OP R/Park-Residential Care Ext,W2LR55,Third Party Payments          ,Private Contractors           ,EH01,Miscellaneous Agency Services           ,587,04/10/2015,Rev,WOODLANDS                     
348,Adult Social Care,OP 65&Over Resi Care Placement,OP R/Park-Residential Care Ext,W2LR55,Third Party Payments          ,Private Contractors           ,EH01,Miscellaneous Agency Services           ,587,04/10/2015,Rev,WOODLANDS                     
349,Adult Social Care,OP 65&Over Resi Care Placement,OP R/Park-Residential Care Ext,W2LR55,Third Party Payments          ,Private Contractors           ,EH01,Miscellaneous Agency Services           ,587,04/10/2015,Rev,WOODLANDS                     
350,Adult Social Care,OP 65&Over Resi Care Placement,OP R/Park-Residential Care Ext,W2LR55,Third Party Payments          ,Private Contractors           ,EH01,Miscellaneous Agency Services           ,587,04/10/2015,Rev,WOODLANDS                     
351,Adult Social Care,OP 65&Over Resi Care Placement,OP R/Park-Residential Care Ext,W2LR55,Third Party Payments          ,Private Contractors           ,EH01,Miscellaneous Agency Services           ,587,04/10/2015,Rev,WOODLANDS                     
352,Adult Social Care,OP 65&Over Resi Care Placement,OP R/Park-Residential Care Ext,W2LR55,Third Party Payments          ,Private Contractors           ,EH01,Miscellaneous Agency Services           ,587,04/10/2015,Rev,WOODLANDS                     
353,Adult Social Care,OP 65&Over Resi Care Placement,OP R/Park-Residential Care Ext,W2LR55,Third Party Payments          ,Private Contractors           ,EH01,Miscellaneous Agency Services           ,587,04/10/2015,Rev,WOODLANDS                     
354,Adult Social Care,OP 65&Over Resi Care Placement,OP R/Park-Residential Care Ext,W2LR55,Third Party Payments          ,Private Contractors           ,EH01,Miscellaneous Agency Services           ,587,04/10/2015,Rev,WOODLANDS                     
355,Adult Social Care,OP 65&Over Resi Care Placement,OP R/Park-Residential Care Ext,W2LR55,Third Party Payments          ,Private Contractors           ,EH01,Miscellaneous Agency Services           ,587,04/10/2015,Rev,WOODLANDS                     
356,Adult Social Care,OP 65&Over Resi Care Placement,OP R/Park-Residential Care Ext,W2LR55,Third Party Payments          ,Private Contractors           ,EH01,Miscellaneous Agency Services           ,587,04/10/2015,Rev,WOODLANDS                     
357,Adult Social Care,OP 65&Over Resi Care Placement,OP R/Park-Residential Care Ext,W2LR55,Third Party Payments          ,Private Contractors           ,EH01,Miscellaneous Agency Services           ,587,04/10/2015,Rev,WOODLANDS                     
358,Adult Social Care,OP 65&Over Resi Care Placement,OP R/Park-Residential Care Ext,W2LR55,Third Party Payments          ,Private Contractors           ,EH01,Miscellaneous Agency Services           ,587,04/10/2015,Rev,WOODLANDS                     
359,Adult Social Care,OP 65&Over Resi Care Placement,OP R/Park-Residential Care Ext,W2LR55,Third Party Payments          ,Private Contractors           ,EH01,Miscellaneous Agency Services           ,587,04/10/2015,Rev,WOODLANDS                     
360,Adult Social Care,OP 65&Over Resi Care Placement,OP R/Park-Residential Care Ext,W2LR55,Third Party Payments          ,Private Contractors           ,EH01,Miscellaneous Agency Services           ,587,04/10/2015,Rev,WOODLANDS                     
361,Adult Social Care,OP 65&Over Resi Care Placement,OP R/Park-Residential Care Ext,W2LR55,Third Party Payments          ,Private Contractors           ,EH01,Miscellaneous Agency Services           ,587,04/10/2015,Rev,WOODLANDS                     
362,Adult Social Care,OP 65&Over Resi Care Placement,OP R/Park-Residential Care Ext,W2LR55,Third Party Payments          ,Private Contractors           ,EH01,Miscellaneous Agency Services           ,587,04/10/2015,Rev,WOODLANDS                     
363,Adult Social Care,OP 65&Over Resi Care Placement,OP R/Park-Residential Care Ext,W2LR55,Third Party Payments          ,Private Contractors           ,EH01,Miscellaneous Agency Services           ,587,04/10/2015,Rev,WOODLANDS                     
364,Adult Social Care,OP 65&Over Resi Care Placement,OP R/Park-Residential Care Ext,W2LR55,Third Party Payments          ,Private Contractors           ,EH01,Miscellaneous Agency Services           ,587,04/10/2015,Rev,WOODLANDS                     
365,Adult Social Care,OP 65&Over Resi Care Placement,OP R/Park-Residential Care Ext,W2LR55,Third Party Payments          ,Private Contractors           ,EH01,Miscellaneous Agency Services           ,587,04/10/2015,Rev,WOODLANDS                     
366,Adult Social Care,OP 65&Over Resi Care Placement,OP R/Park-Residential Care Ext,W2LR55,Third Party Payments          ,Private Contractors           ,EH01,Miscellaneous Agency Services           ,587,04/10/2015,Rev,WOODLANDS                     
367,Adult Social Care,OP 65&Over Resi Care Placement,OP R/Park-Residential Care Ext,W2LR55,Third Party Payments          ,Private Contractors           ,EH01,Miscellaneous Agency Services           ,587,04/10/2015,Rev,WOODLANDS                     
368,Adult Social Care,OP 65&Over Resi Care Placement,OP R/Park-Residential Care Ext,W2LR55,Third Party Payments          ,Private Contractors           ,EH01,Miscellaneous Agency Services           ,587,04/10/2015,Rev,WOODLANDS                     
369,Adult Social Care,OP 65&Over NursingCarePlacemts,OP West - Nursing Care,W2LG53,Third Party Payments          ,Private Contractors           ,EH01,Miscellaneous Agency Services           ,739,04/10/2015,Rev,WOODLANDS                     
370,Adult Social Care,OP 65&Over NursingCarePlacemts,OP West - Nursing Care,W2LG53,Third Party Payments          ,Private Contractors           ,EH01,Miscellaneous Agency Services           ,739,04/10/2015,Rev,WOODLANDS                     
371,Adult Social Care,OP 65&Over NursingCarePlacemts,OP West - Nursing Care,W2LG53,Third Party Payments          ,Private Contractors           ,EH01,Miscellaneous Agency Services           ,739,04/10/2015,Rev,WOODLANDS                     
372,Adult Social Care,OP 65&Over NursingCarePlacemts,OP West - Nursing Care,W2LG53,Third Party Payments          ,Private Contractors           ,EH01,Miscellaneous Agency Services           ,739,04/10/2015,Rev,WOODLANDS                     
373,Adult Social Care,OP 65&Over NursingCarePlacemts,OP West - Nursing Care,W2LG53,Third Party Payments          ,Private Contractors           ,EH01,Miscellaneous Agency Services           ,739,04/10/2015,Rev,WOODLANDS                     
374,Adult Social Care,OP 65&Over NursingCarePlacemts,OP West - Nursing Care,W2LG53,Third Party Payments          ,Private Contractors           ,EH01,Miscellaneous Agency Services           ,739,04/10/2015,Rev,WOODLANDS                     
375,Adult Social Care,OP 65&Over NursingCarePlacemts,OP West - Nursing Care,W2LG53,Third Party Payments          ,Private Contractors           ,EH01,Miscellaneous Agency Services           ,739,04/10/2015,Rev,WOODLANDS                     
376,Adult Social Care,OP 65&Over NursingCarePlacemts,OP West - Nursing Care,W2LG53,Third Party Payments          ,Private Contractors           ,EH01,Miscellaneous Agency Services           ,739,04/10/2015,Rev,WOODLANDS                     
377,Adult Social Care,OP 65&Over NursingCarePlacemts,OP West - Nursing Care,W2LG53,Third Party Payments          ,Private Contractors           ,EH01,Miscellaneous Agency Services           ,739,04/10/2015,Rev,WOODLANDS                     
378,Adult Social Care,OP 65&Over NursingCarePlacemts,OP West - Nursing Care,W2LG53,Third Party Payments          ,Private Contractors           ,EH01,Miscellaneous Agency Services           ,739,04/10/2015,Rev,WOODLANDS                     
379,Adult Social Care,OP 65&Over NursingCarePlacemts,OP West - Nursing Care,W2LG53,Third Party Payments          ,Private Contractors           ,EH01,Miscellaneous Agency Services           ,739,04/10/2015,Rev,WOODLANDS                     
380,Adult Social Care,OP 65&Over NursingCarePlacemts,OP West - Nursing Care,W2LG53,Third Party Payments          ,Private Contractors           ,EH01,Miscellaneous Agency Services           ,739,04/10/2015,Rev,WOODLANDS                     
381,Adult Social Care,OP 65&Over NursingCarePlacemts,OP R/Park - Nursing Care,W2LR53,Third Party Payments          ,Private Contractors           ,EH01,Miscellaneous Agency Services           ,739,04/10/2015,Rev,WOODLANDS                     
382,Adult Social Care,OP 65&Over NursingCarePlacemts,OP R/Park - Nursing Care,W2LR53,Third Party Payments          ,Private Contractors           ,EH01,Miscellaneous Agency Services           ,739,04/10/2015,Rev,WOODLANDS                     
383,Adult Social Care,OP 65&Over NursingCarePlacemts,OP R/Park - Nursing Care,W2LR53,Third Party Payments          ,Private Contractors           ,EH01,Miscellaneous Agency Services           ,739,04/10/2015,Rev,WOODLANDS                     
384,Adult Social Care,OP 65&Over NursingCarePlacemts,OP R/Park - Nursing Care,W2LR53,Third Party Payments          ,Private Contractors           ,EH01,Miscellaneous Agency Services           ,739,04/10/2015,Rev,WOODLANDS                     
385,Adult Social Care,OP 65&Over NursingCarePlacemts,OP R/Park - Nursing Care,W2LR53,Third Party Payments          ,Private Contractors           ,EH01,Miscellaneous Agency Services           ,739,04/10/2015,Rev,WOODLANDS                     
386,Adult Social Care,OP 65&Over NursingCarePlacemts,OP R/Park - Nursing Care,W2LR53,Third Party Payments          ,Private Contractors           ,EH01,Miscellaneous Agency Services           ,739,04/10/2015,Rev,WOODLANDS                     
387,Adult Social Care,OP 65&Over NursingCarePlacemts,OP R/Park - Nursing Care,W2LR53,Third Party Payments          ,Private Contractors           ,EH01,Miscellaneous Agency Services           ,739,04/10/2015,Rev,WOODLANDS                     
388,Adult Social Care,OP 65&Over NursingCarePlacemts,OP R/Park - Nursing Care,W2LR53,Third Party Payments          ,Private Contractors           ,EH01,Miscellaneous Agency Services           ,739,04/10/2015,Rev,WOODLANDS                     
389,Adult Social Care,LD u65 Residentl Care Placemnt,LD Residential Care External,W2KB55,Third Party Payments          ,Private Contractors           ,EH01,Miscellaneous Agency Services           ,1635.23,04/10/2015,Rev,SPRING LAKE CARE HOME LTD     
390,Adult Social Care,LD u65 Residentl Care Placemnt,LD Residential Care External,W2KB55,Third Party Payments          ,Private Contractors           ,EH01,Miscellaneous Agency Services           ,1635.23,04/10/2015,Rev,SPRING LAKE CARE HOME LTD     
391,Adult Social Care,LD u65 Residentl Care Placemnt,LD Residential Care External,W2KB55,Third Party Payments          ,Private Contractors           ,EH01,Miscellaneous Agency Services           ,1635.23,04/10/2015,Rev,SPRING LAKE CARE HOME LTD     
392,Adult Social Care,LD u65 Residentl Care Placemnt,LD Residential Care External,W2KB55,Third Party Payments          ,Private Contractors           ,EH01,Miscellaneous Agency Services           ,1635.23,04/10/2015,Rev,SPRING LAKE CARE HOME LTD     
393,Adult Social Care,LD u65 Residentl Care Placemnt,LD Residential Care External,W2KB55,Third Party Payments          ,Private Contractors           ,EH01,Miscellaneous Agency Services           ,2785,04/10/2015,Rev,SPRING LAKE CARE HOME LTD     
394,Adult Social Care,LD u65 Residentl Care Placemnt,LD Residential Care External,W2KB55,Third Party Payments          ,Private Contractors           ,EH01,Miscellaneous Agency Services           ,2785,04/10/2015,Rev,SPRING LAKE CARE HOME LTD     
395,Adult Social Care,LD u65 Residentl Care Placemnt,LD Residential Care External,W2KB55,Third Party Payments          ,Private Contractors           ,EH01,Miscellaneous Agency Services           ,2785,04/10/2015,Rev,SPRING LAKE CARE HOME LTD     
396,Adult Social Care,LD u65 Residentl Care Placemnt,LD Residential Care External,W2KB55,Third Party Payments          ,Private Contractors           ,EH01,Miscellaneous Agency Services           ,2785,04/10/2015,Rev,SPRING LAKE CARE HOME LTD     
397,Childrens & Education Services,GENERATED ACCOUNT,Morden MAT,K05413,Premises Related Expenditure  ,RepairsAlterations&MtceOfBldgs,BA01,DDM - General Building                  ,627.4,06/10/2015,Rev,CHUBB FIRE LIMITED            
398,Adult Social Care,OP 65&Over NursingCarePlacemts,OP West - Nursing Care,W2LG53,Third Party Payments          ,Private Contractors           ,EH01,Miscellaneous Agency Services           ,-654.55,07/10/2015,Rev,CARTER HOUSE                  
399,Adult Social Care,OP 65&Over NursingCarePlacemts,OP R/Park - Nursing Care,W2LR53,Third Party Payments          ,Private Contractors           ,EH01,Miscellaneous Agency Services           ,-654.55,07/10/2015,Rev,CARTER HOUSE                  
400,Adult Social Care,OP 65&Over NursingCarePlacemts,OP R/Park - Nursing Care,W2LR53,Third Party Payments          ,Private Contractors           ,EH01,Miscellaneous Agency Services           ,-654.55,07/10/2015,Rev,CARTER HOUSE                  
401,Adult Social Care,OP 65&Over NursingCarePlacemts,OP R/Park - Nursing Care,W2LR53,Third Party Payments          ,Private Contractors           ,EH01,Miscellaneous Agency Services           ,-654.55,07/10/2015,Rev,CARTER HOUSE                  
402,Adult Social Care,OP 65&Over NursingCarePlacemts,OP R/Park - Nursing Care,W2LR53,Third Party Payments          ,Private Contractors           ,EH01,Miscellaneous Agency Services           ,-654.55,07/10/2015,Rev,CARTER HOUSE                  
403,Adult Social Care,OP 65&Over NursingCarePlacemts,OP R/Park - Nursing Care,W2LR53,Third Party Payments          ,Private Contractors           ,EH01,Miscellaneous Agency Services           ,-654.55,07/10/2015,Rev,CARTER HOUSE                  
404,Adult Social Care,OP 65&Over NursingCarePlacemts,OP West - Nursing Care,W2LG53,Third Party Payments          ,Private Contractors           ,EH01,Miscellaneous Agency Services           ,-654.55,07/10/2015,Rev,LINK HOUSE                    
405,Adult Social Care,OP 65&Over NursingCarePlacemts,OP West - Nursing Care,W2LG53,Third Party Payments          ,Private Contractors           ,EH01,Miscellaneous Agency Services           ,-654.55,07/10/2015,Rev,LINK HOUSE                    
406,Adult Social Care,OP 65&Over NursingCarePlacemts,OP East - Nursing Care,W2LH53,Third Party Payments          ,Private Contractors           ,EH01,Miscellaneous Agency Services           ,-654.55,07/10/2015,Rev,LINK HOUSE                    
407,Adult Social Care,OP 65&Over NursingCarePlacemts,OP East - Nursing Care,W2LH53,Third Party Payments          ,Private Contractors           ,EH01,Miscellaneous Agency Services           ,-654.55,07/10/2015,Rev,LINK HOUSE                    
408,Adult Social Care,OP 65&Over NursingCarePlacemts,OP East - Nursing Care,W2LH53,Third Party Payments          ,Private Contractors           ,EH01,Miscellaneous Agency Services           ,-654.55,07/10/2015,Rev,LINK HOUSE                    
409,Adult Social Care,OP 65&Over NursingCarePlacemts,OP East - Nursing Care,W2LH53,Third Party Payments          ,Private Contractors           ,EH01,Miscellaneous Agency Services           ,-654.55,07/10/2015,Rev,LINK HOUSE                    
410,Adult Social Care,OP 65&Over NursingCarePlacemts,OP R/Park - Nursing Care,W2LR53,Third Party Payments          ,Private Contractors           ,EH01,Miscellaneous Agency Services           ,-654.55,07/10/2015,Rev,LINK HOUSE                    
411,Adult Social Care,OP 65&Over NursingCarePlacemts,OP R/Park - Nursing Care,W2LR53,Third Party Payments          ,Private Contractors           ,EH01,Miscellaneous Agency Services           ,-654.55,07/10/2015,Rev,LINK HOUSE                    
412,Adult Social Care,OP 65&Over NursingCarePlacemts,OP R/Park - Nursing Care,W2LR53,Third Party Payments          ,Private Contractors           ,EH01,Miscellaneous Agency Services           ,-654.55,07/10/2015,Rev,LINK HOUSE                    
413,Adult Social Care,OP 65&Over NursingCarePlacemts,OP R/Park - Nursing Care,W2LR53,Third Party Payments          ,Private Contractors           ,EH01,Miscellaneous Agency Services           ,-654.55,07/10/2015,Rev,LINK HOUSE                    
414,Adult Social Care,OP 65&Over NursingCarePlacemts,OP West - Nursing Care,W2LG53,Third Party Payments          ,Private Contractors           ,EH01,Miscellaneous Agency Services           ,-654.55,07/10/2015,Rev,WOODLANDS                     
415,Adult Social Care,OP 65&Over NursingCarePlacemts,OP West - Nursing Care,W2LG53,Third Party Payments          ,Private Contractors           ,EH01,Miscellaneous Agency Services           ,-654.55,07/10/2015,Rev,WOODLANDS                     
416,Adult Social Care,OP 65&Over NursingCarePlacemts,OP R/Park - Nursing Care,W2LR53,Third Party Payments          ,Private Contractors           ,EH01,Miscellaneous Agency Services           ,-654.55,07/10/2015,Rev,WOODLANDS                     
417,Adult Social Care,OP 65&Over NursingCarePlacemts,OP R/Park - Nursing Care,W2LR53,Third Party Payments          ,Private Contractors           ,EH01,Miscellaneous Agency Services           ,-654.55,07/10/2015,Rev,WOODLANDS                     
418,Adult Social Care,OP 65&Over Resi Care Placement,OP West - Residential Care Ext,W2LG55,Third Party Payments          ,Private Contractors           ,EH01,Miscellaneous Agency Services           ,-524.22,07/10/2015,Rev,CARTER HOUSE                  
419,Adult Social Care,OP 65&Over Resi Care Placement,OP West - Residential Care Ext,W2LG55,Third Party Payments          ,Private Contractors           ,EH01,Miscellaneous Agency Services           ,-524.22,07/10/2015,Rev,CARTER HOUSE                  
420,Adult Social Care,OP 65&Over Resi Care Placement,OP East - Residential Care Ext,W2LH55,Third Party Payments          ,Private Contractors           ,EH01,Miscellaneous Agency Services           ,-524.22,07/10/2015,Rev,CARTER HOUSE                  
421,Adult Social Care,OP 65&Over Resi Care Placement,OP R/Park-Residential Care Ext,W2LR55,Third Party Payments          ,Private Contractors           ,EH01,Miscellaneous Agency Services           ,-524.22,07/10/2015,Rev,CARTER HOUSE                  
422,Adult Social Care,OP 65&Over Resi Care Placement,OP R/Park-Residential Care Ext,W2LR55,Third Party Payments          ,Private Contractors           ,EH01,Miscellaneous Agency Services           ,-524.22,07/10/2015,Rev,CARTER HOUSE                  
423,Adult Social Care,OP 65&Over Resi Care Placement,OP R/Park-Residential Care Ext,W2LR55,Third Party Payments          ,Private Contractors           ,EH01,Miscellaneous Agency Services           ,-524.22,07/10/2015,Rev,CARTER HOUSE                  
424,Adult Social Care,OP 65&Over Resi Care Placement,OP R/Park-Residential Care Ext,W2LR55,Third Party Payments          ,Private Contractors           ,EH01,Miscellaneous Agency Services           ,-524.22,07/10/2015,Rev,CARTER HOUSE                  
425,Adult Social Care,OP 65&Over Resi Care Placement,OP R/Park-Residential Care Ext,W2LR55,Third Party Payments          ,Private Contractors           ,EH01,Miscellaneous Agency Services           ,-524.22,07/10/2015,Rev,CARTER HOUSE                  
426,Adult Social Care,OP 65&Over Resi Care Placement,OP R/Park-Residential Care Ext,W2LR55,Third Party Payments          ,Private Contractors           ,EH01,Miscellaneous Agency Services           ,-524.22,07/10/2015,Rev,CARTER HOUSE                  
427,Adult Social Care,OP 65&Over Resi Care Placement,OP R/Park-Residential Care Ext,W2LR55,Third Party Payments          ,Private Contractors           ,EH01,Miscellaneous Agency Services           ,-524.22,07/10/2015,Rev,CARTER HOUSE                  
428,Adult Social Care,OP 65&Over Resi Care Placement,OP R/Park-Residential Care Ext,W2LR55,Third Party Payments          ,Private Contractors           ,EH01,Miscellaneous Agency Services           ,-524.22,07/10/2015,Rev,CARTER HOUSE                  
429,Adult Social Care,OP 65&Over Resi Care Placement,OP West - Residential Care Ext,W2LG55,Third Party Payments          ,Private Contractors           ,EH01,Miscellaneous Agency Services           ,-524.22,07/10/2015,Rev,LINK HOUSE                    
430,Adult Social Care,OP 65&Over Resi Care Placement,OP West - Residential Care Ext,W2LG55,Third Party Payments          ,Private Contractors           ,EH01,Miscellaneous Agency Services           ,-524.22,07/10/2015,Rev,LINK HOUSE                    
431,Adult Social Care,OP 65&Over Resi Care Placement,OP East - Residential Care Ext,W2LH55,Third Party Payments          ,Private Contractors           ,EH01,Miscellaneous Agency Services           ,-524.22,07/10/2015,Rev,LINK HOUSE                    
432,Adult Social Care,OP 65&Over Resi Care Placement,OP East - Residential Care Ext,W2LH55,Third Party Payments          ,Private Contractors           ,EH01,Miscellaneous Agency Services           ,-524.22,07/10/2015,Rev,LINK HOUSE                    
433,Adult Social Care,OP 65&Over Resi Care Placement,OP East - Residential Care Ext,W2LH55,Third Party Payments          ,Private Contractors           ,EH01,Miscellaneous Agency Services           ,-524.22,07/10/2015,Rev,LINK HOUSE                    
434,Adult Social Care,OP 65&Over Resi Care Placement,OP R/Park-Residential Care Ext,W2LR55,Third Party Payments          ,Private Contractors           ,EH01,Miscellaneous Agency Services           ,-524.22,07/10/2015,Rev,LINK HOUSE                    
435,Adult Social Care,OP 65&Over Resi Care Placement,OP R/Park-Residential Care Ext,W2LR55,Third Party Payments          ,Private Contractors           ,EH01,Miscellaneous Agency Services           ,-524.22,07/10/2015,Rev,LINK HOUSE                    
436,Adult Social Care,OP 65&Over Resi Care Placement,OP R/Park-Residential Care Ext,W2LR55,Third Party Payments          ,Private Contractors           ,EH01,Miscellaneous Agency Services           ,-524.22,07/10/2015,Rev,LINK HOUSE                    
437,Adult Social Care,OP 65&Over Resi Care Placement,OP R/Park-Residential Care Ext,W2LR55,Third Party Payments          ,Private Contractors           ,EH01,Miscellaneous Agency Services           ,-524.22,07/10/2015,Rev,LINK HOUSE                    
438,Adult Social Care,OP 65&Over Resi Care Placement,OP R/Park-Residential Care Ext,W2LR55,Third Party Payments          ,Private Contractors           ,EH01,Miscellaneous Agency Services           ,-524.22,07/10/2015,Rev,LINK HOUSE                    
439,Adult Social Care,OP 65&Over Resi Care Placement,OP R/Park-Residential Care Ext,W2LR55,Third Party Payments          ,Private Contractors           ,EH01,Miscellaneous Agency Services           ,-524.22,07/10/2015,Rev,LINK HOUSE                    
440,Adult Social Care,OP 65&Over Resi Care Placement,OP R/Park-Residential Care Ext,W2LR55,Third Party Payments          ,Private Contractors           ,EH01,Miscellaneous Agency Services           ,-524.22,07/10/2015,Rev,LINK HOUSE                    
441,Adult Social Care,OP 65&Over Resi Care Placement,OP R/Park-Residential Care Ext,W2LR55,Third Party Payments          ,Private Contractors           ,EH01,Miscellaneous Agency Services           ,-524.22,07/10/2015,Rev,LINK HOUSE                    
442,Adult Social Care,OP 65&Over Resi Care Placement,OP West - Residential Care Ext,W2LG55,Third Party Payments          ,Private Contractors           ,EH01,Miscellaneous Agency Services           ,-524.22,07/10/2015,Rev,WOODLANDS                     
443,Adult Social Care,OP 65&Over Resi Care Placement,OP West - Residential Care Ext,W2LG55,Third Party Payments          ,Private Contractors           ,EH01,Miscellaneous Agency Services           ,-524.22,07/10/2015,Rev,WOODLANDS                     
444,Adult Social Care,OP 65&Over Resi Care Placement,OP West - Residential Care Ext,W2LG55,Third Party Payments          ,Private Contractors           ,EH01,Miscellaneous Agency Services           ,-524.22,07/10/2015,Rev,WOODLANDS                     
445,Adult Social Care,OP 65&Over Resi Care Placement,OP West - Residential Care Ext,W2LG55,Third Party Payments          ,Private Contractors           ,EH01,Miscellaneous Agency Services           ,-524.22,07/10/2015,Rev,WOODLANDS                     
446,Adult Social Care,OP 65&Over Resi Care Placement,OP West - Residential Care Ext,W2LG55,Third Party Payments          ,Private Contractors           ,EH01,Miscellaneous Agency Services           ,-524.22,07/10/2015,Rev,WOODLANDS                     
447,Adult Social Care,OP 65&Over Resi Care Placement,OP West - Residential Care Ext,W2LG55,Third Party Payments          ,Private Contractors           ,EH01,Miscellaneous Agency Services           ,-524.22,07/10/2015,Rev,WOODLANDS                     
448,Adult Social Care,OP 65&Over Resi Care Placement,OP West - Residential Care Ext,W2LG55,Third Party Payments          ,Private Contractors           ,EH01,Miscellaneous Agency Services           ,-524.22,07/10/2015,Rev,WOODLANDS                     
449,Adult Social Care,OP 65&Over Resi Care Placement,OP East - Residential Care Ext,W2LH55,Third Party Payments          ,Private Contractors           ,EH01,Miscellaneous Agency Services           ,-524.22,07/10/2015,Rev,WOODLANDS                     
450,Adult Social Care,OP 65&Over Resi Care Placement,OP East - Residential Care Ext,W2LH55,Third Party Payments          ,Private Contractors           ,EH01,Miscellaneous Agency Services           ,-524.22,07/10/2015,Rev,WOODLANDS                     
451,Adult Social Care,OP 65&Over Resi Care Placement,OP East - Residential Care Ext,W2LH55,Third Party Payments          ,Private Contractors           ,EH01,Miscellaneous Agency Services           ,-524.22,07/10/2015,Rev,WOODLANDS                     
452,Adult Social Care,OP 65&Over Resi Care Placement,OP East - Residential Care Ext,W2LH55,Third Party Payments          ,Private Contractors           ,EH01,Miscellaneous Agency Services           ,-524.22,07/10/2015,Rev,WOODLANDS                     
453,Adult Social Care,OP 65&Over Resi Care Placement,OP East - Residential Care Ext,W2LH55,Third Party Payments          ,Private Contractors           ,EH01,Miscellaneous Agency Services           ,-524.22,07/10/2015,Rev,WOODLANDS                     
454,Adult Social Care,OP 65&Over Resi Care Placement,OP East - Residential Care Ext,W2LH55,Third Party Payments          ,Private Contractors           ,EH01,Miscellaneous Agency Services           ,-524.22,07/10/2015,Rev,WOODLANDS                     
455,Adult Social Care,OP 65&Over Resi Care Placement,OP East - Residential Care Ext,W2LH55,Third Party Payments          ,Private Contractors           ,EH01,Miscellaneous Agency Services           ,-524.22,07/10/2015,Rev,WOODLANDS                     
456,Adult Social Care,OP 65&Over Resi Care Placement,OP East - Residential Care Ext,W2LH55,Third Party Payments          ,Private Contractors           ,EH01,Miscellaneous Agency Services           ,-524.22,07/10/2015,Rev,WOODLANDS                     
457,Adult Social Care,OP 65&Over Resi Care Placement,OP East - Residential Care Ext,W2LH55,Third Party Payments          ,Private Contractors           ,EH01,Miscellaneous Agency Services           ,-524.22,07/10/2015,Rev,WOODLANDS                     
458,Adult Social Care,OP 65&Over Resi Care Placement,OP East - Residential Care Ext,W2LH55,Third Party Payments          ,Private Contractors           ,EH01,Miscellaneous Agency Services           ,-524.22,07/10/2015,Rev,WOODLANDS                     
459,Adult Social Care,OP 65&Over Resi Care Placement,OP R/Park-Residential Care Ext,W2LR55,Third Party Payments          ,Private Contractors           ,EH01,Miscellaneous Agency Services           ,-524.22,07/10/2015,Rev,WOODLANDS                     
460,Adult Social Care,OP 65&Over Resi Care Placement,OP R/Park-Residential Care Ext,W2LR55,Third Party Payments          ,Private Contractors           ,EH01,Miscellaneous Agency Services           ,-524.22,07/10/2015,Rev,WOODLANDS                     
461,Adult Social Care,OP 65&Over Resi Care Placement,OP R/Park-Residential Care Ext,W2LR55,Third Party Payments          ,Private Contractors           ,EH01,Miscellaneous Agency Services           ,-524.22,07/10/2015,Rev,WOODLANDS                     
462,Adult Social Care,OP 65&Over Resi Care Placement,OP R/Park-Residential Care Ext,W2LR55,Third Party Payments          ,Private Contractors           ,EH01,Miscellaneous Agency Services           ,-524.22,07/10/2015,Rev,WOODLANDS                     
463,Adult Social Care,OP 65&Over Resi Care Placement,OP R/Park-Residential Care Ext,W2LR55,Third Party Payments          ,Private Contractors           ,EH01,Miscellaneous Agency Services           ,-524.22,07/10/2015,Rev,WOODLANDS                     
464,Adult Social Care,OP 65&Over Resi Care Placement,OP R/Park-Residential Care Ext,W2LR55,Third Party Payments          ,Private Contractors           ,EH01,Miscellaneous Agency Services           ,-524.22,07/10/2015,Rev,WOODLANDS                     
465,Adult Social Care,OP 65&Over Resi Care Placement,OP R/Park-Residential Care Ext,W2LR55,Third Party Payments          ,Private Contractors           ,EH01,Miscellaneous Agency Services           ,-524.22,07/10/2015,Rev,WOODLANDS                     
466,Adult Social Care,OP 65&Over Resi Care Placement,OP R/Park-Residential Care Ext,W2LR55,Third Party Payments          ,Private Contractors           ,EH01,Miscellaneous Agency Services           ,-524.22,07/10/2015,Rev,WOODLANDS                     
467,Adult Social Care,OP 65&Over Resi Care Placement,OP R/Park-Residential Care Ext,W2LR55,Third Party Payments          ,Private Contractors           ,EH01,Miscellaneous Agency Services           ,507,07/10/2015,Rev,CARTER HOUSE                  
468,Adult Social Care,OP 65&Over Resi Care Placement,OP R/Park-Residential Care Ext,W2LR55,Third Party Payments          ,Private Contractors           ,EH01,Miscellaneous Agency Services           ,507,07/10/2015,Rev,CARTER HOUSE                  
469,Adult Social Care,OP 65&Over Resi Care Placement,OP West - Residential Care Ext,W2LG55,Third Party Payments          ,Private Contractors           ,EH01,Miscellaneous Agency Services           ,507,07/10/2015,Rev,LINK HOUSE                    
470,Adult Social Care,OP 65&Over Resi Care Placement,OP West - Residential Care Ext,W2LG55,Third Party Payments          ,Private Contractors           ,EH01,Miscellaneous Agency Services           ,507,07/10/2015,Rev,LINK HOUSE                    
471,Adult Social Care,OP 65&Over Resi Care Placement,OP R/Park-Residential Care Ext,W2LR55,Third Party Payments          ,Private Contractors           ,EH01,Miscellaneous Agency Services           ,507,07/10/2015,Rev,LINK HOUSE                    
472,Adult Social Care,OP 65&Over Resi Care Placement,OP R/Park-Residential Care Ext,W2LR55,Third Party Payments          ,Private Contractors           ,EH01,Miscellaneous Agency Services           ,507,07/10/2015,Rev,LINK HOUSE                    
473,Adult Social Care,OP 65&Over Resi Care Placement,OP R/Park-Residential Care Ext,W2LR55,Third Party Payments          ,Private Contractors           ,EH01,Miscellaneous Agency Services           ,507,07/10/2015,Rev,LINK HOUSE                    
474,Adult Social Care,OP 65&Over Resi Care Placement,OP R/Park-Residential Care Ext,W2LR55,Third Party Payments          ,Private Contractors           ,EH01,Miscellaneous Agency Services           ,507,07/10/2015,Rev,LINK HOUSE                    
475,Adult Social Care,OP 65&Over Resi Care Placement,OP R/Park-Residential Care Ext,W2LR55,Third Party Payments          ,Private Contractors           ,EH01,Miscellaneous Agency Services           ,507,07/10/2015,Rev,LINK HOUSE                    
476,Adult Social Care,OP 65&Over Resi Care Placement,OP R/Park-Residential Care Ext,W2LR55,Third Party Payments          ,Private Contractors           ,EH01,Miscellaneous Agency Services           ,507,07/10/2015,Rev,LINK HOUSE                    
477,Adult Social Care,OP 65&Over Resi Care Placement,OP R/Park-Residential Care Ext,W2LR55,Third Party Payments          ,Private Contractors           ,EH01,Miscellaneous Agency Services           ,507,07/10/2015,Rev,LINK HOUSE                    
478,Adult Social Care,OP 65&Over Resi Care Placement,OP R/Park-Residential Care Ext,W2LR55,Third Party Payments          ,Private Contractors           ,EH01,Miscellaneous Agency Services           ,507,07/10/2015,Rev,LINK HOUSE                    
479,Adult Social Care,OP 65&Over Resi Care Placement,OP West - Residential Care Ext,W2LG55,Third Party Payments          ,Private Contractors           ,EH01,Miscellaneous Agency Services           ,507,07/10/2015,Rev,WOODLANDS                     
480,Adult Social Care,OP 65&Over Resi Care Placement,OP West - Residential Care Ext,W2LG55,Third Party Payments          ,Private Contractors           ,EH01,Miscellaneous Agency Services           ,507,07/10/2015,Rev,WOODLANDS                     
481,Adult Social Care,OP 65&Over Resi Care Placement,OP East - Residential Care Ext,W2LH55,Third Party Payments          ,Private Contractors           ,EH01,Miscellaneous Agency Services           ,507,07/10/2015,Rev,WOODLANDS                     
482,Adult Social Care,OP 65&Over Resi Care Placement,OP R/Park-Residential Care Ext,W2LR55,Third Party Payments          ,Private Contractors           ,EH01,Miscellaneous Agency Services           ,507,07/10/2015,Rev,WOODLANDS                     
483,Adult Social Care,OP 65&Over Resi Care Placement,OP West - Residential Care Ext,W2LG55,Third Party Payments          ,Private Contractors           ,EH01,Miscellaneous Agency Services           ,587,07/10/2015,Rev,CARTER HOUSE                  
484,Adult Social Care,OP 65&Over Resi Care Placement,OP West - Residential Care Ext,W2LG55,Third Party Payments          ,Private Contractors           ,EH01,Miscellaneous Agency Services           ,587,07/10/2015,Rev,CARTER HOUSE                  
485,Adult Social Care,OP 65&Over Resi Care Placement,OP East - Residential Care Ext,W2LH55,Third Party Payments          ,Private Contractors           ,EH01,Miscellaneous Agency Services           ,587,07/10/2015,Rev,CARTER HOUSE                  
486,Adult Social Care,OP 65&Over Resi Care Placement,OP R/Park-Residential Care Ext,W2LR55,Third Party Payments          ,Private Contractors           ,EH01,Miscellaneous Agency Services           ,587,07/10/2015,Rev,CARTER HOUSE                  
487,Adult Social Care,OP 65&Over Resi Care Placement,OP R/Park-Residential Care Ext,W2LR55,Third Party Payments          ,Private Contractors           ,EH01,Miscellaneous Agency Services           ,587,07/10/2015,Rev,CARTER HOUSE                  
488,Adult Social Care,OP 65&Over Resi Care Placement,OP R/Park-Residential Care Ext,W2LR55,Third Party Payments          ,Private Contractors           ,EH01,Miscellaneous Agency Services           ,587,07/10/2015,Rev,CARTER HOUSE                  
489,Adult Social Care,OP 65&Over Resi Care Placement,OP R/Park-Residential Care Ext,W2LR55,Third Party Payments          ,Private Contractors           ,EH01,Miscellaneous Agency Services           ,587,07/10/2015,Rev,CARTER HOUSE                  
490,Adult Social Care,OP 65&Over Resi Care Placement,OP R/Park-Residential Care Ext,W2LR55,Third Party Payments          ,Private Contractors           ,EH01,Miscellaneous Agency Services           ,587,07/10/2015,Rev,CARTER HOUSE                  
491,Adult Social Care,OP 65&Over Resi Care Placement,OP R/Park-Residential Care Ext,W2LR55,Third Party Payments          ,Private Contractors           ,EH01,Miscellaneous Agency Services           ,587,07/10/2015,Rev,CARTER HOUSE                  
492,Adult Social Care,OP 65&Over Resi Care Placement,OP R/Park-Residential Care Ext,W2LR55,Third Party Payments          ,Private Contractors           ,EH01,Miscellaneous Agency Services           ,587,07/10/2015,Rev,CARTER HOUSE                  
493,Adult Social Care,OP 65&Over Resi Care Placement,OP R/Park-Residential Care Ext,W2LR55,Third Party Payments          ,Private Contractors           ,EH01,Miscellaneous Agency Services           ,587,07/10/2015,Rev,CARTER HOUSE                  
494,Adult Social Care,OP 65&Over Resi Care Placement,OP West - Residential Care Ext,W2LG55,Third Party Payments          ,Private Contractors           ,EH01,Miscellaneous Agency Services           ,587,07/10/2015,Rev,LINK HOUSE                    
495,Adult Social Care,OP 65&Over Resi Care Placement,OP West - Residential Care Ext,W2LG55,Third Party Payments          ,Private Contractors           ,EH01,Miscellaneous Agency Services           ,587,07/10/2015,Rev,LINK HOUSE                    
496,Adult Social Care,OP 65&Over Resi Care Placement,OP East - Residential Care Ext,W2LH55,Third Party Payments          ,Private Contractors           ,EH01,Miscellaneous Agency Services           ,587,07/10/2015,Rev,LINK HOUSE                    
497,Adult Social Care,OP 65&Over Resi Care Placement,OP East - Residential Care Ext,W2LH55,Third Party Payments          ,Private Contractors           ,EH01,Miscellaneous Agency Services           ,587,07/10/2015,Rev,LINK HOUSE                    
498,Adult Social Care,OP 65&Over Resi Care Placement,OP R/Park-Residential Care Ext,W2LR55,Third Party Payments          ,Private Contractors           ,EH01,Miscellaneous Agency Services           ,587,07/10/2015,Rev,LINK HOUSE                    
499,Adult Social Care,OP 65&Over Resi Care Placement,OP R/Park-Residential Care Ext,W2LR55,Third Party Payments          ,Private Contractors           ,EH01,Miscellaneous Agency Services           ,587,07/10/2015,Rev,LINK HOUSE                    
500,Adult Social Care,OP 65&Over Resi Care Placement,OP R/Park-Residential Care Ext,W2LR55,Third Party Payments          ,Private Contractors           ,EH01,Miscellaneous Agency Services           ,587,07/10/2015,Rev,LINK HOUSE                    
501,Adult Social Care,OP 65&Over Resi Care Placement,OP R/Park-Residential Care Ext,W2LR55,Third Party Payments          ,Private Contractors           ,EH01,Miscellaneous Agency Services           ,587,07/10/2015,Rev,LINK HOUSE                    
502,Adult Social Care,OP 65&Over Resi Care Placement,OP R/Park-Residential Care Ext,W2LR55,Third Party Payments          ,Private Contractors           ,EH01,Miscellaneous Agency Services           ,587,07/10/2015,Rev,LINK HOUSE                    
503,Adult Social Care,OP 65&Over Resi Care Placement,OP R/Park-Residential Care Ext,W2LR55,Third Party Payments          ,Private Contractors           ,EH01,Miscellaneous Agency Services           ,587,07/10/2015,Rev,LINK HOUSE                    
504,Adult Social Care,OP 65&Over Resi Care Placement,OP R/Park-Residential Care Ext,W2LR55,Third Party Payments          ,Private Contractors           ,EH01,Miscellaneous Agency Services           ,587,07/10/2015,Rev,LINK HOUSE                    
505,Adult Social Care,OP 65&Over Resi Care Placement,OP R/Park-Residential Care Ext,W2LR55,Third Party Payments          ,Private Contractors           ,EH01,Miscellaneous Agency Services           ,587,07/10/2015,Rev,LINK HOUSE                    
506,Adult Social Care,OP 65&Over Resi Care Placement,OP West - Residential Care Ext,W2LG55,Third Party Payments          ,Private Contractors           ,EH01,Miscellaneous Agency Services           ,587,07/10/2015,Rev,WOODLANDS                     
507,Adult Social Care,OP 65&Over Resi Care Placement,OP West - Residential Care Ext,W2LG55,Third Party Payments          ,Private Contractors           ,EH01,Miscellaneous Agency Services           ,587,07/10/2015,Rev,WOODLANDS                     
508,Adult Social Care,OP 65&Over Resi Care Placement,OP West - Residential Care Ext,W2LG55,Third Party Payments          ,Private Contractors           ,EH01,Miscellaneous Agency Services           ,587,07/10/2015,Rev,WOODLANDS                     
509,Adult Social Care,OP 65&Over Resi Care Placement,OP West - Residential Care Ext,W2LG55,Third Party Payments          ,Private Contractors           ,EH01,Miscellaneous Agency Services           ,587,07/10/2015,Rev,WOODLANDS                     
510,Adult Social Care,OP 65&Over Resi Care Placement,OP West - Residential Care Ext,W2LG55,Third Party Payments          ,Private Contractors           ,EH01,Miscellaneous Agency Services           ,587,07/10/2015,Rev,WOODLANDS                     
511,Adult Social Care,OP 65&Over Resi Care Placement,OP West - Residential Care Ext,W2LG55,Third Party Payments          ,Private Contractors           ,EH01,Miscellaneous Agency Services           ,587,07/10/2015,Rev,WOODLANDS                     
512,Adult Social Care,OP 65&Over Resi Care Placement,OP West - Residential Care Ext,W2LG55,Third Party Payments          ,Private Contractors           ,EH01,Miscellaneous Agency Services           ,587,07/10/2015,Rev,WOODLANDS                     
513,Adult Social Care,OP 65&Over Resi Care Placement,OP East - Residential Care Ext,W2LH55,Third Party Payments          ,Private Contractors           ,EH01,Miscellaneous Agency Services           ,587,07/10/2015,Rev,WOODLANDS                     
514,Adult Social Care,OP 65&Over Resi Care Placement,OP East - Residential Care Ext,W2LH55,Third Party Payments          ,Private Contractors           ,EH01,Miscellaneous Agency Services           ,587,07/10/2015,Rev,WOODLANDS                     
515,Adult Social Care,OP 65&Over Resi Care Placement,OP East - Residential Care Ext,W2LH55,Third Party Payments          ,Private Contractors           ,EH01,Miscellaneous Agency Services           ,587,07/10/2015,Rev,WOODLANDS                     
516,Adult Social Care,OP 65&Over Resi Care Placement,OP East - Residential Care Ext,W2LH55,Third Party Payments          ,Private Contractors           ,EH01,Miscellaneous Agency Services           ,587,07/10/2015,Rev,WOODLANDS                     
517,Adult Social Care,OP 65&Over Resi Care Placement,OP East - Residential Care Ext,W2LH55,Third Party Payments          ,Private Contractors           ,EH01,Miscellaneous Agency Services           ,587,07/10/2015,Rev,WOODLANDS                     
518,Adult Social Care,OP 65&Over Resi Care Placement,OP East - Residential Care Ext,W2LH55,Third Party Payments          ,Private Contractors           ,EH01,Miscellaneous Agency Services           ,587,07/10/2015,Rev,WOODLANDS                     
519,Adult Social Care,OP 65&Over Resi Care Placement,OP East - Residential Care Ext,W2LH55,Third Party Payments          ,Private Contractors           ,EH01,Miscellaneous Agency Services           ,587,07/10/2015,Rev,WOODLANDS                     
520,Adult Social Care,OP 65&Over Resi Care Placement,OP East - Residential Care Ext,W2LH55,Third Party Payments          ,Private Contractors           ,EH01,Miscellaneous Agency Services           ,587,07/10/2015,Rev,WOODLANDS                     
521,Adult Social Care,OP 65&Over Resi Care Placement,OP East - Residential Care Ext,W2LH55,Third Party Payments          ,Private Contractors           ,EH01,Miscellaneous Agency Services           ,587,07/10/2015,Rev,WOODLANDS                     
522,Adult Social Care,OP 65&Over Resi Care Placement,OP East - Residential Care Ext,W2LH55,Third Party Payments          ,Private Contractors           ,EH01,Miscellaneous Agency Services           ,587,07/10/2015,Rev,WOODLANDS                     
523,Adult Social Care,OP 65&Over Resi Care Placement,OP R/Park-Residential Care Ext,W2LR55,Third Party Payments          ,Private Contractors           ,EH01,Miscellaneous Agency Services           ,587,07/10/2015,Rev,WOODLANDS                     
524,Adult Social Care,OP 65&Over Resi Care Placement,OP R/Park-Residential Care Ext,W2LR55,Third Party Payments          ,Private Contractors           ,EH01,Miscellaneous Agency Services           ,587,07/10/2015,Rev,WOODLANDS                     
525,Adult Social Care,OP 65&Over Resi Care Placement,OP R/Park-Residential Care Ext,W2LR55,Third Party Payments          ,Private Contractors           ,EH01,Miscellaneous Agency Services           ,587,07/10/2015,Rev,WOODLANDS                     
526,Adult Social Care,OP 65&Over Resi Care Placement,OP R/Park-Residential Care Ext,W2LR55,Third Party Payments          ,Private Contractors           ,EH01,Miscellaneous Agency Services           ,587,07/10/2015,Rev,WOODLANDS                     
527,Adult Social Care,OP 65&Over Resi Care Placement,OP R/Park-Residential Care Ext,W2LR55,Third Party Payments          ,Private Contractors           ,EH01,Miscellaneous Agency Services           ,587,07/10/2015,Rev,WOODLANDS                     
528,Adult Social Care,OP 65&Over Resi Care Placement,OP R/Park-Residential Care Ext,W2LR55,Third Party Payments          ,Private Contractors           ,EH01,Miscellaneous Agency Services           ,587,07/10/2015,Rev,WOODLANDS                     
529,Adult Social Care,OP 65&Over Resi Care Placement,OP R/Park-Residential Care Ext,W2LR55,Third Party Payments          ,Private Contractors           ,EH01,Miscellaneous Agency Services           ,587,07/10/2015,Rev,WOODLANDS                     
530,Adult Social Care,OP 65&Over Resi Care Placement,OP R/Park-Residential Care Ext,W2LR55,Third Party Payments          ,Private Contractors           ,EH01,Miscellaneous Agency Services           ,587,07/10/2015,Rev,WOODLANDS                     
531,Adult Social Care,OP 65&Over NursingCarePlacemts,OP West - Nursing Care,W2LG53,Third Party Payments          ,Private Contractors           ,EH01,Miscellaneous Agency Services           ,739,07/10/2015,Rev,CARTER HOUSE                  
532,Adult Social Care,OP 65&Over NursingCarePlacemts,OP R/Park - Nursing Care,W2LR53,Third Party Payments          ,Private Contractors           ,EH01,Miscellaneous Agency Services           ,739,07/10/2015,Rev,CARTER HOUSE                  
533,Adult Social Care,OP 65&Over NursingCarePlacemts,OP R/Park - Nursing Care,W2LR53,Third Party Payments          ,Private Contractors           ,EH01,Miscellaneous Agency Services           ,739,07/10/2015,Rev,CARTER HOUSE                  
534,Adult Social Care,OP 65&Over NursingCarePlacemts,OP R/Park - Nursing Care,W2LR53,Third Party Payments          ,Private Contractors           ,EH01,Miscellaneous Agency Services           ,739,07/10/2015,Rev,CARTER HOUSE                  
535,Adult Social Care,OP 65&Over NursingCarePlacemts,OP R/Park - Nursing Care,W2LR53,Third Party Payments          ,Private Contractors           ,EH01,Miscellaneous Agency Services           ,739,07/10/2015,Rev,CARTER HOUSE                  
536,Adult Social Care,OP 65&Over NursingCarePlacemts,OP R/Park - Nursing Care,W2LR53,Third Party Payments          ,Private Contractors           ,EH01,Miscellaneous Agency Services           ,739,07/10/2015,Rev,CARTER HOUSE                  
537,Adult Social Care,OP 65&Over NursingCarePlacemts,OP West - Nursing Care,W2LG53,Third Party Payments          ,Private Contractors           ,EH01,Miscellaneous Agency Services           ,739,07/10/2015,Rev,LINK HOUSE                    
538,Adult Social Care,OP 65&Over NursingCarePlacemts,OP West - Nursing Care,W2LG53,Third Party Payments          ,Private Contractors           ,EH01,Miscellaneous Agency Services           ,739,07/10/2015,Rev,LINK HOUSE                    
539,Adult Social Care,OP 65&Over NursingCarePlacemts,OP East - Nursing Care,W2LH53,Third Party Payments          ,Private Contractors           ,EH01,Miscellaneous Agency Services           ,739,07/10/2015,Rev,LINK HOUSE                    
540,Adult Social Care,OP 65&Over NursingCarePlacemts,OP East - Nursing Care,W2LH53,Third Party Payments          ,Private Contractors           ,EH01,Miscellaneous Agency Services           ,739,07/10/2015,Rev,LINK HOUSE                    
541,Adult Social Care,OP 65&Over NursingCarePlacemts,OP East - Nursing Care,W2LH53,Third Party Payments          ,Private Contractors           ,EH01,Miscellaneous Agency Services           ,739,07/10/2015,Rev,LINK HOUSE                    
542,Adult Social Care,OP 65&Over NursingCarePlacemts,OP R/Park - Nursing Care,W2LR53,Third Party Payments          ,Private Contractors           ,EH01,Miscellaneous Agency Services           ,739,07/10/2015,Rev,LINK HOUSE                    
543,Adult Social Care,OP 65&Over NursingCarePlacemts,OP R/Park - Nursing Care,W2LR53,Third Party Payments          ,Private Contractors           ,EH01,Miscellaneous Agency Services           ,739,07/10/2015,Rev,LINK HOUSE                    
544,Adult Social Care,OP 65&Over NursingCarePlacemts,OP R/Park - Nursing Care,W2LR53,Third Party Payments          ,Private Contractors           ,EH01,Miscellaneous Agency Services           ,739,07/10/2015,Rev,LINK HOUSE                    
545,Adult Social Care,OP 65&Over NursingCarePlacemts,OP R/Park - Nursing Care,W2LR53,Third Party Payments          ,Private Contractors           ,EH01,Miscellaneous Agency Services           ,739,07/10/2015,Rev,LINK HOUSE                    
546,Adult Social Care,OP 65&Over NursingCarePlacemts,OP R/Park - Nursing Care,W2LR53,Third Party Payments          ,Private Contractors           ,EH01,Miscellaneous Agency Services           ,739,07/10/2015,Rev,LINK HOUSE                    
547,Adult Social Care,OP 65&Over NursingCarePlacemts,OP West - Nursing Care,W2LG53,Third Party Payments          ,Private Contractors           ,EH01,Miscellaneous Agency Services           ,739,07/10/2015,Rev,WOODLANDS                     
548,Adult Social Care,OP 65&Over NursingCarePlacemts,OP West - Nursing Care,W2LG53,Third Party Payments          ,Private Contractors           ,EH01,Miscellaneous Agency Services           ,739,07/10/2015,Rev,WOODLANDS                     
549,Adult Social Care,OP 65&Over NursingCarePlacemts,OP R/Park - Nursing Care,W2LR53,Third Party Payments          ,Private Contractors           ,EH01,Miscellaneous Agency Services           ,739,07/10/2015,Rev,WOODLANDS                     
550,Adult Social Care,OP 65&Over NursingCarePlacemts,OP R/Park - Nursing Care,W2LR53,Third Party Payments          ,Private Contractors           ,EH01,Miscellaneous Agency Services           ,739,07/10/2015,Rev,WOODLANDS                     
551,Central Services,SupS Chief Execs,Local Involvement Network,A01039,Third Party Payments          ,Private Contractors           ,EH10,Contract Payments                       ,2954,07/10/2015,Rev,VOICEABILITY                  
552,Adult Social Care,OP 65&Over NursingCarePlacemts,OP R/Park - Nursing Care,W2LR53,Third Party Payments          ,Private Contractors           ,EH01,Miscellaneous Agency Services           ,750,09/10/2015,Rev,BARONS LODGE NURSING HOME     
553,Adult Social Care,OP 65&Over NursingCarePlacemts,OP R/Park - Nursing Care,W2LR53,Third Party Payments          ,Private Contractors           ,EH01,Miscellaneous Agency Services           ,875,09/10/2015,Rev,BARONS LODGE NURSING HOME     
554,Adult Social Care,OP 65&Over NursingCarePlacemts,OP R/Park - Nursing Care,W2LR53,Third Party Payments          ,Private Contractors           ,EH01,Miscellaneous Agency Services           ,875,09/10/2015,Rev,BARONS LODGE NURSING HOME     
555,Adult Social Care,OP 65&Over NursingCarePlacemts,OP R/Park - Nursing Care,W2LR53,Third Party Payments          ,Private Contractors           ,EH01,Miscellaneous Agency Services           ,875,09/10/2015,Rev,BARONS LODGE NURSING HOME     
556,Cultural Env Reg&Plan Services,Mgt & Sup (Cult),Tree Safety (Schools),P18320,Premises Related Expenditure  ,Ground Maintenance Costs      ,BL50,NATURE CONSERVATION                     ,900,09/10/2015,Rev,ADVANCED TREE SERVICES LTD    
557,,,IT Equipment                            ,CT006EA,Other Capital Expenditure,,E3,Miscellaneous Capital Expendit          ,2850,09/10/2015,Cap,THINTECH LIMITED              
558,Adult Social Care,Asylum Unacc Children,UASC Foster Care (Grant)                ,W4TC47,Supplies & Services           ,Services                      ,DF53,Task Based Fostering                    ,573.54,12/10/2015,Rev,FOSTER CARE ASSOCIATES LTD    
559,Public Health,PH - NHS Health Check,PH � NHS Health check�                  ,WPHN01,Supplies & Services           ,Services                      ,DF14,Doctors and Other Fees                  ,600,12/10/2015,Rev,JAMES O RIODAN MEDICAL PRAC.  
560,Childrens & Education Services,CS - Commiss'ing & Social Work,SG & CP T1 Section 17                   ,W1FB38,Transfer Payments             ,Schoolchildren/Students       ,FF02,Childr Act 1989 S17                     ,2105.4,13/10/2015,Rev,GARY TAYLOR ASSOCIATES LTD    
561,Adult Social Care,OP 65&Over Resi Care Placement,OP R/Park-Residential Care Ext,W2LR55,Third Party Payments          ,Private Contractors           ,EH01,Miscellaneous Agency Services           ,-524.22,14/10/2015,Rev,LINK HOUSE                    
562,Adult Social Care,OP 65&Over Resi Care Placement,OP R/Park-Residential Care Ext,W2LR55,Third Party Payments          ,Private Contractors           ,EH01,Miscellaneous Agency Services           ,-524.22,14/10/2015,Rev,LINK HOUSE                    
563,Adult Social Care,OP 65&Over Resi Care Placement,OP R/Park-Residential Care Ext,W2LR55,Third Party Payments          ,Private Contractors           ,EH01,Miscellaneous Agency Services           ,-524.22,14/10/2015,Rev,LINK HOUSE                    
564,Adult Social Care,OP 65&Over Resi Care Placement,OP R/Park-Residential Care Ext,W2LR55,Third Party Payments          ,Private Contractors           ,EH01,Miscellaneous Agency Services           ,-524.22,14/10/2015,Rev,LINK HOUSE                    
565,Adult Social Care,OP 65&Over Resi Care Placement,OP R/Park-Residential Care Ext,W2LR55,Third Party Payments          ,Private Contractors           ,EH01,Miscellaneous Agency Services           ,-524.22,14/10/2015,Rev,LINK HOUSE                    
566,Adult Social Care,OP 65&Over Resi Care Placement,OP R/Park-Residential Care Ext,W2LR55,Third Party Payments          ,Private Contractors           ,EH01,Miscellaneous Agency Services           ,-524.22,14/10/2015,Rev,LINK HOUSE                    
567,Adult Social Care,OP 65&Over Resi Care Placement,OP R/Park-Residential Care Ext,W2LR55,Third Party Payments          ,Private Contractors           ,EH01,Miscellaneous Agency Services           ,-524.22,14/10/2015,Rev,LINK HOUSE                    
568,Adult Social Care,OP 65&Over Resi Care Placement,OP R/Park-Residential Care Ext,W2LR55,Third Party Payments          ,Private Contractors           ,EH01,Miscellaneous Agency Services           ,-524.22,14/10/2015,Rev,LINK HOUSE                    
569,Adult Social Care,OP 65&Over Resi Care Placement,OP R/Park-Residential Care Ext,W2LR55,Third Party Payments          ,Private Contractors           ,EH01,Miscellaneous Agency Services           ,-524.22,14/10/2015,Rev,LINK HOUSE                    
570,Adult Social Care,OP 65&Over Resi Care Placement,OP R/Park-Residential Care Ext,W2LR55,Third Party Payments          ,Private Contractors           ,EH01,Miscellaneous Agency Services           ,-524.22,14/10/2015,Rev,LINK HOUSE                    
571,Adult Social Care,OP 65&Over Resi Care Placement,OP R/Park-Residential Care Ext,W2LR55,Third Party Payments          ,Private Contractors           ,EH01,Miscellaneous Agency Services           ,-524.22,14/10/2015,Rev,LINK HOUSE                    
572,Adult Social Care,OP 65&Over Resi Care Placement,OP R/Park-Residential Care Ext,W2LR55,Third Party Payments          ,Private Contractors           ,EH01,Miscellaneous Agency Services           ,-524.22,14/10/2015,Rev,LINK HOUSE                    
573,Adult Social Care,OP 65&Over Resi Care Placement,OP R/Park-Residential Care Ext,W2LR55,Third Party Payments          ,Private Contractors           ,EH01,Miscellaneous Agency Services           ,-524.22,14/10/2015,Rev,LINK HOUSE                    
574,Adult Social Care,OP 65&Over Resi Care Placement,OP R/Park-Residential Care Ext,W2LR55,Third Party Payments          ,Private Contractors           ,EH01,Miscellaneous Agency Services           ,-524.22,14/10/2015,Rev,LINK HOUSE                    
575,Adult Social Care,OP 65&Over Resi Care Placement,OP R/Park-Residential Care Ext,W2LR55,Third Party Payments          ,Private Contractors           ,EH01,Miscellaneous Agency Services           ,-524.22,14/10/2015,Rev,LINK HOUSE                    
576,Adult Social Care,OP 65&Over Resi Care Placement,OP R/Park-Residential Care Ext,W2LR55,Third Party Payments          ,Private Contractors           ,EH01,Miscellaneous Agency Services           ,-524.22,14/10/2015,Rev,LINK HOUSE                    
577,Adult Social Care,OP 65&Over Resi Care Placement,OP R/Park-Residential Care Ext,W2LR55,Third Party Payments          ,Private Contractors           ,EH01,Miscellaneous Agency Services           ,507,14/10/2015,Rev,CARTER HOUSE                  
578,Adult Social Care,OP 65&Over Resi Care Placement,OP R/Park-Residential Care Ext,W2LR55,Third Party Payments          ,Private Contractors           ,EH01,Miscellaneous Agency Services           ,507,14/10/2015,Rev,CARTER HOUSE                  
579,Adult Social Care,OP 65&Over Resi Care Placement,OP R/Park-Residential Care Ext,W2LR55,Third Party Payments          ,Private Contractors           ,EH01,Miscellaneous Agency Services           ,507,14/10/2015,Rev,CARTER HOUSE                  
580,Adult Social Care,OP 65&Over Resi Care Placement,OP R/Park-Residential Care Ext,W2LR55,Third Party Payments          ,Private Contractors           ,EH01,Miscellaneous Agency Services           ,507,14/10/2015,Rev,CARTER HOUSE                  
581,Adult Social Care,OP 65&Over Resi Care Placement,OP R/Park-Residential Care Ext,W2LR55,Third Party Payments          ,Private Contractors           ,EH01,Miscellaneous Agency Services           ,507,14/10/2015,Rev,CARTER HOUSE                  
582,Adult Social Care,OP 65&Over Resi Care Placement,OP R/Park-Residential Care Ext,W2LR55,Third Party Payments          ,Private Contractors           ,EH01,Miscellaneous Agency Services           ,507,14/10/2015,Rev,CARTER HOUSE                  
583,Adult Social Care,OP 65&Over Resi Care Placement,OP R/Park-Residential Care Ext,W2LR55,Third Party Payments          ,Private Contractors           ,EH01,Miscellaneous Agency Services           ,507,14/10/2015,Rev,CARTER HOUSE                  
584,Adult Social Care,OP 65&Over Resi Care Placement,OP R/Park-Residential Care Ext,W2LR55,Third Party Payments          ,Private Contractors           ,EH01,Miscellaneous Agency Services           ,507,14/10/2015,Rev,CARTER HOUSE                  
585,Adult Social Care,OP 65&Over Resi Care Placement,OP West - Residential Care Ext,W2LG55,Third Party Payments          ,Private Contractors           ,EH01,Miscellaneous Agency Services           ,507,14/10/2015,Rev,LINK HOUSE                    
586,Adult Social Care,OP 65&Over Resi Care Placement,OP West - Residential Care Ext,W2LG55,Third Party Payments          ,Private Contractors           ,EH01,Miscellaneous Agency Services           ,507,14/10/2015,Rev,LINK HOUSE                    
587,Adult Social Care,OP 65&Over Resi Care Placement,OP West - Residential Care Ext,W2LG55,Third Party Payments          ,Private Contractors           ,EH01,Miscellaneous Agency Services           ,507,14/10/2015,Rev,LINK HOUSE                    
588,Adult Social Care,OP 65&Over Resi Care Placement,OP West - Residential Care Ext,W2LG55,Third Party Payments          ,Private Contractors           ,EH01,Miscellaneous Agency Services           ,507,14/10/2015,Rev,LINK HOUSE                    
589,Adult Social Care,OP 65&Over Resi Care Placement,OP West - Residential Care Ext,W2LG55,Third Party Payments          ,Private Contractors           ,EH01,Miscellaneous Agency Services           ,507,14/10/2015,Rev,LINK HOUSE                    
590,Adult Social Care,OP 65&Over Resi Care Placement,OP West - Residential Care Ext,W2LG55,Third Party Payments          ,Private Contractors           ,EH01,Miscellaneous Agency Services           ,507,14/10/2015,Rev,LINK HOUSE                    
591,Adult Social Care,OP 65&Over Resi Care Placement,OP West - Residential Care Ext,W2LG55,Third Party Payments          ,Private Contractors           ,EH01,Miscellaneous Agency Services           ,507,14/10/2015,Rev,LINK HOUSE                    
592,Adult Social Care,OP 65&Over Resi Care Placement,OP West - Residential Care Ext,W2LG55,Third Party Payments          ,Private Contractors           ,EH01,Miscellaneous Agency Services           ,507,14/10/2015,Rev,LINK HOUSE                    
593,Adult Social Care,OP 65&Over Resi Care Placement,OP R/Park-Residential Care Ext,W2LR55,Third Party Payments          ,Private Contractors           ,EH01,Miscellaneous Agency Services           ,507,14/10/2015,Rev,LINK HOUSE                    
594,Adult Social Care,OP 65&Over Resi Care Placement,OP R/Park-Residential Care Ext,W2LR55,Third Party Payments          ,Private Contractors           ,EH01,Miscellaneous Agency Services           ,507,14/10/2015,Rev,LINK HOUSE                    
595,Adult Social Care,OP 65&Over Resi Care Placement,OP R/Park-Residential Care Ext,W2LR55,Third Party Payments          ,Private Contractors           ,EH01,Miscellaneous Agency Services           ,507,14/10/2015,Rev,LINK HOUSE                    
596,Adult Social Care,OP 65&Over Resi Care Placement,OP R/Park-Residential Care Ext,W2LR55,Third Party Payments          ,Private Contractors           ,EH01,Miscellaneous Agency Services           ,507,14/10/2015,Rev,LINK HOUSE                    
597,Adult Social Care,OP 65&Over Resi Care Placement,OP R/Park-Residential Care Ext,W2LR55,Third Party Payments          ,Private Contractors           ,EH01,Miscellaneous Agency Services           ,507,14/10/2015,Rev,LINK HOUSE                    
598,Adult Social Care,OP 65&Over Resi Care Placement,OP R/Park-Residential Care Ext,W2LR55,Third Party Payments          ,Private Contractors           ,EH01,Miscellaneous Agency Services           ,507,14/10/2015,Rev,LINK HOUSE                    
599,Adult Social Care,OP 65&Over Resi Care Placement,OP R/Park-Residential Care Ext,W2LR55,Third Party Payments          ,Private Contractors           ,EH01,Miscellaneous Agency Services           ,507,14/10/2015,Rev,LINK HOUSE                    
600,Adult Social Care,OP 65&Over Resi Care Placement,OP R/Park-Residential Care Ext,W2LR55,Third Party Payments          ,Private Contractors           ,EH01,Miscellaneous Agency Services           ,507,14/10/2015,Rev,LINK HOUSE                    
601,Adult Social Care,OP 65&Over Resi Care Placement,OP R/Park-Residential Care Ext,W2LR55,Third Party Payments          ,Private Contractors           ,EH01,Miscellaneous Agency Services           ,507,14/10/2015,Rev,LINK HOUSE                    
602,Adult Social Care,OP 65&Over Resi Care Placement,OP R/Park-Residential Care Ext,W2LR55,Third Party Payments          ,Private Contractors           ,EH01,Miscellaneous Agency Services           ,507,14/10/2015,Rev,LINK HOUSE                    
603,Adult Social Care,OP 65&Over Resi Care Placement,OP R/Park-Residential Care Ext,W2LR55,Third Party Payments          ,Private Contractors           ,EH01,Miscellaneous Agency Services           ,507,14/10/2015,Rev,LINK HOUSE                    
604,Adult Social Care,OP 65&Over Resi Care Placement,OP R/Park-Residential Care Ext,W2LR55,Third Party Payments          ,Private Contractors           ,EH01,Miscellaneous Agency Services           ,507,14/10/2015,Rev,LINK HOUSE                    
605,Adult Social Care,OP 65&Over Resi Care Placement,OP R/Park-Residential Care Ext,W2LR55,Third Party Payments          ,Private Contractors           ,EH01,Miscellaneous Agency Services           ,507,14/10/2015,Rev,LINK HOUSE                    
606,Adult Social Care,OP 65&Over Resi Care Placement,OP R/Park-Residential Care Ext,W2LR55,Third Party Payments          ,Private Contractors           ,EH01,Miscellaneous Agency Services           ,507,14/10/2015,Rev,LINK HOUSE                    
607,Adult Social Care,OP 65&Over Resi Care Placement,OP R/Park-Residential Care Ext,W2LR55,Third Party Payments          ,Private Contractors           ,EH01,Miscellaneous Agency Services           ,507,14/10/2015,Rev,LINK HOUSE                    
608,Adult Social Care,OP 65&Over Resi Care Placement,OP R/Park-Residential Care Ext,W2LR55,Third Party Payments          ,Private Contractors           ,EH01,Miscellaneous Agency Services           ,507,14/10/2015,Rev,LINK HOUSE                    
609,Adult Social Care,OP 65&Over Resi Care Placement,OP R/Park-Residential Care Ext,W2LR55,Third Party Payments          ,Private Contractors           ,EH01,Miscellaneous Agency Services           ,507,14/10/2015,Rev,LINK HOUSE                    
610,Adult Social Care,OP 65&Over Resi Care Placement,OP R/Park-Residential Care Ext,W2LR55,Third Party Payments          ,Private Contractors           ,EH01,Miscellaneous Agency Services           ,507,14/10/2015,Rev,LINK HOUSE                    
611,Adult Social Care,OP 65&Over Resi Care Placement,OP R/Park-Residential Care Ext,W2LR55,Third Party Payments          ,Private Contractors           ,EH01,Miscellaneous Agency Services           ,507,14/10/2015,Rev,LINK HOUSE                    
612,Adult Social Care,OP 65&Over Resi Care Placement,OP R/Park-Residential Care Ext,W2LR55,Third Party Payments          ,Private Contractors           ,EH01,Miscellaneous Agency Services           ,507,14/10/2015,Rev,LINK HOUSE                    
613,Adult Social Care,OP 65&Over Resi Care Placement,OP R/Park-Residential Care Ext,W2LR55,Third Party Payments          ,Private Contractors           ,EH01,Miscellaneous Agency Services           ,507,14/10/2015,Rev,LINK HOUSE                    
614,Adult Social Care,OP 65&Over Resi Care Placement,OP R/Park-Residential Care Ext,W2LR55,Third Party Payments          ,Private Contractors           ,EH01,Miscellaneous Agency Services           ,507,14/10/2015,Rev,LINK HOUSE                    
615,Adult Social Care,OP 65&Over Resi Care Placement,OP R/Park-Residential Care Ext,W2LR55,Third Party Payments          ,Private Contractors           ,EH01,Miscellaneous Agency Services           ,507,14/10/2015,Rev,LINK HOUSE                    
616,Adult Social Care,OP 65&Over Resi Care Placement,OP R/Park-Residential Care Ext,W2LR55,Third Party Payments          ,Private Contractors           ,EH01,Miscellaneous Agency Services           ,507,14/10/2015,Rev,LINK HOUSE                    
617,Adult Social Care,OP 65&Over Resi Care Placement,OP R/Park-Residential Care Ext,W2LR55,Third Party Payments          ,Private Contractors           ,EH01,Miscellaneous Agency Services           ,507,14/10/2015,Rev,LINK HOUSE                    
618,Adult Social Care,OP 65&Over Resi Care Placement,OP R/Park-Residential Care Ext,W2LR55,Third Party Payments          ,Private Contractors           ,EH01,Miscellaneous Agency Services           ,507,14/10/2015,Rev,LINK HOUSE                    
619,Adult Social Care,OP 65&Over Resi Care Placement,OP R/Park-Residential Care Ext,W2LR55,Third Party Payments          ,Private Contractors           ,EH01,Miscellaneous Agency Services           ,507,14/10/2015,Rev,LINK HOUSE                    
620,Adult Social Care,OP 65&Over Resi Care Placement,OP R/Park-Residential Care Ext,W2LR55,Third Party Payments          ,Private Contractors           ,EH01,Miscellaneous Agency Services           ,507,14/10/2015,Rev,LINK HOUSE                    
621,Adult Social Care,OP 65&Over Resi Care Placement,OP R/Park-Residential Care Ext,W2LR55,Third Party Payments          ,Private Contractors           ,EH01,Miscellaneous Agency Services           ,524.22,14/10/2015,Rev,LINK HOUSE                    
622,Adult Social Care,OP 65&Over Resi Care Placement,OP R/Park-Residential Care Ext,W2LR55,Third Party Payments          ,Private Contractors           ,EH01,Miscellaneous Agency Services           ,524.22,14/10/2015,Rev,LINK HOUSE                    
623,Adult Social Care,OP 65&Over Resi Care Placement,OP R/Park-Residential Care Ext,W2LR55,Third Party Payments          ,Private Contractors           ,EH01,Miscellaneous Agency Services           ,524.22,14/10/2015,Rev,LINK HOUSE                    
624,Adult Social Care,OP 65&Over Resi Care Placement,OP R/Park-Residential Care Ext,W2LR55,Third Party Payments          ,Private Contractors           ,EH01,Miscellaneous Agency Services           ,524.22,14/10/2015,Rev,LINK HOUSE                    
625,Adult Social Care,OP 65&Over Resi Care Placement,OP R/Park-Residential Care Ext,W2LR55,Third Party Payments          ,Private Contractors           ,EH01,Miscellaneous Agency Services           ,524.22,14/10/2015,Rev,LINK HOUSE                    
626,Adult Social Care,OP 65&Over Resi Care Placement,OP R/Park-Residential Care Ext,W2LR55,Third Party Payments          ,Private Contractors           ,EH01,Miscellaneous Agency Services           ,524.22,14/10/2015,Rev,LINK HOUSE                    
627,Adult Social Care,OP 65&Over Resi Care Placement,OP R/Park-Residential Care Ext,W2LR55,Third Party Payments          ,Private Contractors           ,EH01,Miscellaneous Agency Services           ,524.22,14/10/2015,Rev,LINK HOUSE                    
628,Adult Social Care,OP 65&Over Resi Care Placement,OP R/Park-Residential Care Ext,W2LR55,Third Party Payments          ,Private Contractors           ,EH01,Miscellaneous Agency Services           ,524.22,14/10/2015,Rev,LINK HOUSE                    
629,Adult Social Care,OP 65&Over Resi Care Placement,OP R/Park-Residential Care Ext,W2LR55,Third Party Payments          ,Private Contractors           ,EH01,Miscellaneous Agency Services           ,524.22,14/10/2015,Rev,LINK HOUSE                    
630,Adult Social Care,OP 65&Over Resi Care Placement,OP R/Park-Residential Care Ext,W2LR55,Third Party Payments          ,Private Contractors           ,EH01,Miscellaneous Agency Services           ,524.22,14/10/2015,Rev,LINK HOUSE                    
631,Adult Social Care,OP 65&Over Resi Care Placement,OP R/Park-Residential Care Ext,W2LR55,Third Party Payments          ,Private Contractors           ,EH01,Miscellaneous Agency Services           ,524.22,14/10/2015,Rev,LINK HOUSE                    
632,Adult Social Care,OP 65&Over Resi Care Placement,OP R/Park-Residential Care Ext,W2LR55,Third Party Payments          ,Private Contractors           ,EH01,Miscellaneous Agency Services           ,524.22,14/10/2015,Rev,LINK HOUSE                    
633,Adult Social Care,OP 65&Over Resi Care Placement,OP R/Park-Residential Care Ext,W2LR55,Third Party Payments          ,Private Contractors           ,EH01,Miscellaneous Agency Services           ,524.22,14/10/2015,Rev,LINK HOUSE                    
634,Adult Social Care,OP 65&Over Resi Care Placement,OP R/Park-Residential Care Ext,W2LR55,Third Party Payments          ,Private Contractors           ,EH01,Miscellaneous Agency Services           ,524.22,14/10/2015,Rev,LINK HOUSE                    
635,Adult Social Care,OP 65&Over Resi Care Placement,OP R/Park-Residential Care Ext,W2LR55,Third Party Payments          ,Private Contractors           ,EH01,Miscellaneous Agency Services           ,524.22,14/10/2015,Rev,LINK HOUSE                    
636,Adult Social Care,OP 65&Over Resi Care Placement,OP R/Park-Residential Care Ext,W2LR55,Third Party Payments          ,Private Contractors           ,EH01,Miscellaneous Agency Services           ,524.22,14/10/2015,Rev,LINK HOUSE                    
637,Adult Social Care,OP 65&Over Resi Care Placement,OP West - Residential Care Ext,W2LG55,Third Party Payments          ,Private Contractors           ,EH01,Miscellaneous Agency Services           ,587,14/10/2015,Rev,CARTER HOUSE                  
638,Adult Social Care,OP 65&Over Resi Care Placement,OP West - Residential Care Ext,W2LG55,Third Party Payments          ,Private Contractors           ,EH01,Miscellaneous Agency Services           ,587,14/10/2015,Rev,CARTER HOUSE                  
639,Adult Social Care,OP 65&Over Resi Care Placement,OP West - Residential Care Ext,W2LG55,Third Party Payments          ,Private Contractors           ,EH01,Miscellaneous Agency Services           ,587,14/10/2015,Rev,CARTER HOUSE                  
640,Adult Social Care,OP 65&Over Resi Care Placement,OP West - Residential Care Ext,W2LG55,Third Party Payments          ,Private Contractors           ,EH01,Miscellaneous Agency Services           ,587,14/10/2015,Rev,CARTER HOUSE                  
641,Adult Social Care,OP 65&Over Resi Care Placement,OP West - Residential Care Ext,W2LG55,Third Party Payments          ,Private Contractors           ,EH01,Miscellaneous Agency Services           ,587,14/10/2015,Rev,CARTER HOUSE                  
642,Adult Social Care,OP 65&Over Resi Care Placement,OP West - Residential Care Ext,W2LG55,Third Party Payments          ,Private Contractors           ,EH01,Miscellaneous Agency Services           ,587,14/10/2015,Rev,CARTER HOUSE                  
643,Adult Social Care,OP 65&Over Resi Care Placement,OP West - Residential Care Ext,W2LG55,Third Party Payments          ,Private Contractors           ,EH01,Miscellaneous Agency Services           ,587,14/10/2015,Rev,CARTER HOUSE                  
644,Adult Social Care,OP 65&Over Resi Care Placement,OP West - Residential Care Ext,W2LG55,Third Party Payments          ,Private Contractors           ,EH01,Miscellaneous Agency Services           ,587,14/10/2015,Rev,CARTER HOUSE                  
645,Adult Social Care,OP 65&Over Resi Care Placement,OP East - Residential Care Ext,W2LH55,Third Party Payments          ,Private Contractors           ,EH01,Miscellaneous Agency Services           ,587,14/10/2015,Rev,CARTER HOUSE                  
646,Adult Social Care,OP 65&Over Resi Care Placement,OP East - Residential Care Ext,W2LH55,Third Party Payments          ,Private Contractors           ,EH01,Miscellaneous Agency Services           ,587,14/10/2015,Rev,CARTER HOUSE                  
647,Adult Social Care,OP 65&Over Resi Care Placement,OP East - Residential Care Ext,W2LH55,Third Party Payments          ,Private Contractors           ,EH01,Miscellaneous Agency Services           ,587,14/10/2015,Rev,CARTER HOUSE                  
648,Adult Social Care,OP 65&Over Resi Care Placement,OP East - Residential Care Ext,W2LH55,Third Party Payments          ,Private Contractors           ,EH01,Miscellaneous Agency Services           ,587,14/10/2015,Rev,CARTER HOUSE                  
649,Adult Social Care,OP 65&Over Resi Care Placement,OP East - Residential Care Ext,W2LH55,Third Party Payments          ,Private Contractors           ,EH01,Miscellaneous Agency Services           ,587,14/10/2015,Rev,CARTER HOUSE                  
650,Adult Social Care,OP 65&Over Resi Care Placement,OP East - Residential Care Ext,W2LH55,Third Party Payments          ,Private Contractors           ,EH01,Miscellaneous Agency Services           ,587,14/10/2015,Rev,CARTER HOUSE                  
651,Adult Social Care,OP 65&Over Resi Care Placement,OP East - Residential Care Ext,W2LH55,Third Party Payments          ,Private Contractors           ,EH01,Miscellaneous Agency Services           ,587,14/10/2015,Rev,CARTER HOUSE                  
652,Adult Social Care,OP 65&Over Resi Care Placement,OP East - Residential Care Ext,W2LH55,Third Party Payments          ,Private Contractors           ,EH01,Miscellaneous Agency Services           ,587,14/10/2015,Rev,CARTER HOUSE                  
653,Adult Social Care,OP 65&Over Resi Care Placement,OP R/Park-Residential Care Ext,W2LR55,Third Party Payments          ,Private Contractors           ,EH01,Miscellaneous Agency Services           ,587,14/10/2015,Rev,CARTER HOUSE                  
654,Adult Social Care,OP 65&Over Resi Care Placement,OP R/Park-Residential Care Ext,W2LR55,Third Party Payments          ,Private Contractors           ,EH01,Miscellaneous Agency Services           ,587,14/10/2015,Rev,CARTER HOUSE                  
655,Adult Social Care,OP 65&Over Resi Care Placement,OP R/Park-Residential Care Ext,W2LR55,Third Party Payments          ,Private Contractors           ,EH01,Miscellaneous Agency Services           ,587,14/10/2015,Rev,CARTER HOUSE                  
656,Adult Social Care,OP 65&Over Resi Care Placement,OP R/Park-Residential Care Ext,W2LR55,Third Party Payments          ,Private Contractors           ,EH01,Miscellaneous Agency Services           ,587,14/10/2015,Rev,CARTER HOUSE                  
657,Adult Social Care,OP 65&Over Resi Care Placement,OP R/Park-Residential Care Ext,W2LR55,Third Party Payments          ,Private Contractors           ,EH01,Miscellaneous Agency Services           ,587,14/10/2015,Rev,CARTER HOUSE                  
658,Adult Social Care,OP 65&Over Resi Care Placement,OP R/Park-Residential Care Ext,W2LR55,Third Party Payments          ,Private Contractors           ,EH01,Miscellaneous Agency Services           ,587,14/10/2015,Rev,CARTER HOUSE                  
659,Adult Social Care,OP 65&Over Resi Care Placement,OP R/Park-Residential Care Ext,W2LR55,Third Party Payments          ,Private Contractors           ,EH01,Miscellaneous Agency Services           ,587,14/10/2015,Rev,CARTER HOUSE                  
660,Adult Social Care,OP 65&Over Resi Care Placement,OP R/Park-Residential Care Ext,W2LR55,Third Party Payments          ,Private Contractors           ,EH01,Miscellaneous Agency Services           ,587,14/10/2015,Rev,CARTER HOUSE                  
661,Adult Social Care,OP 65&Over Resi Care Placement,OP R/Park-Residential Care Ext,W2LR55,Third Party Payments          ,Private Contractors           ,EH01,Miscellaneous Agency Services           ,587,14/10/2015,Rev,CARTER HOUSE                  
662,Adult Social Care,OP 65&Over Resi Care Placement,OP R/Park-Residential Care Ext,W2LR55,Third Party Payments          ,Private Contractors           ,EH01,Miscellaneous Agency Services           ,587,14/10/2015,Rev,CARTER HOUSE                  
663,Adult Social Care,OP 65&Over Resi Care Placement,OP R/Park-Residential Care Ext,W2LR55,Third Party Payments          ,Private Contractors           ,EH01,Miscellaneous Agency Services           ,587,14/10/2015,Rev,CARTER HOUSE                  
664,Adult Social Care,OP 65&Over Resi Care Placement,OP R/Park-Residential Care Ext,W2LR55,Third Party Payments          ,Private Contractors           ,EH01,Miscellaneous Agency Services           ,587,14/10/2015,Rev,CARTER HOUSE                  
665,Adult Social Care,OP 65&Over Resi Care Placement,OP R/Park-Residential Care Ext,W2LR55,Third Party Payments          ,Private Contractors           ,EH01,Miscellaneous Agency Services           ,587,14/10/2015,Rev,CARTER HOUSE                  
666,Adult Social Care,OP 65&Over Resi Care Placement,OP R/Park-Residential Care Ext,W2LR55,Third Party Payments          ,Private Contractors           ,EH01,Miscellaneous Agency Services           ,587,14/10/2015,Rev,CARTER HOUSE                  
667,Adult Social Care,OP 65&Over Resi Care Placement,OP R/Park-Residential Care Ext,W2LR55,Third Party Payments          ,Private Contractors           ,EH01,Miscellaneous Agency Services           ,587,14/10/2015,Rev,CARTER HOUSE                  
668,Adult Social Care,OP 65&Over Resi Care Placement,OP R/Park-Residential Care Ext,W2LR55,Third Party Payments          ,Private Contractors           ,EH01,Miscellaneous Agency Services           ,587,14/10/2015,Rev,CARTER HOUSE                  
669,Adult Social Care,OP 65&Over Resi Care Placement,OP R/Park-Residential Care Ext,W2LR55,Third Party Payments          ,Private Contractors           ,EH01,Miscellaneous Agency Services           ,587,14/10/2015,Rev,CARTER HOUSE                  
670,Adult Social Care,OP 65&Over Resi Care Placement,OP R/Park-Residential Care Ext,W2LR55,Third Party Payments          ,Private Contractors           ,EH01,Miscellaneous Agency Services           ,587,14/10/2015,Rev,CARTER HOUSE                  
671,Adult Social Care,OP 65&Over Resi Care Placement,OP R/Park-Residential Care Ext,W2LR55,Third Party Payments          ,Private Contractors           ,EH01,Miscellaneous Agency Services           ,587,14/10/2015,Rev,CARTER HOUSE                  
672,Adult Social Care,OP 65&Over Resi Care Placement,OP R/Park-Residential Care Ext,W2LR55,Third Party Payments          ,Private Contractors           ,EH01,Miscellaneous Agency Services           ,587,14/10/2015,Rev,CARTER HOUSE                  
673,Adult Social Care,OP 65&Over Resi Care Placement,OP R/Park-Residential Care Ext,W2LR55,Third Party Payments          ,Private Contractors           ,EH01,Miscellaneous Agency Services           ,587,14/10/2015,Rev,CARTER HOUSE                  
674,Adult Social Care,OP 65&Over Resi Care Placement,OP R/Park-Residential Care Ext,W2LR55,Third Party Payments          ,Private Contractors           ,EH01,Miscellaneous Agency Services           ,587,14/10/2015,Rev,CARTER HOUSE                  
675,Adult Social Care,OP 65&Over Resi Care Placement,OP R/Park-Residential Care Ext,W2LR55,Third Party Payments          ,Private Contractors           ,EH01,Miscellaneous Agency Services           ,587,14/10/2015,Rev,CARTER HOUSE                  
676,Adult Social Care,OP 65&Over Resi Care Placement,OP R/Park-Residential Care Ext,W2LR55,Third Party Payments          ,Private Contractors           ,EH01,Miscellaneous Agency Services           ,587,14/10/2015,Rev,CARTER HOUSE                  
677,Adult Social Care,OP 65&Over Resi Care Placement,OP R/Park-Residential Care Ext,W2LR55,Third Party Payments          ,Private Contractors           ,EH01,Miscellaneous Agency Services           ,587,14/10/2015,Rev,CARTER HOUSE                  
678,Adult Social Care,OP 65&Over Resi Care Placement,OP R/Park-Residential Care Ext,W2LR55,Third Party Payments          ,Private Contractors           ,EH01,Miscellaneous Agency Services           ,587,14/10/2015,Rev,CARTER HOUSE                  
679,Adult Social Care,OP 65&Over Resi Care Placement,OP R/Park-Residential Care Ext,W2LR55,Third Party Payments          ,Private Contractors           ,EH01,Miscellaneous Agency Services           ,587,14/10/2015,Rev,CARTER HOUSE                  
680,Adult Social Care,OP 65&Over Resi Care Placement,OP R/Park-Residential Care Ext,W2LR55,Third Party Payments          ,Private Contractors           ,EH01,Miscellaneous Agency Services           ,587,14/10/2015,Rev,CARTER HOUSE                  
681,Adult Social Care,OP 65&Over Resi Care Placement,OP West - Residential Care Ext,W2LG55,Third Party Payments          ,Private Contractors           ,EH01,Miscellaneous Agency Services           ,587,14/10/2015,Rev,LINK HOUSE                    
682,Adult Social Care,OP 65&Over Resi Care Placement,OP West - Residential Care Ext,W2LG55,Third Party Payments          ,Private Contractors           ,EH01,Miscellaneous Agency Services           ,587,14/10/2015,Rev,LINK HOUSE                    
683,Adult Social Care,OP 65&Over Resi Care Placement,OP West - Residential Care Ext,W2LG55,Third Party Payments          ,Private Contractors           ,EH01,Miscellaneous Agency Services           ,587,14/10/2015,Rev,LINK HOUSE                    
684,Adult Social Care,OP 65&Over Resi Care Placement,OP West - Residential Care Ext,W2LG55,Third Party Payments          ,Private Contractors           ,EH01,Miscellaneous Agency Services           ,587,14/10/2015,Rev,LINK HOUSE                    
685,Adult Social Care,OP 65&Over Resi Care Placement,OP West - Residential Care Ext,W2LG55,Third Party Payments          ,Private Contractors           ,EH01,Miscellaneous Agency Services           ,587,14/10/2015,Rev,LINK HOUSE                    
686,Adult Social Care,OP 65&Over Resi Care Placement,OP West - Residential Care Ext,W2LG55,Third Party Payments          ,Private Contractors           ,EH01,Miscellaneous Agency Services           ,587,14/10/2015,Rev,LINK HOUSE                    
687,Adult Social Care,OP 65&Over Resi Care Placement,OP West - Residential Care Ext,W2LG55,Third Party Payments          ,Private Contractors           ,EH01,Miscellaneous Agency Services           ,587,14/10/2015,Rev,LINK HOUSE                    
688,Adult Social Care,OP 65&Over Resi Care Placement,OP West - Residential Care Ext,W2LG55,Third Party Payments          ,Private Contractors           ,EH01,Miscellaneous Agency Services           ,587,14/10/2015,Rev,LINK HOUSE                    
689,Adult Social Care,OP 65&Over Resi Care Placement,OP West - Residential Care Ext,W2LG55,Third Party Payments          ,Private Contractors           ,EH01,Miscellaneous Agency Services           ,587,14/10/2015,Rev,LINK HOUSE                    
690,Adult Social Care,OP 65&Over Resi Care Placement,OP West - Residential Care Ext,W2LG55,Third Party Payments          ,Private Contractors           ,EH01,Miscellaneous Agency Services           ,587,14/10/2015,Rev,LINK HOUSE                    
691,Adult Social Care,OP 65&Over Resi Care Placement,OP West - Residential Care Ext,W2LG55,Third Party Payments          ,Private Contractors           ,EH01,Miscellaneous Agency Services           ,587,14/10/2015,Rev,LINK HOUSE                    
692,Adult Social Care,OP 65&Over Resi Care Placement,OP West - Residential Care Ext,W2LG55,Third Party Payments          ,Private Contractors           ,EH01,Miscellaneous Agency Services           ,587,14/10/2015,Rev,LINK HOUSE                    
693,Adult Social Care,OP 65&Over Resi Care Placement,OP East - Residential Care Ext,W2LH55,Third Party Payments          ,Private Contractors           ,EH01,Miscellaneous Agency Services           ,587,14/10/2015,Rev,LINK HOUSE                    
694,Adult Social Care,OP 65&Over Resi Care Placement,OP East - Residential Care Ext,W2LH55,Third Party Payments          ,Private Contractors           ,EH01,Miscellaneous Agency Services           ,587,14/10/2015,Rev,LINK HOUSE                    
695,Adult Social Care,OP 65&Over Resi Care Placement,OP East - Residential Care Ext,W2LH55,Third Party Payments          ,Private Contractors           ,EH01,Miscellaneous Agency Services           ,587,14/10/2015,Rev,LINK HOUSE                    
696,Adult Social Care,OP 65&Over Resi Care Placement,OP East - Residential Care Ext,W2LH55,Third Party Payments          ,Private Contractors           ,EH01,Miscellaneous Agency Services           ,587,14/10/2015,Rev,LINK HOUSE                    
697,Adult Social Care,OP 65&Over Resi Care Placement,OP East - Residential Care Ext,W2LH55,Third Party Payments          ,Private Contractors           ,EH01,Miscellaneous Agency Services           ,587,14/10/2015,Rev,LINK HOUSE                    
698,Adult Social Care,OP 65&Over Resi Care Placement,OP East - Residential Care Ext,W2LH55,Third Party Payments          ,Private Contractors           ,EH01,Miscellaneous Agency Services           ,587,14/10/2015,Rev,LINK HOUSE                    
699,Adult Social Care,OP 65&Over Resi Care Placement,OP East - Residential Care Ext,W2LH55,Third Party Payments          ,Private Contractors           ,EH01,Miscellaneous Agency Services           ,587,14/10/2015,Rev,LINK HOUSE                    
700,Adult Social Care,OP 65&Over Resi Care Placement,OP East - Residential Care Ext,W2LH55,Third Party Payments          ,Private Contractors           ,EH01,Miscellaneous Agency Services           ,587,14/10/2015,Rev,LINK HOUSE                    
701,Adult Social Care,OP 65&Over Resi Care Placement,OP R/Park-Residential Care Ext,W2LR55,Third Party Payments          ,Private Contractors           ,EH01,Miscellaneous Agency Services           ,587,14/10/2015,Rev,LINK HOUSE                    
702,Adult Social Care,OP 65&Over Resi Care Placement,OP R/Park-Residential Care Ext,W2LR55,Third Party Payments          ,Private Contractors           ,EH01,Miscellaneous Agency Services           ,587,14/10/2015,Rev,LINK HOUSE                    
703,Adult Social Care,OP 65&Over Resi Care Placement,OP R/Park-Residential Care Ext,W2LR55,Third Party Payments          ,Private Contractors           ,EH01,Miscellaneous Agency Services           ,587,14/10/2015,Rev,LINK HOUSE                    
704,Adult Social Care,OP 65&Over Resi Care Placement,OP R/Park-Residential Care Ext,W2LR55,Third Party Payments          ,Private Contractors           ,EH01,Miscellaneous Agency Services           ,587,14/10/2015,Rev,LINK HOUSE                    
705,Adult Social Care,OP 65&Over Resi Care Placement,OP R/Park-Residential Care Ext,W2LR55,Third Party Payments          ,Private Contractors           ,EH01,Miscellaneous Agency Services           ,587,14/10/2015,Rev,LINK HOUSE                    
706,Adult Social Care,OP 65&Over Resi Care Placement,OP R/Park-Residential Care Ext,W2LR55,Third Party Payments          ,Private Contractors           ,EH01,Miscellaneous Agency Services           ,587,14/10/2015,Rev,LINK HOUSE                    
707,Adult Social Care,OP 65&Over Resi Care Placement,OP R/Park-Residential Care Ext,W2LR55,Third Party Payments          ,Private Contractors           ,EH01,Miscellaneous Agency Services           ,587,14/10/2015,Rev,LINK HOUSE                    
708,Adult Social Care,OP 65&Over Resi Care Placement,OP R/Park-Residential Care Ext,W2LR55,Third Party Payments          ,Private Contractors           ,EH01,Miscellaneous Agency Services           ,587,14/10/2015,Rev,LINK HOUSE                    
709,Adult Social Care,OP 65&Over Resi Care Placement,OP R/Park-Residential Care Ext,W2LR55,Third Party Payments          ,Private Contractors           ,EH01,Miscellaneous Agency Services           ,587,14/10/2015,Rev,LINK HOUSE                    
710,Adult Social Care,OP 65&Over Resi Care Placement,OP R/Park-Residential Care Ext,W2LR55,Third Party Payments          ,Private Contractors           ,EH01,Miscellaneous Agency Services           ,587,14/10/2015,Rev,LINK HOUSE                    
711,Adult Social Care,OP 65&Over Resi Care Placement,OP R/Park-Residential Care Ext,W2LR55,Third Party Payments          ,Private Contractors           ,EH01,Miscellaneous Agency Services           ,587,14/10/2015,Rev,LINK HOUSE                    
712,Adult Social Care,OP 65&Over Resi Care Placement,OP R/Park-Residential Care Ext,W2LR55,Third Party Payments          ,Private Contractors           ,EH01,Miscellaneous Agency Services           ,587,14/10/2015,Rev,LINK HOUSE                    
713,Adult Social Care,OP 65&Over Resi Care Placement,OP R/Park-Residential Care Ext,W2LR55,Third Party Payments          ,Private Contractors           ,EH01,Miscellaneous Agency Services           ,587,14/10/2015,Rev,LINK HOUSE                    
714,Adult Social Care,OP 65&Over Resi Care Placement,OP R/Park-Residential Care Ext,W2LR55,Third Party Payments          ,Private Contractors           ,EH01,Miscellaneous Agency Services           ,587,14/10/2015,Rev,LINK HOUSE                    
715,Adult Social Care,OP 65&Over Resi Care Placement,OP R/Park-Residential Care Ext,W2LR55,Third Party Payments          ,Private Contractors           ,EH01,Miscellaneous Agency Services           ,587,14/10/2015,Rev,LINK HOUSE                    
716,Adult Social Care,OP 65&Over Resi Care Placement,OP R/Park-Residential Care Ext,W2LR55,Third Party Payments          ,Private Contractors           ,EH01,Miscellaneous Agency Services           ,587,14/10/2015,Rev,LINK HOUSE                    
717,Adult Social Care,OP 65&Over Resi Care Placement,OP R/Park-Residential Care Ext,W2LR55,Third Party Payments          ,Private Contractors           ,EH01,Miscellaneous Agency Services           ,587,14/10/2015,Rev,LINK HOUSE                    
718,Adult Social Care,OP 65&Over Resi Care Placement,OP R/Park-Residential Care Ext,W2LR55,Third Party Payments          ,Private Contractors           ,EH01,Miscellaneous Agency Services           ,587,14/10/2015,Rev,LINK HOUSE                    
719,Adult Social Care,OP 65&Over Resi Care Placement,OP R/Park-Residential Care Ext,W2LR55,Third Party Payments          ,Private Contractors           ,EH01,Miscellaneous Agency Services           ,587,14/10/2015,Rev,LINK HOUSE                    
720,Adult Social Care,OP 65&Over Resi Care Placement,OP R/Park-Residential Care Ext,W2LR55,Third Party Payments          ,Private Contractors           ,EH01,Miscellaneous Agency Services           ,587,14/10/2015,Rev,LINK HOUSE                    
721,Adult Social Care,OP 65&Over Resi Care Placement,OP R/Park-Residential Care Ext,W2LR55,Third Party Payments          ,Private Contractors           ,EH01,Miscellaneous Agency Services           ,587,14/10/2015,Rev,LINK HOUSE                    
722,Adult Social Care,OP 65&Over Resi Care Placement,OP R/Park-Residential Care Ext,W2LR55,Third Party Payments          ,Private Contractors           ,EH01,Miscellaneous Agency Services           ,587,14/10/2015,Rev,LINK HOUSE                    
723,Adult Social Care,OP 65&Over Resi Care Placement,OP R/Park-Residential Care Ext,W2LR55,Third Party Payments          ,Private Contractors           ,EH01,Miscellaneous Agency Services           ,587,14/10/2015,Rev,LINK HOUSE                    
724,Adult Social Care,OP 65&Over Resi Care Placement,OP R/Park-Residential Care Ext,W2LR55,Third Party Payments          ,Private Contractors           ,EH01,Miscellaneous Agency Services           ,587,14/10/2015,Rev,LINK HOUSE                    
725,Adult Social Care,OP 65&Over Resi Care Placement,OP R/Park-Residential Care Ext,W2LR55,Third Party Payments          ,Private Contractors           ,EH01,Miscellaneous Agency Services           ,587,14/10/2015,Rev,LINK HOUSE                    
726,Adult Social Care,OP 65&Over Resi Care Placement,OP R/Park-Residential Care Ext,W2LR55,Third Party Payments          ,Private Contractors           ,EH01,Miscellaneous Agency Services           ,587,14/10/2015,Rev,LINK HOUSE                    
727,Adult Social Care,OP 65&Over Resi Care Placement,OP R/Park-Residential Care Ext,W2LR55,Third Party Payments          ,Private Contractors           ,EH01,Miscellaneous Agency Services           ,587,14/10/2015,Rev,LINK HOUSE                    
728,Adult Social Care,OP 65&Over Resi Care Placement,OP R/Park-Residential Care Ext,W2LR55,Third Party Payments          ,Private Contractors           ,EH01,Miscellaneous Agency Services           ,587,14/10/2015,Rev,LINK HOUSE                    
729,Adult Social Care,OP 65&Over Resi Care Placement,OP R/Park-Residential Care Ext,W2LR55,Third Party Payments          ,Private Contractors           ,EH01,Miscellaneous Agency Services           ,587,14/10/2015,Rev,LINK HOUSE                    
730,Adult Social Care,OP 65&Over NursingCarePlacemts,OP West - Nursing Care,W2LG53,Third Party Payments          ,Private Contractors           ,EH01,Miscellaneous Agency Services           ,739,14/10/2015,Rev,CARTER HOUSE                  
731,Adult Social Care,OP 65&Over NursingCarePlacemts,OP West - Nursing Care,W2LG53,Third Party Payments          ,Private Contractors           ,EH01,Miscellaneous Agency Services           ,739,14/10/2015,Rev,CARTER HOUSE                  
732,Adult Social Care,OP 65&Over NursingCarePlacemts,OP West - Nursing Care,W2LG53,Third Party Payments          ,Private Contractors           ,EH01,Miscellaneous Agency Services           ,739,14/10/2015,Rev,CARTER HOUSE                  
733,Adult Social Care,OP 65&Over NursingCarePlacemts,OP West - Nursing Care,W2LG53,Third Party Payments          ,Private Contractors           ,EH01,Miscellaneous Agency Services           ,739,14/10/2015,Rev,CARTER HOUSE                  
734,Adult Social Care,OP 65&Over NursingCarePlacemts,OP R/Park - Nursing Care,W2LR53,Third Party Payments          ,Private Contractors           ,EH01,Miscellaneous Agency Services           ,739,14/10/2015,Rev,CARTER HOUSE                  
735,Adult Social Care,OP 65&Over NursingCarePlacemts,OP R/Park - Nursing Care,W2LR53,Third Party Payments          ,Private Contractors           ,EH01,Miscellaneous Agency Services           ,739,14/10/2015,Rev,CARTER HOUSE                  
736,Adult Social Care,OP 65&Over NursingCarePlacemts,OP R/Park - Nursing Care,W2LR53,Third Party Payments          ,Private Contractors           ,EH01,Miscellaneous Agency Services           ,739,14/10/2015,Rev,CARTER HOUSE                  
737,Adult Social Care,OP 65&Over NursingCarePlacemts,OP R/Park - Nursing Care,W2LR53,Third Party Payments          ,Private Contractors           ,EH01,Miscellaneous Agency Services           ,739,14/10/2015,Rev,CARTER HOUSE                  
738,Adult Social Care,OP 65&Over NursingCarePlacemts,OP R/Park - Nursing Care,W2LR53,Third Party Payments          ,Private Contractors           ,EH01,Miscellaneous Agency Services           ,739,14/10/2015,Rev,CARTER HOUSE                  
739,Adult Social Care,OP 65&Over NursingCarePlacemts,OP R/Park - Nursing Care,W2LR53,Third Party Payments          ,Private Contractors           ,EH01,Miscellaneous Agency Services           ,739,14/10/2015,Rev,CARTER HOUSE                  
740,Adult Social Care,OP 65&Over NursingCarePlacemts,OP R/Park - Nursing Care,W2LR53,Third Party Payments          ,Private Contractors           ,EH01,Miscellaneous Agency Services           ,739,14/10/2015,Rev,CARTER HOUSE                  
741,Adult Social Care,OP 65&Over NursingCarePlacemts,OP R/Park - Nursing Care,W2LR53,Third Party Payments          ,Private Contractors           ,EH01,Miscellaneous Agency Services           ,739,14/10/2015,Rev,CARTER HOUSE                  
742,Adult Social Care,OP 65&Over NursingCarePlacemts,OP R/Park - Nursing Care,W2LR53,Third Party Payments          ,Private Contractors           ,EH01,Miscellaneous Agency Services           ,739,14/10/2015,Rev,CARTER HOUSE                  
743,Adult Social Care,OP 65&Over NursingCarePlacemts,OP R/Park - Nursing Care,W2LR53,Third Party Payments          ,Private Contractors           ,EH01,Miscellaneous Agency Services           ,739,14/10/2015,Rev,CARTER HOUSE                  
744,Adult Social Care,OP 65&Over NursingCarePlacemts,OP R/Park - Nursing Care,W2LR53,Third Party Payments          ,Private Contractors           ,EH01,Miscellaneous Agency Services           ,739,14/10/2015,Rev,CARTER HOUSE                  
745,Adult Social Care,OP 65&Over NursingCarePlacemts,OP R/Park - Nursing Care,W2LR53,Third Party Payments          ,Private Contractors           ,EH01,Miscellaneous Agency Services           ,739,14/10/2015,Rev,CARTER HOUSE                  
746,Adult Social Care,OP 65&Over NursingCarePlacemts,OP R/Park - Nursing Care,W2LR53,Third Party Payments          ,Private Contractors           ,EH01,Miscellaneous Agency Services           ,739,14/10/2015,Rev,CARTER HOUSE                  
747,Adult Social Care,OP 65&Over NursingCarePlacemts,OP R/Park - Nursing Care,W2LR53,Third Party Payments          ,Private Contractors           ,EH01,Miscellaneous Agency Services           ,739,14/10/2015,Rev,CARTER HOUSE                  
748,Adult Social Care,OP 65&Over NursingCarePlacemts,OP R/Park - Nursing Care,W2LR53,Third Party Payments          ,Private Contractors           ,EH01,Miscellaneous Agency Services           ,739,14/10/2015,Rev,CARTER HOUSE                  
749,Adult Social Care,OP 65&Over NursingCarePlacemts,OP R/Park - Nursing Care,W2LR53,Third Party Payments          ,Private Contractors           ,EH01,Miscellaneous Agency Services           ,739,14/10/2015,Rev,CARTER HOUSE                  
750,Adult Social Care,OP 65&Over NursingCarePlacemts,OP R/Park - Nursing Care,W2LR53,Third Party Payments          ,Private Contractors           ,EH01,Miscellaneous Agency Services           ,739,14/10/2015,Rev,CARTER HOUSE                  
751,Adult Social Care,OP 65&Over NursingCarePlacemts,OP R/Park - Nursing Care,W2LR53,Third Party Payments          ,Private Contractors           ,EH01,Miscellaneous Agency Services           ,739,14/10/2015,Rev,CARTER HOUSE                  
752,Adult Social Care,OP 65&Over NursingCarePlacemts,OP R/Park - Nursing Care,W2LR53,Third Party Payments          ,Private Contractors           ,EH01,Miscellaneous Agency Services           ,739,14/10/2015,Rev,CARTER HOUSE                  
753,Adult Social Care,OP 65&Over NursingCarePlacemts,OP R/Park - Nursing Care,W2LR53,Third Party Payments          ,Private Contractors           ,EH01,Miscellaneous Agency Services           ,739,14/10/2015,Rev,CARTER HOUSE                  
754,Adult Social Care,OP 65&Over NursingCarePlacemts,OP R/Park - Nursing Care,W2LR53,Third Party Payments          ,Private Contractors           ,EH01,Miscellaneous Agency Services           ,739,14/10/2015,Rev,CARTER HOUSE                  
755,Adult Social Care,OP 65&Over NursingCarePlacemts,OP R/Park - Nursing Care,W2LR53,Third Party Payments          ,Private Contractors           ,EH01,Miscellaneous Agency Services           ,739,14/10/2015,Rev,CARTER HOUSE                  
756,Adult Social Care,OP 65&Over NursingCarePlacemts,OP R/Park - Nursing Care,W2LR53,Third Party Payments          ,Private Contractors           ,EH01,Miscellaneous Agency Services           ,739,14/10/2015,Rev,CARTER HOUSE                  
757,Adult Social Care,OP 65&Over NursingCarePlacemts,OP R/Park - Nursing Care,W2LR53,Third Party Payments          ,Private Contractors           ,EH01,Miscellaneous Agency Services           ,739,14/10/2015,Rev,CARTER HOUSE                  
758,Adult Social Care,OP 65&Over NursingCarePlacemts,OP West - Nursing Care,W2LG53,Third Party Payments          ,Private Contractors           ,EH01,Miscellaneous Agency Services           ,739,14/10/2015,Rev,LINK HOUSE                    
759,Adult Social Care,OP 65&Over NursingCarePlacemts,OP West - Nursing Care,W2LG53,Third Party Payments          ,Private Contractors           ,EH01,Miscellaneous Agency Services           ,739,14/10/2015,Rev,LINK HOUSE                    
760,Adult Social Care,OP 65&Over NursingCarePlacemts,OP West - Nursing Care,W2LG53,Third Party Payments          ,Private Contractors           ,EH01,Miscellaneous Agency Services           ,739,14/10/2015,Rev,LINK HOUSE                    
761,Adult Social Care,OP 65&Over NursingCarePlacemts,OP West - Nursing Care,W2LG53,Third Party Payments          ,Private Contractors           ,EH01,Miscellaneous Agency Services           ,739,14/10/2015,Rev,LINK HOUSE                    
762,Adult Social Care,OP 65&Over NursingCarePlacemts,OP West - Nursing Care,W2LG53,Third Party Payments          ,Private Contractors           ,EH01,Miscellaneous Agency Services           ,739,14/10/2015,Rev,LINK HOUSE                    
763,Adult Social Care,OP 65&Over NursingCarePlacemts,OP West - Nursing Care,W2LG53,Third Party Payments          ,Private Contractors           ,EH01,Miscellaneous Agency Services           ,739,14/10/2015,Rev,LINK HOUSE                    
764,Adult Social Care,OP 65&Over NursingCarePlacemts,OP West - Nursing Care,W2LG53,Third Party Payments          ,Private Contractors           ,EH01,Miscellaneous Agency Services           ,739,14/10/2015,Rev,LINK HOUSE                    
765,Adult Social Care,OP 65&Over NursingCarePlacemts,OP West - Nursing Care,W2LG53,Third Party Payments          ,Private Contractors           ,EH01,Miscellaneous Agency Services           ,739,14/10/2015,Rev,LINK HOUSE                    
766,Adult Social Care,OP 65&Over NursingCarePlacemts,OP West - Nursing Care,W2LG53,Third Party Payments          ,Private Contractors           ,EH01,Miscellaneous Agency Services           ,739,14/10/2015,Rev,LINK HOUSE                    
767,Adult Social Care,OP 65&Over NursingCarePlacemts,OP West - Nursing Care,W2LG53,Third Party Payments          ,Private Contractors           ,EH01,Miscellaneous Agency Services           ,739,14/10/2015,Rev,LINK HOUSE                    
768,Adult Social Care,OP 65&Over NursingCarePlacemts,OP West - Nursing Care,W2LG53,Third Party Payments          ,Private Contractors           ,EH01,Miscellaneous Agency Services           ,739,14/10/2015,Rev,LINK HOUSE                    
769,Adult Social Care,OP 65&Over NursingCarePlacemts,OP West - Nursing Care,W2LG53,Third Party Payments          ,Private Contractors           ,EH01,Miscellaneous Agency Services           ,739,14/10/2015,Rev,LINK HOUSE                    
770,Adult Social Care,OP 65&Over NursingCarePlacemts,OP East - Nursing Care,W2LH53,Third Party Payments          ,Private Contractors           ,EH01,Miscellaneous Agency Services           ,739,14/10/2015,Rev,LINK HOUSE                    
771,Adult Social Care,OP 65&Over NursingCarePlacemts,OP East - Nursing Care,W2LH53,Third Party Payments          ,Private Contractors           ,EH01,Miscellaneous Agency Services           ,739,14/10/2015,Rev,LINK HOUSE                    
772,Adult Social Care,OP 65&Over NursingCarePlacemts,OP East - Nursing Care,W2LH53,Third Party Payments          ,Private Contractors           ,EH01,Miscellaneous Agency Services           ,739,14/10/2015,Rev,LINK HOUSE                    
773,Adult Social Care,OP 65&Over NursingCarePlacemts,OP East - Nursing Care,W2LH53,Third Party Payments          ,Private Contractors           ,EH01,Miscellaneous Agency Services           ,739,14/10/2015,Rev,LINK HOUSE                    
774,Adult Social Care,OP 65&Over NursingCarePlacemts,OP East - Nursing Care,W2LH53,Third Party Payments          ,Private Contractors           ,EH01,Miscellaneous Agency Services           ,739,14/10/2015,Rev,LINK HOUSE                    
775,Adult Social Care,OP 65&Over NursingCarePlacemts,OP East - Nursing Care,W2LH53,Third Party Payments          ,Private Contractors           ,EH01,Miscellaneous Agency Services           ,739,14/10/2015,Rev,LINK HOUSE                    
776,Adult Social Care,OP 65&Over NursingCarePlacemts,OP East - Nursing Care,W2LH53,Third Party Payments          ,Private Contractors           ,EH01,Miscellaneous Agency Services           ,739,14/10/2015,Rev,LINK HOUSE                    
777,Adult Social Care,OP 65&Over NursingCarePlacemts,OP East - Nursing Care,W2LH53,Third Party Payments          ,Private Contractors           ,EH01,Miscellaneous Agency Services           ,739,14/10/2015,Rev,LINK HOUSE                    
778,Adult Social Care,OP 65&Over NursingCarePlacemts,OP R/Park - Nursing Care,W2LR53,Third Party Payments          ,Private Contractors           ,EH01,Miscellaneous Agency Services           ,739,14/10/2015,Rev,LINK HOUSE                    
779,Adult Social Care,OP 65&Over NursingCarePlacemts,OP R/Park - Nursing Care,W2LR53,Third Party Payments          ,Private Contractors           ,EH01,Miscellaneous Agency Services           ,739,14/10/2015,Rev,LINK HOUSE                    
780,Adult Social Care,OP 65&Over NursingCarePlacemts,OP R/Park - Nursing Care,W2LR53,Third Party Payments          ,Private Contractors           ,EH01,Miscellaneous Agency Services           ,739,14/10/2015,Rev,LINK HOUSE                    
781,Adult Social Care,OP 65&Over NursingCarePlacemts,OP R/Park - Nursing Care,W2LR53,Third Party Payments          ,Private Contractors           ,EH01,Miscellaneous Agency Services           ,739,14/10/2015,Rev,LINK HOUSE                    
782,Adult Social Care,OP 65&Over NursingCarePlacemts,OP R/Park - Nursing Care,W2LR53,Third Party Payments          ,Private Contractors           ,EH01,Miscellaneous Agency Services           ,739,14/10/2015,Rev,LINK HOUSE                    
783,Adult Social Care,OP 65&Over NursingCarePlacemts,OP R/Park - Nursing Care,W2LR53,Third Party Payments          ,Private Contractors           ,EH01,Miscellaneous Agency Services           ,739,14/10/2015,Rev,LINK HOUSE                    
784,Adult Social Care,OP 65&Over NursingCarePlacemts,OP R/Park - Nursing Care,W2LR53,Third Party Payments          ,Private Contractors           ,EH01,Miscellaneous Agency Services           ,739,14/10/2015,Rev,LINK HOUSE                    
785,Adult Social Care,OP 65&Over NursingCarePlacemts,OP R/Park - Nursing Care,W2LR53,Third Party Payments          ,Private Contractors           ,EH01,Miscellaneous Agency Services           ,739,14/10/2015,Rev,LINK HOUSE                    
786,Adult Social Care,OP 65&Over NursingCarePlacemts,OP R/Park - Nursing Care,W2LR53,Third Party Payments          ,Private Contractors           ,EH01,Miscellaneous Agency Services           ,739,14/10/2015,Rev,LINK HOUSE                    
787,Adult Social Care,OP 65&Over NursingCarePlacemts,OP R/Park - Nursing Care,W2LR53,Third Party Payments          ,Private Contractors           ,EH01,Miscellaneous Agency Services           ,739,14/10/2015,Rev,LINK HOUSE                    
788,Adult Social Care,OP 65&Over NursingCarePlacemts,OP R/Park - Nursing Care,W2LR53,Third Party Payments          ,Private Contractors           ,EH01,Miscellaneous Agency Services           ,739,14/10/2015,Rev,LINK HOUSE                    
789,Adult Social Care,OP 65&Over NursingCarePlacemts,OP R/Park - Nursing Care,W2LR53,Third Party Payments          ,Private Contractors           ,EH01,Miscellaneous Agency Services           ,739,14/10/2015,Rev,LINK HOUSE                    
790,Adult Social Care,OP 65&Over NursingCarePlacemts,OP R/Park - Nursing Care,W2LR53,Third Party Payments          ,Private Contractors           ,EH01,Miscellaneous Agency Services           ,739,14/10/2015,Rev,LINK HOUSE                    
791,Adult Social Care,OP 65&Over NursingCarePlacemts,OP R/Park - Nursing Care,W2LR53,Third Party Payments          ,Private Contractors           ,EH01,Miscellaneous Agency Services           ,739,14/10/2015,Rev,LINK HOUSE                    
792,Adult Social Care,OP 65&Over NursingCarePlacemts,OP R/Park - Nursing Care,W2LR53,Third Party Payments          ,Private Contractors           ,EH01,Miscellaneous Agency Services           ,739,14/10/2015,Rev,LINK HOUSE                    
793,Adult Social Care,OP 65&Over NursingCarePlacemts,OP R/Park - Nursing Care,W2LR53,Third Party Payments          ,Private Contractors           ,EH01,Miscellaneous Agency Services           ,739,14/10/2015,Rev,LINK HOUSE                    
794,Adult Social Care,OP 65&Over NursingCarePlacemts,OP R/Park - Nursing Care,W2LR53,Third Party Payments          ,Private Contractors           ,EH01,Miscellaneous Agency Services           ,739,14/10/2015,Rev,LINK HOUSE                    
795,Adult Social Care,OP 65&Over NursingCarePlacemts,OP R/Park - Nursing Care,W2LR53,Third Party Payments          ,Private Contractors           ,EH01,Miscellaneous Agency Services           ,739,14/10/2015,Rev,LINK HOUSE                    
796,Adult Social Care,OP 65&Over NursingCarePlacemts,OP R/Park - Nursing Care,W2LR53,Third Party Payments          ,Private Contractors           ,EH01,Miscellaneous Agency Services           ,739,14/10/2015,Rev,LINK HOUSE                    
797,Adult Social Care,OP 65&Over NursingCarePlacemts,OP R/Park - Nursing Care,W2LR53,Third Party Payments          ,Private Contractors           ,EH01,Miscellaneous Agency Services           ,739,14/10/2015,Rev,LINK HOUSE                    
798,Central Services,SupS Legal,Sutton Legal                            ,E10293,Supplies & Services           ,Services                      ,DF11,Counsel's Fees                          ,1445,14/10/2015,Rev,REDACTED
799,Central Services,SupS Legal,Sutton Legal                            ,E10293,Supplies & Services           ,Services                      ,DF11,Counsel's Fees                          ,1550,14/10/2015,Rev,REDACTED
800,,,Disabled Facilities Grant DCLG          ,CE004RA,Other Capital Expenditure,,E1,Grants                                  ,7181.5,14/10/2015,Cap,T BROWN GROUP LTD             
801,Childrens & Education Services,Support for SEN Pupils,Non-Delegated Statements,K90024,Third Party Payments          ,Other Establishments          ,EG50,Ind Day Schs Payments                   ,513,15/10/2015,Rev,UNSTED PARK                   
802,Highways & Transport Services,Street Lighting.,Street Lighting .,G00260,Third Party Payments          ,Private Contractors           ,EH01,Miscellaneous Agency Services           ,642,15/10/2015,Rev,UK POWER NETWORKS (OPERATIONS)
803,Childrens & Education Services,Fostering Services,ART Independent Agency Foster,W1DE46,Supplies & Services           ,Services                      ,DF53,Task Based Fostering                    ,566.01,16/10/2015,Rev,DIAGRAMA FOUNDATION           
804,Highways & Transport Services,Street Lighting.,Street Lighting .,G00260,Third Party Payments          ,Private Contractors           ,EH01,Miscellaneous Agency Services           ,642,16/10/2015,Rev,UK POWER NETWORKS (OPERATIONS)
805,Childrens & Education Services,Fostering Services,ART Independent Agency Foster,W1DE46,Supplies & Services           ,Services                      ,DF53,Task Based Fostering                    ,792.41,16/10/2015,Rev,DIAGRAMA FOUNDATION           
806,Cultural Env Reg&Plan Services,Parks & Open Spaces,"Pks,Rec Grds (Unloc)",P05005,Premises Related Expenditure  ,Ground Maintenance Costs      ,BL02,Maintenance of paths                    ,5346,16/10/2015,Rev,TAYLOR BUILDING COMPANY LTD   
807,Childrens & Education Services,Other - Other Ch & Fam,Emergency SW - children,W1CA02,Employees                     ,Direct Employee Expenses      ,AA51,Emergency Social Workers (AP)           ,8308,16/10/2015,Rev,LONDON BOROUGH OF SUTTON      
808,Cultural Env Reg&Plan Services,Mgt & Support (Env),Senior Mgt. - E.S.C.,G00100,Supplies & Services           ,Services                      ,DF03,Consultants                             ,1000,17/10/2015,Rev,SARAH TANBURN ASSOCIATES LTD  
809,Adult Social Care,OP 65 & Over Day Care,Pollards Hill Day Centre,E02270,Premises Related Expenditure  ,RepairsAlterations&MtceOfBldgs,BA06,Repairs & Maintenance General           ,940,18/10/2015,Rev,INDEPTH HYGIENE SERVICES LTD  
810,Adult Social Care,PS u65 Day Care,C & H Buildings,E02345,Premises Related Expenditure  ,RepairsAlterations&MtceOfBldgs,BA29,Build Maint Mgt Fees                    ,600,19/10/2015,Rev,WESTFIELD GROUP UK LTD        
811,Highways & Transport Services,Saf mtc prin/oth rds not split,Highways GM Contract                    ,P04006,Premises Related Expenditure  ,Ground Maintenance Costs      ,BL50,Nature Conservation                     ,680,19/10/2015,Rev,BARKLANDS TREE SPECIALISTS    
